BodyName,ServiceAreaCategorisation,ServiceDivisionCategorisation,ExpensesType,Date,TransactionNumber,Amount,CapitalorRevenue,SupplierName,MerchantCategory
Peterborough City Council,Children's & Safeguarding,Commissioning - CSC,Third Party Payments,01/11/2018,8000130832,681035.67,Revenue,IAS TACT,Third Party Payments - Contract
Peterborough City Council,Children's & Safeguarding,Access to Resources & Specialist Commissioning,Services,02/11/2018,30196456,24624.69,Revenue,Aspire Scotland Ltd,Boarding Out Fees
Peterborough City Council,Adults,Independent Sector Placements,Services,02/11/2018,30197158,2413.40,Revenue,Linkage Community Trust Limited,Residential Care
Peterborough City Council,Adults,Independent Sector Placements,Services,02/11/2018,30197487,1488.24,Revenue,Omega Oak Barn,Residential Care
Peterborough City Council,Children's & Safeguarding,Access to Resources & Specialist Commissioning,Services,02/11/2018,30197608,12796.53,Revenue,Ethelbert Childrens Services,Boarding Out Fees
Peterborough City Council,Children's & Safeguarding,Access to Resources & Specialist Commissioning,Services,02/11/2018,30197609,12887.14,Revenue,Ethelbert Childrens Services,Boarding Out Fees
Peterborough City Council,Children's & Safeguarding,Access to Resources & Specialist Commissioning,Services,02/11/2018,30197610,12546.14,Revenue,Ethelbert Childrens Services,Boarding Out Fees
Peterborough City Council,Legal Services,Legal Services,Services,02/11/2018,30197803,1237.50,Revenue,Spinks Notary,Professional Fees
Peterborough City Council,City Centre Management,"Markets, Tourism & Events",Services,02/11/2018,30197914,1131.50,Revenue,C N SECURITY,Security
Peterborough City Council,Adults,Independent Sector Placements,Services,02/11/2018,30198085,1865.35,Revenue,Avery House (Peterborough) t/a Brighterkind,Residential Care
Peterborough City Council,Adults,Independent Sector Placements,Services,02/11/2018,30198472,7439.20,Revenue,Mencap,Home Care
Peterborough City Council,Adults,Independent Sector Placements,Services,02/11/2018,30198473,1107.60,Revenue,Mencap,Home Care
Peterborough City Council,Adults,Independent Sector Placements,Services,02/11/2018,30198474,681.60,Revenue,Mencap,Home Care
Peterborough City Council,Adults,Independent Sector Placements,Services,02/11/2018,30198475,1476.80,Revenue,Mencap,Home Care
Peterborough City Council,Adults,Independent Sector Placements,Services,02/11/2018,30198477,568.00,Revenue,Mencap,Home Care
Peterborough City Council,Adults,Independent Sector Placements,Services,02/11/2018,30198478,2215.20,Revenue,Mencap,Home Care
Peterborough City Council,Adults,Independent Sector Placements,Services,02/11/2018,30198479,852.00,Revenue,Mencap,Home Care
Peterborough City Council,Adults,Independent Sector Placements,Services,02/11/2018,30198480,8106.00,Revenue,Mencap,Home Care
Peterborough City Council,Adults,Independent Sector Placements,Services,02/11/2018,30198482,562.40,Revenue,Mencap,Home Care
Peterborough City Council,Adults,Independent Sector Placements,Services,02/11/2018,30198483,3687.04,Revenue,Mencap,Home Care
Peterborough City Council,Adults,Independent Sector Placements,Services,02/11/2018,30198484,852.00,Revenue,Mencap,Home Care
Peterborough City Council,Adults,Independent Sector Placements,Services,02/11/2018,30198486,1500.64,Revenue,Mencap,Home Care
Peterborough City Council,Adults,Independent Sector Placements,Services,02/11/2018,30198488,2223.00,Revenue,Mencap,Home Care
Peterborough City Council,Adults,Independent Sector Placements,Services,02/11/2018,30198489,695.80,Revenue,Mencap,Home Care
Peterborough City Council,Adults,Independent Sector Placements,Services,02/11/2018,30198490,2034.40,Revenue,Mencap,Home Care
Peterborough City Council,Adults,Independent Sector Placements,Services,02/11/2018,30198491,7277.40,Revenue,Mencap,Home Care
Peterborough City Council,Adults,Independent Sector Placements,Services,02/11/2018,30198492,568.00,Revenue,Mencap,Home Care
Peterborough City Council,Adults,Independent Sector Placements,Services,02/11/2018,30198493,1940.68,Revenue,Mencap,Home Care
Peterborough City Council,Adults,Independent Sector Placements,Services,02/11/2018,30198494,979.80,Revenue,Mencap,Home Care
Peterborough City Council,Children's & Safeguarding,Access to Resources & Specialist Commissioning,Services,02/11/2018,30198559,840.00,Revenue,Florinee Homes Ltd,Boarding Out Fees
Peterborough City Council,Adults,Independent Sector Placements,Services,02/11/2018,30198608,-585.60,Revenue,Avery House (Peterborough) t/a Brighterkind,Residential Care
Peterborough City Council,Adults,Independent Sector Placements,Services,02/11/2018,30198609,1124.44,Revenue,Avery House (Peterborough) t/a Brighterkind,Residential Care
Peterborough City Council,Adults,Independent Sector Placements,Services,02/11/2018,30198610,605.47,Revenue,Avery House (Peterborough) t/a Brighterkind,Residential Care
Peterborough City Council,Adults,Independent Sector Placements,Services,02/11/2018,30198611,605.47,Revenue,Avery House (Peterborough) t/a Brighterkind,Residential Care
Peterborough City Council,Adults,Independent Sector Placements,Services,02/11/2018,30198612,605.47,Revenue,Avery House (Peterborough) t/a Brighterkind,Residential Care
Peterborough City Council,Adults,Independent Sector Placements,Services,02/11/2018,30198613,1605.48,Revenue,Avery House (Peterborough) t/a Brighterkind,Residential Care
Peterborough City Council,Adults,Independent Sector Placements,Services,02/11/2018,30198614,1623.84,Revenue,Avery House (Peterborough) t/a Brighterkind,Residential Care
Peterborough City Council,Adults,Independent Sector Placements,Services,02/11/2018,30198615,1124.44,Revenue,Avery House (Peterborough) t/a Brighterkind,Residential Care
Peterborough City Council,Adults,Independent Sector Placements,Services,02/11/2018,30198616,1531.76,Revenue,Avery House (Peterborough) t/a Brighterkind,Residential Care
Peterborough City Council,Adults,Independent Sector Placements,Services,02/11/2018,30198617,1397.24,Revenue,Avery House (Peterborough) t/a Brighterkind,Residential Care
Peterborough City Council,Adults,Independent Sector Placements,Services,02/11/2018,30198618,1237.64,Revenue,Avery House (Peterborough) t/a Brighterkind,Residential Care
Peterborough City Council,Adults,Independent Sector Placements,Services,02/11/2018,30198619,883.84,Revenue,Avery House (Peterborough) t/a Brighterkind,Residential Care
Peterborough City Council,Adults,Independent Sector Placements,Services,02/11/2018,30198620,1159.12,Revenue,Avery House (Peterborough) t/a Brighterkind,Residential Care
Peterborough City Council,Adults,Independent Sector Placements,Services,02/11/2018,30198621,1495.84,Revenue,Avery House (Peterborough) t/a Brighterkind,Residential Care
Peterborough City Council,Adults,Independent Sector Placements,Services,02/11/2018,30198622,1869.48,Revenue,Avery House (Peterborough) t/a Brighterkind,Residential Care
Peterborough City Council,Adults,Independent Sector Placements,Services,02/11/2018,30198623,1656.52,Revenue,Avery House (Peterborough) t/a Brighterkind,Residential Care
Peterborough City Council,Adults,Independent Sector Placements,Services,02/11/2018,30198627,1473.20,Revenue,Avery House (Peterborough) t/a Brighterkind,Residential Care
Peterborough City Council,Adults,Independent Sector Placements,Services,02/11/2018,30198628,1269.48,Revenue,Avery House (Peterborough) t/a Brighterkind,Residential Care
Peterborough City Council,Adults,Independent Sector Placements,Services,02/11/2018,30198629,1852.16,Revenue,GARDEN LODGE,Residential Care
Peterborough City Council,Adults,Independent Sector Placements,Services,02/11/2018,30198669,1089.96,Revenue,Avery House (Peterborough) t/a Brighterkind,Residential Care
Peterborough City Council,Adults,Independent Sector Placements,Services,02/11/2018,30198670,1281.48,Revenue,Avery House (Peterborough) t/a Brighterkind,Residential Care
Peterborough City Council,Adults,Independent Sector Placements,Services,02/11/2018,30198671,1610.56,Revenue,Avery House (Peterborough) t/a Brighterkind,Residential Care
Peterborough City Council,Adults,Independent Sector Placements,Services,02/11/2018,30198672,2210.60,Revenue,Avery House (Peterborough) t/a Brighterkind,Residential Care
Peterborough City Council,Adults,Independent Sector Placements,Services,02/11/2018,30198673,1211.16,Revenue,Avery House (Peterborough) t/a Brighterkind,Residential Care
Peterborough City Council,Adults,Independent Sector Placements,Services,02/11/2018,30198674,2179.24,Revenue,Avery House (Peterborough) t/a Brighterkind,Residential Care
Peterborough City Council,Adults,Independent Sector Placements,Services,02/11/2018,30198675,1604.16,Revenue,Avery House (Peterborough) t/a Brighterkind,Residential Care
Peterborough City Council,Adults,Independent Sector Placements,Services,02/11/2018,30198677,947.48,Revenue,Avery House (Peterborough) t/a Brighterkind,Residential Care
Peterborough City Council,Adults,Independent Sector Placements,Services,02/11/2018,30198678,919.04,Revenue,Avery House (Peterborough) t/a Brighterkind,Residential Care
Peterborough City Council,Adults,Independent Sector Placements,Services,02/11/2018,30198679,973.92,Revenue,Avery House (Peterborough) t/a Brighterkind,Residential Care
Peterborough City Council,Adults,Independent Sector Placements,Services,02/11/2018,30198680,834.76,Revenue,Avery House (Peterborough) t/a Brighterkind,Residential Care
Peterborough City Council,Adults,Independent Sector Placements,Services,02/11/2018,30198682,1414.68,Revenue,Avery House (Peterborough) t/a Brighterkind,Residential Care
Peterborough City Council,Corporate,Corporate,Non Revenue,02/11/2018,30198687,576.00,Capital,M J Greaves,Grant Payment
Peterborough City Council,Adults,Independent Sector Placements,Services,02/11/2018,30198705,1869.48,Revenue,The Cedars Bourne Care Home,Residential Care
Peterborough City Council,Adults,Independent Sector Placements,Services,02/11/2018,30198706,-1821.88,Revenue,Avery House (Peterborough) t/a Brighterkind,Residential Care
Peterborough City Council,Adults,Independent Sector Placements,Services,02/11/2018,30198707,729.96,Revenue,Avery House (Peterborough) t/a Brighterkind,Residential Care
Peterborough City Council,Adults,Independent Sector Placements,Services,02/11/2018,30198772,3869.88,Revenue,Consensus Support Services Ltd,Residential Care
Peterborough City Council,Adults,Independent Sector Placements,Services,02/11/2018,30198790,3576.32,Revenue,GLASALLT FAWR,Residential Care
Peterborough City Council,Adults,Independent Sector Placements,Services,02/11/2018,30198796,771.43,Revenue,EXCELCARE GLENNFIELD HOUSE,Residential Care
Peterborough City Council,Adults,Independent Sector Placements,Services,02/11/2018,30198829,1061.36,Revenue,Goldcare Homes t/a The Tudors Care Home,Residential Care
Peterborough City Council,Adults,Independent Sector Placements,Services,02/11/2018,30198833,1369.48,Revenue,Goldcare Homes t/a The Tudors Care Home,Residential Care
Peterborough City Council,Adults,Independent Sector Placements,Services,02/11/2018,30198839,1188.68,Revenue,Goldcare Homes t/a The Tudors Care Home,Residential Care
Peterborough City Council,Adults,Independent Sector Placements,Services,02/11/2018,30198841,1305.48,Revenue,Goldcare Homes t/a The Tudors Care Home,Residential Care
Peterborough City Council,Adults,Independent Sector Placements,Services,02/11/2018,30198843,942.96,Revenue,Goldcare Homes t/a The Tudors Care Home,Residential Care
Peterborough City Council,Adults,Independent Sector Placements,Services,02/11/2018,30198845,1023.84,Revenue,Goldcare Homes t/a The Tudors Care Home,Residential Care
Peterborough City Council,Adults,Independent Sector Placements,Services,02/11/2018,30198848,670.04,Revenue,Goldcare Homes t/a The Tudors Care Home,Residential Care
Peterborough City Council,Adults,Independent Sector Placements,Services,02/11/2018,30198850,1559.60,Revenue,Goldcare Homes t/a The Tudors Care Home,Residential Care
Peterborough City Council,Adults,Independent Sector Placements,Services,02/11/2018,30198872,8767.56,Revenue,Home From Home Care Limited,Residential Care
Peterborough City Council,Adults,Independent Sector Placements,Services,02/11/2018,30198873,10856.48,Revenue,Home From Home Care Limited,Residential Care
Peterborough City Council,Adults,Independent Sector Placements,Services,02/11/2018,30198874,8823.48,Revenue,Home From Home Care Limited,Residential Care
Peterborough City Council,Adults,Independent Sector Placements,Services,02/11/2018,30198875,7860.68,Revenue,Home From Home Care Limited,Residential Care
Peterborough City Council,Children's & Safeguarding,Children's Social Care,Agency Staff,02/11/2018,30198882,4177.18,Revenue,Liquid Personnel,External Temporary Staff
Peterborough City Council,Adults,Independent Sector Placements,Services,02/11/2018,30198885,2442.20,Revenue,Benell Care Services Ltd,Residential Care
Peterborough City Council,Adults,Independent Sector Placements,Services,02/11/2018,30198922,6543.32,Revenue,Mencap,Home Care
Peterborough City Council,Communities,Housing,Services,02/11/2018,30199047,10933.00,Revenue,Eastfield Guesthouse,Temporary Accommodation Costs
Peterborough City Council,Communities,Housing,Services,02/11/2018,30199050,9726.50,Revenue,Eastfield Guesthouse,Temporary Accommodation Costs
Peterborough City Council,Children's & Safeguarding,Children's Social Care,Agency Staff,02/11/2018,30199052,4177.18,Revenue,Liquid Personnel,External Temporary Staff
Peterborough City Council,Children's & Safeguarding,Children's Social Care,Agency Staff,02/11/2018,30199101,3978.30,Revenue,Liquid Personnel,External Temporary Staff
Peterborough City Council,Children's & Safeguarding,Children's Social Care,Agency Staff,02/11/2018,30199102,3982.85,Revenue,Liquid Personnel,External Temporary Staff
Peterborough City Council,Children's & Safeguarding,Access to Resources & Specialist Commissioning,Services,02/11/2018,30199107,16164.33,Revenue,Cambian Childcare Ltd,Boarding Out Fees
Peterborough City Council,Adults,Independent Sector Placements,Services,02/11/2018,30199197,1630.00,Revenue,ABBEYGATE REST HOME,Residential Care
Peterborough City Council,Adults,Independent Sector Placements,Services,02/11/2018,30199204,30878.57,Revenue,Avery House (Peterborough) t/a Brighterkind,Residential Care
Peterborough City Council,Westcombe Engineering,Westcombe Engineering,"Tools, Equipment, Furniture & Materials",02/11/2018,30199211,2100.00,Revenue,Barron Clark Castings Ltd,Materials
Peterborough City Council,Westcombe Engineering,Westcombe Engineering,"Tools, Equipment, Furniture & Materials",02/11/2018,30199225,644.82,Revenue,Barron Clark Castings Ltd,Materials
Peterborough City Council,Westcombe Engineering,Westcombe Engineering,"Tools, Equipment, Furniture & Materials",02/11/2018,30199226,709.50,Revenue,Barron Clark Castings Ltd,Materials
Peterborough City Council,Westcombe Engineering,Westcombe Engineering,"Tools, Equipment, Furniture & Materials",02/11/2018,30199228,531.36,Revenue,Barron Clark Castings Ltd,Materials
Peterborough City Council,Adults,Independent Sector Placements,Services,02/11/2018,30199238,-1428.35,Revenue,Avery House (Peterborough) t/a Brighterkind,Residential Care
Peterborough City Council,Adults,Independent Sector Placements,Services,02/11/2018,30199239,-2221.88,Revenue,Avery House (Peterborough) t/a Brighterkind,Residential Care
Peterborough City Council,Adults,Independent Sector Placements,Services,02/11/2018,30199240,2375.54,Revenue,Avery House (Peterborough) t/a Brighterkind,Residential Care
Peterborough City Council,Adults,Independent Sector Placements,Services,02/11/2018,30199241,1332.68,Revenue,Avery House (Peterborough) t/a Brighterkind,Residential Care
Peterborough City Council,Children's & Safeguarding,Children's Social Care,Agency Staff,02/11/2018,30199362,3308.75,Revenue,Liquid Personnel,External Temporary Staff
Peterborough City Council,Children's & Safeguarding,Children's Social Care,Agency Staff,02/11/2018,30199408,3978.30,Revenue,Liquid Personnel,External Temporary Staff
Peterborough City Council,Corporate Property,Office Accomodation,Services,02/11/2018,30199457,4177.19,Revenue,Jones Lang Lasalle,Interest
Peterborough City Council,Adults,Independent Sector Placements,Services,02/11/2018,30199497,-20507.14,Revenue,Avery House (Peterborough) t/a Brighterkind,Residential Care
Peterborough City Council,Commissioning and Commercial Operations,Commissioning,Third Party Payments,02/11/2018,30199507,69000.00,Revenue,Cambridgeshire County Council,Third Party Payments - Contract
Peterborough City Council,Commissioning and Commercial Operations,Commissioning Team,Agency Staff,02/11/2018,30199513,13439.46,Revenue,Sanctuary Personnel Ltd,External Temporary Staff
Peterborough City Council,Peterborough Serco Strategic Partnership,PSSP Retained Services,Services,02/11/2018,30199574,2728.54,Revenue,Whistl UK Ltd,Postage
Peterborough City Council,Peterborough Serco Strategic Partnership,PSSP Retained Services,Services,02/11/2018,30199575,1439.21,Revenue,Whistl UK Ltd,Postage
Peterborough City Council,Adults,Independent Sector Placements,Services,02/11/2018,30199643,3292.00,Revenue,Richmond Fellowship (The),Residential Care
Peterborough City Council,Adults,Independent Sector Placements,Services,02/11/2018,30199644,3244.00,Revenue,Richmond Fellowship (The),Residential Care
Peterborough City Council,Adults,Independent Sector Placements,Services,02/11/2018,30199673,1394.16,Revenue,The Regard Partnership Limited,Residential Care
Peterborough City Council,Adults,Independent Sector Placements,Services,02/11/2018,30199699,4559.00,Revenue,Voyage,Home Care
Peterborough City Council,Children's & Safeguarding,Children's Social Care,Agency Staff,02/11/2018,30199783,-7214.01,Revenue,Liquid Personnel,External Temporary Staff
Peterborough City Council,Adults,Independent Sector Placements,Services,02/11/2018,30199849,5492.24,Revenue,Anchor Homes,Residential Care
Peterborough City Council,Communities,Housing Enforcement,Customer and client receipts - Fees & Charges,02/11/2018,30200124,750.00,Revenue,Redacted Personal Information,Refunds
Peterborough City Council,Public Health,PH Commissioning,Third Party Payments,02/11/2018,30200188,1474.50,Revenue,Paston Health Centre,Third Party Payments - Contract
Peterborough City Council,Public Health,PH Commissioning,Third Party Payments,02/11/2018,30200193,2601.50,Revenue,Boroughbury Medical Centre,Third Party Payments - Contract
Peterborough City Council,Commissioning and Commercial Operations,Clare Lodge,Agency Staff,02/11/2018,30200216,613.44,Revenue,Reed Specialist Recruitment Limited,External Temporary Staff
Peterborough City Council,Adults,Home Services Delivery Model,Agency Staff,02/11/2018,30200240,788.62,Revenue,Reed Specialist Recruitment Limited,External Temporary Staff
Peterborough City Council,Communities,Housing,Agency Staff,02/11/2018,30200303,1822.51,Revenue,Reed Specialist Recruitment Limited,External Temporary Staff
Peterborough City Council,Children's & Safeguarding,Access to Resources & Specialist Commissioning,Services,02/11/2018,30200368,20150.00,Revenue,Hillcrest Children Serv(2)Ltd t/a Options BESD (1) Ltd,Boarding Out Fees
Peterborough City Council,Communities,Cohesion,Services,02/11/2018,30200521,624.00,Revenue,PARCA,Childcare
Peterborough City Council,Communities,Cohesion,Services,02/11/2018,30200527,624.00,Revenue,PARCA,Childcare
Peterborough City Council,Adults,Independent Sector Placements,Services,02/11/2018,30200556,14588.00,Revenue,Decoy Farm,Residential Care
Peterborough City Council,Children's & Safeguarding,Access to Resources & Specialist Commissioning,Services,02/11/2018,30200576,544.28,Revenue,PC Homes,Boarding Out Fees
Peterborough City Council,Children's & Safeguarding,Early Help ASC/CSC,Services,02/11/2018,30200588,15836.73,Revenue,Cross Keys Homes,Grant Payment
Peterborough City Council,Adults,Independent Sector Placements,Services,02/11/2018,30200704,1085.85,Revenue,Hales Group Ltd,Home Care
Peterborough City Council,Adults,Independent Sector Placements,Services,02/11/2018,30200706,1044.30,Revenue,Hales Group Ltd,Home Care
Peterborough City Council,Adults,Independent Sector Placements,Services,02/11/2018,30200708,1607.55,Revenue,Hales Group Ltd,Home Care
Peterborough City Council,Adults,Independent Sector Placements,Services,02/11/2018,30200710,5547.50,Revenue,Athena (Ashlynn Grange),Residential Care
Peterborough City Council,Adults,Independent Sector Placements,Services,02/11/2018,30200725,2604.00,Revenue,K2 CARE LTD,Home Care
Peterborough City Council,Adults,Independent Sector Placements,Services,02/11/2018,30200726,1078.00,Revenue,K2 CARE LTD,Home Care
Peterborough City Council,Adults,Independent Sector Placements,Services,02/11/2018,30200728,848.25,Revenue,K2 CARE LTD,Home Care
Peterborough City Council,Corporate,Corporate,Non Revenue,02/11/2018,30200729,10703.79,Capital,Lindum Group Ltd,Building And Site Works
Peterborough City Council,Adults,Independent Sector Placements,Services,02/11/2018,30200732,2940.00,Revenue,K2 CARE LTD,Home Care
Peterborough City Council,Adults,Independent Sector Placements,Services,02/11/2018,30200735,-898.06,Revenue,Athena (Ashlynn Grange),Residential Care
Peterborough City Council,Corporate,Corporate,Non Revenue,02/11/2018,30200742,5495.00,Capital,Ace 4 Digital,Furniture And Equipment Purchase
Peterborough City Council,Communities,Targeted Youth Service,Services,02/11/2018,30200745,540.00,Revenue,The Princes Trust,Youth Programmes
Peterborough City Council,ICT,ICT,Services,02/11/2018,30200747,5892.01,Revenue,Capita Business Services Ltd,Computer Software
Peterborough City Council,Children's & Safeguarding,Access to Resources & Specialist Commissioning,Services,02/11/2018,30200748,1869.00,Revenue,Transition Care Peterborough Ltd,Boarding Out Fees
Peterborough City Council,Peterborough Highway Services,Asset & Contract Performance,Services,02/11/2018,30200751,5000.00,Revenue,Cambridgeshire County Council,Subscriptions
Peterborough City Council,Adults,Independent Sector Placements,Services,02/11/2018,30200752,1372.00,Revenue,K2 CARE LTD,Home Care
Peterborough City Council,Adults,Independent Sector Placements,Services,02/11/2018,30200753,980.00,Revenue,K2 CARE LTD,Home Care
Peterborough City Council,Adults,Independent Sector Placements,Services,02/11/2018,30200755,903.00,Revenue,K2 CARE LTD,Home Care
Peterborough City Council,Adults,Independent Sector Placements,Services,02/11/2018,30200756,1175.54,Revenue,K2 CARE LTD,Home Care
Peterborough City Council,Adults,Independent Sector Placements,Services,02/11/2018,30200757,1185.74,Revenue,K2 CARE LTD,Home Care
Peterborough City Council,Adults,Independent Sector Placements,Services,02/11/2018,30200758,952.00,Revenue,K2 CARE LTD,Home Care
Peterborough City Council,Adults,Independent Sector Placements,Services,02/11/2018,30200759,2969.86,Revenue,K2 CARE LTD,Home Care
Peterborough City Council,Adults,Independent Sector Placements,Services,02/11/2018,30200760,1788.26,Revenue,K2 CARE LTD,Home Care
Peterborough City Council,Adults,Independent Sector Placements,Services,02/11/2018,30200762,1170.40,Revenue,K2 CARE LTD,Home Care
Peterborough City Council,Adults,Independent Sector Placements,Services,02/11/2018,30200763,1568.00,Revenue,K2 CARE LTD,Home Care
Peterborough City Council,Adults,Independent Sector Placements,Services,02/11/2018,30200767,1778.00,Revenue,K2 CARE LTD,Home Care
Peterborough City Council,Children's & Safeguarding,Access to Resources & Specialist Commissioning,Services,02/11/2018,30200777,840.00,Revenue,Florinee Homes Ltd,Boarding Out Fees
Peterborough City Council,Children's & Safeguarding,Access to Resources & Specialist Commissioning,Services,02/11/2018,30200802,1377.00,Revenue,Transition Care Peterborough Ltd,Boarding Out Fees
Peterborough City Council,Education,Special Educational Needs / Inclusion,Agency Staff,02/11/2018,30200807,5610.00,Revenue,Sanctuary Personnel Ltd,External Temporary Staff
Peterborough City Council,Children's & Safeguarding,Access to Resources & Specialist Commissioning,Services,02/11/2018,30200813,810.60,Revenue,Maze Independent Care Ltd,Purchased Social Care Services
Peterborough City Council,Adults,Independent Sector Placements,Services,02/11/2018,30200830,1318.85,Revenue,Peterborough Care  The Maltings,Residential Care
Peterborough City Council,Commissioning and Commercial Operations,Commissioning,Services,02/11/2018,30200833,1340.00,Revenue,BDP Social Care Ltd,Hired Services
Peterborough City Council,Adults,Independent Sector Placements,Services,02/11/2018,30200902,3239.70,Revenue,K2 CARE LTD,Home Care
Peterborough City Council,Constitutional Services,Elections,Services,02/11/2018,30200921,1198.67,Revenue,Royal Mail,Postage
Peterborough City Council,Corporate,Corporate,Non Revenue,02/11/2018,30200926,583.56,Capital,East Community Bowls Club,Grant Payment
Peterborough City Council,Adults,Independent Sector Placements,Services,02/11/2018,30200933,4652.60,Revenue,Voyage,Residential Care
Peterborough City Council,Adults,Independent Sector Placements,Services,02/11/2018,30200934,4652.60,Revenue,Voyage,Residential Care
Peterborough City Council,Adults,Independent Sector Placements,Services,02/11/2018,30200936,-4788.00,Revenue,Voyage,Residential Care
Peterborough City Council,Adults,Independent Sector Placements,Services,02/11/2018,30200937,5667.37,Revenue,Anchor Homes,Residential Care
Peterborough City Council,Corporate,Corporate,Non Revenue,02/11/2018,30200944,601288.09,Balance Sheet,Teachers Pensions,Pensions
Peterborough City Council,Adults,Independent Sector Placements,Services,02/11/2018,30200977,3400.00,Revenue,EXCELCARE GLENNFIELD HOUSE,Residential Care
Peterborough City Council,Adults,Independent Sector Placements,Services,02/11/2018,30200978,2540.00,Revenue,EXCELCARE GLENNFIELD HOUSE,Residential Care
Peterborough City Council,Children's & Safeguarding,Access to Resources & Specialist Commissioning,Services,02/11/2018,30201002,2205.00,Revenue,Transition Care Peterborough Ltd,Boarding Out Fees
Peterborough City Council,Westcombe Engineering,Westcombe Engineering,"Tools, Equipment, Furniture & Materials",02/11/2018,30201010,1163.00,Revenue,Barron Clark Castings Ltd,Materials
Peterborough City Council,Communities,Housing,Services,02/11/2018,30201030,2975.00,Revenue,Singh and Sons Property Management Ltd,Temporary Accommodation Costs
Peterborough City Council,Communities,Housing,Services,02/11/2018,30201034,2275.00,Revenue,Singh and Sons Property Management Ltd,Temporary Accommodation Costs
Peterborough City Council,Communities,Housing,Services,02/11/2018,30201036,3150.00,Revenue,Singh and Sons Property Management Ltd,Temporary Accommodation Costs
Peterborough City Council,Communities,Housing,Services,02/11/2018,30201037,3220.00,Revenue,Singh and Sons Property Management Ltd,Temporary Accommodation Costs
Peterborough City Council,Adults,Independent Sector Placements,Services,02/11/2018,30201041,2648.00,Revenue,PHILIA LODGE REST HOME,Residential Care
Peterborough City Council,Adults,Independent Sector Placements,Services,02/11/2018,30201042,1236.72,Revenue,PHILIA LODGE REST HOME,Residential Care
Peterborough City Council,Adults,Independent Sector Placements,Services,02/11/2018,30201043,2648.00,Revenue,PHILIA LODGE REST HOME,Residential Care
Peterborough City Council,Adults,Independent Sector Placements,Services,02/11/2018,30201044,1674.44,Revenue,PHILIA LODGE REST HOME,Residential Care
Peterborough City Council,Adults,Independent Sector Placements,Services,02/11/2018,30201045,2648.00,Revenue,PHILIA LODGE REST HOME,Residential Care
Peterborough City Council,Programme Management Office,Programme Management Office,Services,02/11/2018,30201046,28457.20,Revenue,4OC Ltd,Consultants Fees
Peterborough City Council,Communities,Housing,Services,02/11/2018,30201049,575.00,Revenue,Oak County Property Management,Financial Assistance
Peterborough City Council,Communities,Housing,Services,02/11/2018,30201053,1049.58,Revenue,Woodcock Holmes,Financial Assistance
Peterborough City Council,Adults,Home Services Delivery Model,Services,02/11/2018,30201867,2462.44,Revenue,Lynch Healthcare Limited,Grant Payment
Peterborough City Council,Adults,Independent Sector Placements,Services,02/11/2018,8000126971,2039.10,Revenue,Hales Group Ltd,Home Care
Peterborough City Council,Adults,Independent Sector Placements,Services,02/11/2018,8000126975,718.65,Revenue,Hales Group Ltd,Home Care
Peterborough City Council,Adults,Independent Sector Placements,Services,02/11/2018,8000126978,548.85,Revenue,Hales Group Ltd,Home Care
Peterborough City Council,Adults,Independent Sector Placements,Services,02/11/2018,8000126979,904.80,Revenue,Hales Group Ltd,Home Care
Peterborough City Council,Adults,Independent Sector Placements,Services,02/11/2018,8000126981,2374.40,Revenue,Hales Group Ltd,Home Care
Peterborough City Council,Adults,Independent Sector Placements,Services,02/11/2018,8000126982,3433.95,Revenue,Hales Group Ltd,Home Care
Peterborough City Council,Adults,Independent Sector Placements,Services,02/11/2018,8000126983,551.55,Revenue,Hales Group Ltd,Home Care
Peterborough City Council,Adults,Independent Sector Placements,Services,02/11/2018,8000126986,1879.95,Revenue,Hales Group Ltd,Home Care
Peterborough City Council,Adults,Independent Sector Placements,Services,02/11/2018,8000126988,1012.05,Revenue,Hales Group Ltd,Home Care
Peterborough City Council,Adults,Independent Sector Placements,Services,02/11/2018,8000126992,546.90,Revenue,Hales Group Ltd,Home Care
Peterborough City Council,Adults,Independent Sector Placements,Services,02/11/2018,8000126995,692.55,Revenue,Hales Group Ltd,Home Care
Peterborough City Council,Adults,Independent Sector Placements,Services,02/11/2018,8000126997,681.75,Revenue,Hales Group Ltd,Home Care
Peterborough City Council,Adults,Independent Sector Placements,Services,02/11/2018,8000127000,967.80,Revenue,Hales Group Ltd,Home Care
Peterborough City Council,Adults,Independent Sector Placements,Services,02/11/2018,8000127001,952.50,Revenue,Hales Group Ltd,Home Care
Peterborough City Council,Adults,Independent Sector Placements,Services,02/11/2018,8000127004,1315.20,Revenue,Hales Group Ltd,Home Care
Peterborough City Council,Adults,Independent Sector Placements,Services,02/11/2018,8000127006,2991.15,Revenue,Hales Group Ltd,Home Care
Peterborough City Council,Adults,Independent Sector Placements,Services,02/11/2018,8000127007,582.60,Revenue,Hales Group Ltd,Home Care
Peterborough City Council,Adults,Independent Sector Placements,Services,02/11/2018,8000127008,1422.45,Revenue,Hales Group Ltd,Home Care
Peterborough City Council,Adults,Independent Sector Placements,Services,02/11/2018,8000127009,748.50,Revenue,Hales Group Ltd,Home Care
Peterborough City Council,Adults,Independent Sector Placements,Services,02/11/2018,8000127010,976.80,Revenue,Hales Group Ltd,Home Care
Peterborough City Council,Adults,Independent Sector Placements,Services,02/11/2018,8000127011,1216.20,Revenue,Hales Group Ltd,Home Care
Peterborough City Council,Adults,Independent Sector Placements,Services,02/11/2018,8000127014,666.45,Revenue,Hales Group Ltd,Home Care
Peterborough City Council,Adults,Independent Sector Placements,Services,02/11/2018,8000127015,841.80,Revenue,Hales Group Ltd,Home Care
Peterborough City Council,Adults,Independent Sector Placements,Services,02/11/2018,8000127019,1229.25,Revenue,Hales Group Ltd,Home Care
Peterborough City Council,Adults,Independent Sector Placements,Services,02/11/2018,8000127020,794.10,Revenue,Hales Group Ltd,Home Care
Peterborough City Council,Adults,Independent Sector Placements,Services,02/11/2018,8000127021,1010.40,Revenue,Hales Group Ltd,Home Care
Peterborough City Council,Adults,Independent Sector Placements,Services,02/11/2018,8000127024,653.55,Revenue,Hales Group Ltd,Home Care
Peterborough City Council,Adults,Independent Sector Placements,Services,02/11/2018,8000127025,1214.55,Revenue,Hales Group Ltd,Home Care
Peterborough City Council,Adults,Independent Sector Placements,Services,02/11/2018,8000127026,873.30,Revenue,Hales Group Ltd,Home Care
Peterborough City Council,Adults,Independent Sector Placements,Services,02/11/2018,8000127027,1465.05,Revenue,Hales Group Ltd,Home Care
Peterborough City Council,Adults,Independent Sector Placements,Services,02/11/2018,8000127028,866.85,Revenue,Hales Group Ltd,Home Care
Peterborough City Council,Adults,Independent Sector Placements,Services,02/11/2018,8000127030,839.25,Revenue,Hales Group Ltd,Home Care
Peterborough City Council,Adults,Independent Sector Placements,Services,02/11/2018,8000127031,973.20,Revenue,Hales Group Ltd,Home Care
Peterborough City Council,Adults,Independent Sector Placements,Services,02/11/2018,8000127033,617.25,Revenue,Hales Group Ltd,Home Care
Peterborough City Council,Adults,Independent Sector Placements,Services,02/11/2018,8000127034,799.35,Revenue,Hales Group Ltd,Home Care
Peterborough City Council,Adults,Independent Sector Placements,Services,02/11/2018,8000127861,529.20,Revenue,Axiom Housing Association Ltd,Home Care
Peterborough City Council,Adults,Independent Sector Placements,Services,02/11/2018,8000127866,588.00,Revenue,Axiom Housing Association Ltd,Home Care
Peterborough City Council,Adults,Independent Sector Placements,Services,02/11/2018,8000127871,1946.88,Revenue,Allied Healthcare (UK) Ltd,Home Care
Peterborough City Council,Adults,Independent Sector Placements,Services,02/11/2018,8000128143,588.00,Revenue,Axiom Housing Association Ltd,Home Care
Peterborough City Council,Adults,Independent Sector Placements,Services,02/11/2018,8000128147,737.94,Revenue,Axiom Housing Association Ltd,Home Care
Peterborough City Council,Adults,Independent Sector Placements,Services,02/11/2018,8000128150,940.80,Revenue,Axiom Housing Association Ltd,Home Care
Peterborough City Council,Adults,Independent Sector Placements,Services,02/11/2018,8000128151,793.80,Revenue,Axiom Housing Association Ltd,Home Care
Peterborough City Council,Adults,Independent Sector Placements,Services,02/11/2018,8000128154,823.20,Revenue,Axiom Housing Association Ltd,Home Care
Peterborough City Council,Adults,Independent Sector Placements,Services,02/11/2018,8000128157,646.80,Revenue,Axiom Housing Association Ltd,Home Care
Peterborough City Council,Adults,Independent Sector Placements,Services,02/11/2018,8000128160,601.60,Revenue,Axiom Housing Association Ltd,Home Care
Peterborough City Council,Education,HTS & CSC Transport,Contract Hire and Operating Leases,02/11/2018,8000128396,1650.00,Revenue,A2B Euro Cars,Hired Transport
Peterborough City Council,Education,HTS & CSC Transport,Contract Hire and Operating Leases,02/11/2018,8000128397,1590.00,Revenue,A2B Euro Cars,Hired Transport
Peterborough City Council,Education,HTS & CSC Transport,Contract Hire and Operating Leases,02/11/2018,8000128398,4750.00,Revenue,Grettons Coaches,Hired Transport
Peterborough City Council,Education,HTS & CSC Transport,Contract Hire and Operating Leases,02/11/2018,8000128399,3655.00,Revenue,Grettons Coaches,Hired Transport
Peterborough City Council,Education,HTS & CSC Transport,Contract Hire and Operating Leases,02/11/2018,8000128400,554.00,Revenue,R T Enterprises Ltd T/A Royal Taxis,Hired Transport
Peterborough City Council,Education,HTS & CSC Transport,Contract Hire and Operating Leases,02/11/2018,8000128401,1098.00,Revenue,R T Enterprises Ltd T/A Royal Taxis,Hired Transport
Peterborough City Council,Education,HTS & CSC Transport,Contract Hire and Operating Leases,02/11/2018,8000128402,1453.50,Revenue,R T Enterprises Ltd T/A Royal Taxis,Hired Transport
Peterborough City Council,Education,HTS & CSC Transport,Contract Hire and Operating Leases,02/11/2018,8000128403,1666.80,Revenue,Eames Minibuses Ltd,Hired Transport
Peterborough City Council,Education,HTS & CSC Transport,Contract Hire and Operating Leases,02/11/2018,8000128404,1224.00,Revenue,Goldstar Cabs Ltd,Hired Transport
Peterborough City Council,Education,HTS & CSC Transport,Contract Hire and Operating Leases,02/11/2018,8000128405,1231.99,Revenue,Goldstar Cabs Ltd,Hired Transport
Peterborough City Council,Education,HTS & CSC Transport,Contract Hire and Operating Leases,02/11/2018,8000128407,872.00,Revenue,Goldstar Cabs Ltd,Hired Transport
Peterborough City Council,Education,HTS & CSC Transport,Contract Hire and Operating Leases,02/11/2018,8000128408,1535.30,Revenue,Goldstar Cabs Ltd,Hired Transport
Peterborough City Council,Education,HTS & CSC Transport,Contract Hire and Operating Leases,02/11/2018,8000128409,2404.00,Revenue,Goldstar Cabs Ltd,Hired Transport
Peterborough City Council,Education,HTS & CSC Transport,Contract Hire and Operating Leases,02/11/2018,8000128410,1869.99,Revenue,Goldstar Cabs Ltd,Hired Transport
Peterborough City Council,Education,HTS & CSC Transport,Contract Hire and Operating Leases,02/11/2018,8000128411,1402.50,Revenue,Goldstar Cabs Ltd,Hired Transport
Peterborough City Council,Education,HTS & CSC Transport,Contract Hire and Operating Leases,02/11/2018,8000128412,2150.49,Revenue,Goldstar Cabs Ltd,Hired Transport
Peterborough City Council,Education,HTS & CSC Transport,Contract Hire and Operating Leases,02/11/2018,8000128413,1899.00,Revenue,Goldstar Cabs Ltd,Hired Transport
Peterborough City Council,Education,HTS & CSC Transport,Contract Hire and Operating Leases,02/11/2018,8000128414,1402.50,Revenue,Goldstar Cabs Ltd,Hired Transport
Peterborough City Council,Education,HTS & CSC Transport,Contract Hire and Operating Leases,02/11/2018,8000128415,1020.00,Revenue,Goldstar Cabs Ltd,Hired Transport
Peterborough City Council,Education,HTS & CSC Transport,Contract Hire and Operating Leases,02/11/2018,8000128416,1248.00,Revenue,Goldstar Cabs Ltd,Hired Transport
Peterborough City Council,Education,HTS & CSC Transport,Contract Hire and Operating Leases,02/11/2018,8000128417,1165.18,Revenue,Goldstar Cabs Ltd,Hired Transport
Peterborough City Council,Education,HTS & CSC Transport,Contract Hire and Operating Leases,02/11/2018,8000128418,828.00,Revenue,Goldstar Cabs Ltd,Hired Transport
Peterborough City Council,Education,HTS & CSC Transport,Contract Hire and Operating Leases,02/11/2018,8000128423,3555.00,Revenue,Marks Passenger Services Ltd,Hired Transport
Peterborough City Council,Adults,Independent Sector Placements,Services,02/11/2018,8000128453,864.00,Revenue,Springfield Care Limited  T/a Caring Crew,Home Care
Peterborough City Council,Adults,Independent Sector Placements,Services,02/11/2018,8000128455,2940.00,Revenue,Springfield Care Limited  T/a Caring Crew,Home Care
Peterborough City Council,Adults,Independent Sector Placements,Services,02/11/2018,8000128456,840.00,Revenue,Springfield Care Limited  T/a Caring Crew,Home Care
Peterborough City Council,Adults,Independent Sector Placements,Services,02/11/2018,8000128461,1002.05,Revenue,Atlas Care Services Ltd,Home Care
Peterborough City Council,Adults,Independent Sector Placements,Services,02/11/2018,8000128464,735.00,Revenue,Springfield Care Limited  T/a Caring Crew,Home Care
Peterborough City Council,Adults,Independent Sector Placements,Services,02/11/2018,8000128469,637.50,Revenue,Springfield Care Limited  T/a Caring Crew,Home Care
Peterborough City Council,Adults,Independent Sector Placements,Services,02/11/2018,8000128470,2842.39,Revenue,Cross Keys Homes,Home Care
Peterborough City Council,Adults,Independent Sector Placements,Services,02/11/2018,8000128471,532.25,Revenue,Cross Keys Homes,Home Care
Peterborough City Council,Adults,Independent Sector Placements,Services,02/11/2018,8000128475,904.01,Revenue,Cross Keys Homes,Home Care
Peterborough City Council,Adults,Independent Sector Placements,Services,02/11/2018,8000128476,570.50,Revenue,Cross Keys Homes,Home Care
Peterborough City Council,Adults,Independent Sector Placements,Services,02/11/2018,8000128484,744.25,Revenue,Cross Keys Homes,Home Care
Peterborough City Council,Adults,Independent Sector Placements,Services,02/11/2018,8000128487,835.50,Revenue,Cross Keys Homes,Home Care
Peterborough City Council,Adults,Independent Sector Placements,Services,02/11/2018,8000128489,972.99,Revenue,Cross Keys Homes,Home Care
Peterborough City Council,Adults,Independent Sector Placements,Services,02/11/2018,8000128490,758.25,Revenue,Cross Keys Homes,Home Care
Peterborough City Council,Adults,Independent Sector Placements,Services,02/11/2018,8000128492,701.50,Revenue,Cross Keys Homes,Home Care
Peterborough City Council,Adults,Independent Sector Placements,Services,02/11/2018,8000128493,888.75,Revenue,Cross Keys Homes,Home Care
Peterborough City Council,Adults,Independent Sector Placements,Services,02/11/2018,8000128494,518.50,Revenue,Cross Keys Homes,Home Care
Peterborough City Council,Adults,Independent Sector Placements,Services,02/11/2018,8000128497,18018.00,Revenue,Atlas Care Services Ltd,Home Care
Peterborough City Council,Adults,Independent Sector Placements,Services,02/11/2018,8000128499,606.34,Revenue,Atlas Care Services Ltd,Home Care
Peterborough City Council,Adults,Independent Sector Placements,Services,02/11/2018,8000128504,1427.81,Revenue,Atlas Care Services Ltd,Home Care
Peterborough City Council,Adults,Independent Sector Placements,Services,02/11/2018,8000128512,1247.23,Revenue,Atlas Care Services Ltd,Home Care
Peterborough City Council,Adults,Independent Sector Placements,Services,02/11/2018,8000128513,665.27,Revenue,Atlas Care Services Ltd,Home Care
Peterborough City Council,Adults,Independent Sector Placements,Services,02/11/2018,8000128515,679.47,Revenue,Atlas Care Services Ltd,Home Care
Peterborough City Council,Adults,Independent Sector Placements,Services,02/11/2018,8000128517,2825.80,Revenue,Atlas Care Services Ltd,Home Care
Peterborough City Council,Adults,Independent Sector Placements,Services,02/11/2018,8000128520,1862.80,Revenue,Atlas Care Services Ltd,Home Care
Peterborough City Council,Adults,Independent Sector Placements,Services,02/11/2018,8000128521,502.92,Revenue,Atlas Care Services Ltd,Home Care
Peterborough City Council,Adults,Independent Sector Placements,Services,02/11/2018,8000128523,1966.23,Revenue,Atlas Care Services Ltd,Home Care
Peterborough City Council,Adults,Independent Sector Placements,Services,02/11/2018,8000128525,570.37,Revenue,Atlas Care Services Ltd,Home Care
Peterborough City Council,Adults,Independent Sector Placements,Services,02/11/2018,8000128526,597.58,Revenue,Atlas Care Services Ltd,Home Care
Peterborough City Council,Adults,Independent Sector Placements,Services,02/11/2018,8000128528,1668.50,Revenue,Atlas Care Services Ltd,Home Care
Peterborough City Council,Adults,Independent Sector Placements,Services,02/11/2018,8000128530,916.61,Revenue,Atlas Care Services Ltd,Home Care
Peterborough City Council,Adults,Independent Sector Placements,Services,02/11/2018,8000128533,663.61,Revenue,Atlas Care Services Ltd,Home Care
Peterborough City Council,Adults,Independent Sector Placements,Services,02/11/2018,8000128535,1273.27,Revenue,Atlas Care Services Ltd,Home Care
Peterborough City Council,Adults,Independent Sector Placements,Services,02/11/2018,8000128537,976.49,Revenue,Atlas Care Services Ltd,Home Care
Peterborough City Council,Adults,Independent Sector Placements,Services,02/11/2018,8000128544,683.02,Revenue,Atlas Care Services Ltd,Home Care
Peterborough City Council,Adults,Independent Sector Placements,Services,02/11/2018,8000128547,1511.59,Revenue,Atlas Care Services Ltd,Home Care
Peterborough City Council,Adults,Independent Sector Placements,Services,02/11/2018,8000128549,600.00,Revenue,Cross Keys Homes,Home Care
Peterborough City Council,Adults,Independent Sector Placements,Services,02/11/2018,8000128559,828.00,Revenue,Merit Home Care Ltd,Home Care
Peterborough City Council,Adults,Independent Sector Placements,Services,02/11/2018,8000128567,814.20,Revenue,Merit Home Care Ltd,Home Care
Peterborough City Council,Communities,Community Safety,Services,05/11/2018,30198728,1274.00,Revenue,Colan Ltd,Road Safety
Peterborough City Council,Adults,Independent Sector Placements,Services,05/11/2018,30198762,3880.88,Revenue,Bandrum Nursing Home Ltd,Residential Care
Peterborough City Council,Adults,Independent Sector Placements,Services,05/11/2018,30198763,3880.88,Revenue,Bandrum Nursing Home Ltd,Residential Care
Peterborough City Council,Children's & Safeguarding,Children's Social Care,Agency Staff,05/11/2018,30198809,1406.00,Revenue,NonStop Recruitment Ltd,External Temporary Staff
Peterborough City Council,City Centre Management,"Markets, Tourism & Events",Advertising,05/11/2018,30198811,530.00,Revenue,Fastsigns (Peterborough) Ltd,Advertising
Peterborough City Council,Parking Services,Parking Services,Services,05/11/2018,30198828,3000.00,Revenue,C N SECURITY,Security
Peterborough City Council,Corporate,Corporate,Non Revenue,05/11/2018,30198926,4776.40,Capital,Enterprise Managed Services Limited,Consultants Fees
Peterborough City Council,Westcombe Engineering,Westcombe Engineering,"Tools, Equipment, Furniture & Materials",05/11/2018,30198927,558.91,Revenue,Carillon Industrial Services Ltd,Tools
Peterborough City Council,Legal Services,Legal Services,Services,05/11/2018,30198940,550.00,Revenue,"Sleight, Mr Nigel",Legal Costs
Peterborough City Council,Education,HTS & CSC Transport,Contract Hire and Operating Leases,05/11/2018,30198958,12621.00,Revenue,Statutory Payment of Concessionary Fares to Bus Provider,Hired Transport
Peterborough City Council,Children's & Safeguarding,Children's Social Care,Agency Staff,05/11/2018,30199054,4216.97,Revenue,Liquid Personnel,External Temporary Staff
Peterborough City Council,Corporate,Corporate,Non Revenue,05/11/2018,30199353,4185.00,Capital,M J Greaves,Grant Payment
Peterborough City Council,HR,HR,Services,05/11/2018,30199462,691.50,Revenue,AXA PPP Healthcare OHS Ltd,Hired Services
Peterborough City Council,Adults,Independent Sector Placements,Services,05/11/2018,30199674,2181.60,Revenue,Southwark Park Nursing Homes - Blenheim Care Centre,Residential Care
Peterborough City Council,Westcombe Engineering,Westcombe Engineering,"Tools, Equipment, Furniture & Materials",05/11/2018,30199702,794.80,Revenue,Barron Clark Castings Ltd,Materials
Peterborough City Council,Westcombe Engineering,Westcombe Engineering,"Tools, Equipment, Furniture & Materials",05/11/2018,30199703,698.40,Revenue,Barron Clark Castings Ltd,Materials
Peterborough City Council,Commissioning and Commercial Operations,Commissioning,Energy Costs,05/11/2018,30200261,518.26,Revenue,Corona Energy Retail 4 Limited,Gas
Peterborough City Council,Communities,Targeted Youth Service,Energy Costs,05/11/2018,30200261,628.82,Revenue,Corona Energy Retail 4 Limited,Gas
Peterborough City Council,Legal Services,Legal Services,Agency Staff,05/11/2018,30200296,1944.36,Revenue,Reed Specialist Recruitment Limited,External Temporary Staff
Peterborough City Council,Children's & Safeguarding,Children's Social Care,Agency Staff,05/11/2018,30200297,2665.54,Revenue,Liquid Personnel,External Temporary Staff
Peterborough City Council,Commissioning and Commercial Operations,Clare Lodge,Energy Costs,05/11/2018,30200477,535.11,Revenue,Corona Energy Retail 4 Limited,Gas
Peterborough City Council,Communities,Cultural Services,Energy Costs,05/11/2018,30200477,1305.51,Revenue,Corona Energy Retail 4 Limited,Gas
Peterborough City Council,Corporate,Corporate,Non Revenue,05/11/2018,30200497,4601.00,Capital,Gaswise Services Ltd,Grant Payment
Peterborough City Council,Children's & Safeguarding,External Education Placements,Services,05/11/2018,30200597,10881.66,Revenue,Maplefields Academy,Education Expenses
Peterborough City Council,Communities,Cultural Services,Energy Costs,05/11/2018,30200715,638.23,Revenue,Corona Energy Retail 4 Limited,Gas
Peterborough City Council,Adults,Independent Sector Placements,Services,05/11/2018,30201059,1822.20,Revenue,PHILIA LODGE REST HOME,Residential Care
Peterborough City Council,Corporate,Corporate,Non Revenue,05/11/2018,30201067,2270.00,Capital,Dolphin Mobility East Midlands Ltd,Grant Payment
Peterborough City Council,Corporate,Corporate,Non Revenue,05/11/2018,30201068,4985.40,Capital,Rawheat Heating & Plumbing Eng.,Grant Payment
Peterborough City Council,Adults,Independent Sector Placements,Services,05/11/2018,30201075,1490.24,Revenue,STAR RESIDENTIAL HOME LTD,Residential Care
Peterborough City Council,Adults,Independent Sector Placements,Services,05/11/2018,30201076,2776.84,Revenue,STAR RESIDENTIAL HOME LTD,Residential Care
Peterborough City Council,Adults,Independent Sector Placements,Services,05/11/2018,30201077,3233.44,Revenue,STAR RESIDENTIAL HOME LTD,Residential Care
Peterborough City Council,Adults,Independent Sector Placements,Services,05/11/2018,30201078,3233.44,Revenue,STAR RESIDENTIAL HOME LTD,Residential Care
Peterborough City Council,Adults,Independent Sector Placements,Services,05/11/2018,30201079,2685.04,Revenue,STAR RESIDENTIAL HOME LTD,Residential Care
Peterborough City Council,Adults,Independent Sector Placements,Services,05/11/2018,30201080,2684.04,Revenue,STAR RESIDENTIAL HOME LTD,Residential Care
Peterborough City Council,Adults,Independent Sector Placements,Services,05/11/2018,30201081,2680.24,Revenue,STAR RESIDENTIAL HOME LTD,Residential Care
Peterborough City Council,Adults,Independent Sector Placements,Services,05/11/2018,30201082,2354.56,Revenue,STAR RESIDENTIAL HOME LTD,Residential Care
Peterborough City Council,Adults,Independent Sector Placements,Services,05/11/2018,30201104,2648.00,Revenue,PHILIA LODGE REST HOME,Residential Care
Peterborough City Council,Adults,Strategic Commissioning - Management,Agency Staff,05/11/2018,30201265,664.28,Revenue,Reed Specialist Recruitment Limited,External Temporary Staff
Peterborough City Council,Commissioning and Commercial Operations,Early Years & Quality Improvement,Services,05/11/2018,30201403,4942.56,Revenue,Pakistan Comm Ass of PBoro Pre- School,Grant Payment
Peterborough City Council,Education,HTS & CSC Transport,Contract Hire and Operating Leases,05/11/2018,8000128581,1831.00,Revenue,Goldstar Cabs Ltd,Hired Transport
Peterborough City Council,Education,HTS & CSC Transport,Contract Hire and Operating Leases,05/11/2018,8000128582,2082.50,Revenue,Goldstar Cabs Ltd,Hired Transport
Peterborough City Council,Education,HTS & CSC Transport,Contract Hire and Operating Leases,05/11/2018,8000128591,520.80,Revenue,Redacted Personal Information,Hired Transport
Peterborough City Council,Education,HTS & CSC Transport,Contract Hire and Operating Leases,05/11/2018,8000128593,583.00,Revenue,The Taxi Firm Limited,Hired Transport
Peterborough City Council,Education,HTS & CSC Transport,Contract Hire and Operating Leases,05/11/2018,8000128596,848.00,Revenue,The Taxi Firm Limited,Hired Transport
Peterborough City Council,Corporate Property,Office Accomodation,Rents,07/11/2018,30192861,57050.40,Revenue,Alps Group Ltd,Rent
Peterborough City Council,Corporate Property,Office Accomodation,Rents,07/11/2018,30193004,-47542.00,Revenue,Alps Group Ltd,Rent
Peterborough City Council,Corporate Property,Office Accomodation,Rents,07/11/2018,30193005,-37771.84,Revenue,Alps Group Ltd,Rent
Peterborough City Council,Children's & Safeguarding,Commissioning - CSC,Services,07/11/2018,30197814,821.33,Revenue,K2 CARE LTD,Purchased Social Care Services
Peterborough City Council,Corporate Property,Commercial Propety,Services,07/11/2018,30197945,934.88,Revenue,Richardson Chartered Surveyors,Valuations
Peterborough City Council,Commissioning and Commercial Operations,Clare Lodge,Agency Staff,07/11/2018,30198634,2280.00,Revenue,Wrixon Care Services,External Temporary Staff
Peterborough City Council,Commissioning and Commercial Operations,Clare Lodge,Agency Staff,07/11/2018,30198636,1968.00,Revenue,Wrixon Care Services,External Temporary Staff
Peterborough City Council,Commissioning and Commercial Operations,Clare Lodge,Agency Staff,07/11/2018,30198637,1392.00,Revenue,Wrixon Care Services,External Temporary Staff
Peterborough City Council,Commissioning and Commercial Operations,Clare Lodge,Agency Staff,07/11/2018,30198638,544.00,Revenue,Wrixon Care Services,External Temporary Staff
Peterborough City Council,Commissioning and Commercial Operations,Clare Lodge,Agency Staff,07/11/2018,30198639,2176.00,Revenue,Wrixon Care Services,External Temporary Staff
Peterborough City Council,"Waste, Cleansing and Open Spaces",Waste Management,Services,07/11/2018,30198661,18472.23,Revenue,AmeyCespa (East) Ltd,Recycling
Peterborough City Council,Peterborough Highway Services,Network and Traffic Management,Advertising,07/11/2018,30198750,632.28,Revenue,Johnston Press Midlands Division,Advertising
Peterborough City Council,Peterborough Highway Services,Network and Traffic Management,Advertising,07/11/2018,30198758,1379.37,Revenue,Johnston Press Midlands Division,Advertising
Peterborough City Council,Legal Services,Legal Services,Agency Staff,07/11/2018,30198780,2274.60,Revenue,Venn Group Ltd,External Temporary Staff
Peterborough City Council,Legal Services,Legal Services,Agency Staff,07/11/2018,30198782,765.00,Revenue,Venn Group Ltd,External Temporary Staff
Peterborough City Council,Legal Services,Legal Services,Agency Staff,07/11/2018,30198787,2062.50,Revenue,Venn Group Ltd,External Temporary Staff
Peterborough City Council,Legal Services,Legal Services,Agency Staff,07/11/2018,30198791,880.00,Revenue,Venn Group Ltd,External Temporary Staff
Peterborough City Council,"Waste, Cleansing and Open Spaces",Waste Management,Services,07/11/2018,30198835,24986.84,Revenue,Material Change Composting Ltd,Recycling
Peterborough City Council,Communities,Cohesion,Third Party Payments,07/11/2018,30198846,3999.66,Revenue,Solutions 4 Health Ltd,Grant-Third Party
Peterborough City Council,Financial Services,Insurance,Services,07/11/2018,30198858,5816.00,Revenue,Weightmans LLP,Legal Costs
Peterborough City Council,Adults,Independent Sector Placements,Services,07/11/2018,30198884,1518.51,Revenue,Athena (Ashlynn Grange),Residential Care
Peterborough City Council,City Centre Management,"Markets, Tourism & Events","Tools, Equipment, Furniture & Materials",07/11/2018,30198925,6885.00,Revenue,Landsman's Ltd,Hire of Equipment
Peterborough City Council,Westcombe Engineering,Westcombe Engineering,"Tools, Equipment, Furniture & Materials",07/11/2018,30198956,552.00,Revenue,AALCO,Materials
Peterborough City Council,Westcombe Engineering,Westcombe Engineering,"Tools, Equipment, Furniture & Materials",07/11/2018,30198957,1101.00,Revenue,AALCO,Materials
Peterborough City Council,Development and Construction,Planning Compliance,Agency Staff,07/11/2018,30198962,1597.20,Revenue,Park Avenue Recruitment Limited,External Temporary Staff
Peterborough City Council,Children's & Safeguarding,Access to Resources & Specialist Commissioning,Services,07/11/2018,30198965,16832.43,Revenue,Blue Mountain Homes,Boarding Out Fees
Peterborough City Council,Adults,Independent Sector Placements,Services,07/11/2018,30199006,1236.92,Revenue,Maxey House Res Home,Residential Care
Peterborough City Council,Adults,Independent Sector Placements,Services,07/11/2018,30199008,1215.16,Revenue,Maxey House Res Home,Residential Care
Peterborough City Council,Adults,Independent Sector Placements,Services,07/11/2018,30199009,1576.24,Revenue,Maxey House Res Home,Residential Care
Peterborough City Council,Adults,Independent Sector Placements,Services,07/11/2018,30199010,1225.20,Revenue,Maxey House Res Home,Residential Care
Peterborough City Council,Adults,Independent Sector Placements,Services,07/11/2018,30199012,1037.16,Revenue,Maxey House Res Home,Residential Care
Peterborough City Council,Adults,Independent Sector Placements,Services,07/11/2018,30199013,914.56,Revenue,Maxey House Res Home,Residential Care
Peterborough City Council,Adults,Independent Sector Placements,Services,07/11/2018,30199014,1821.88,Revenue,Maxey House Res Home,Residential Care
Peterborough City Council,Adults,Independent Sector Placements,Services,07/11/2018,30199038,996.68,Revenue,Maxey House Res Home,Residential Care
Peterborough City Council,Adults,Independent Sector Placements,Services,07/11/2018,30199039,1679.96,Revenue,Maxey House Res Home,Residential Care
Peterborough City Council,Adults,Independent Sector Placements,Services,07/11/2018,30199040,1301.48,Revenue,Maxey House Res Home,Residential Care
Peterborough City Council,Adults,Independent Sector Placements,Services,07/11/2018,30199042,1821.88,Revenue,Maxey House Res Home,Residential Care
Peterborough City Council,Westcombe Engineering,Westcombe Engineering,"Tools, Equipment, Furniture & Materials",07/11/2018,30199090,1510.00,Revenue,SMW Autoblok Telbrook Ltd,Materials
Peterborough City Council,ICT,ICT,Services,07/11/2018,30199093,3700.00,Revenue,Clear Skies Software Ltd,Computer Software
Peterborough City Council,Adults,Independent Sector Placements,Services,07/11/2018,30199149,756.00,Revenue,Thera East Anglia,Day Care
Peterborough City Council,Adults,Independent Sector Placements,Services,07/11/2018,30199150,1464.00,Revenue,Thera East Anglia,Day Care
Peterborough City Council,Adults,Independent Sector Placements,Services,07/11/2018,30199151,1260.00,Revenue,Thera East Anglia,Day Care
Peterborough City Council,Adults,Independent Sector Placements,Services,07/11/2018,30199157,1008.00,Revenue,Thera East Anglia,Day Care
Peterborough City Council,Adults,Independent Sector Placements,Services,07/11/2018,30199159,2440.00,Revenue,Thera East Anglia,Day Care
Peterborough City Council,Adults,Independent Sector Placements,Services,07/11/2018,30199160,2440.00,Revenue,Thera East Anglia,Day Care
Peterborough City Council,Adults,Independent Sector Placements,Services,07/11/2018,30199161,2440.00,Revenue,Thera East Anglia,Day Care
Peterborough City Council,Adults,Independent Sector Placements,Services,07/11/2018,30199162,2440.00,Revenue,Thera East Anglia,Day Care
Peterborough City Council,Adults,Independent Sector Placements,Services,07/11/2018,30199163,3515.00,Revenue,Thera East Anglia,Day Care
Peterborough City Council,Adults,Independent Sector Placements,Services,07/11/2018,30199165,504.00,Revenue,Thera East Anglia,Day Care
Peterborough City Council,Adults,Independent Sector Placements,Services,07/11/2018,30199166,860.00,Revenue,Thera East Anglia,Day Care
Peterborough City Council,Adults,Independent Sector Placements,Services,07/11/2018,30199167,1260.00,Revenue,Thera East Anglia,Day Care
Peterborough City Council,Adults,Independent Sector Placements,Services,07/11/2018,30199168,1260.00,Revenue,Thera East Anglia,Day Care
Peterborough City Council,Adults,Independent Sector Placements,Services,07/11/2018,30199169,2440.00,Revenue,Thera East Anglia,Day Care
Peterborough City Council,Adults,Independent Sector Placements,Services,07/11/2018,30199170,549.00,Revenue,Thera East Anglia,Day Care
Peterborough City Council,Adults,Independent Sector Placements,Services,07/11/2018,30199171,2440.00,Revenue,Thera East Anglia,Day Care
Peterborough City Council,Adults,Independent Sector Placements,Services,07/11/2018,30199172,860.00,Revenue,Thera East Anglia,Day Care
Peterborough City Council,Adults,Independent Sector Placements,Services,07/11/2018,30199173,504.00,Revenue,Thera East Anglia,Day Care
Peterborough City Council,Adults,Independent Sector Placements,Services,07/11/2018,30199174,1952.00,Revenue,Thera East Anglia,Day Care
Peterborough City Council,Adults,Independent Sector Placements,Services,07/11/2018,30199175,688.00,Revenue,Thera East Anglia,Day Care
Peterborough City Council,Adults,Independent Sector Placements,Services,07/11/2018,30199206,1205.68,Revenue,Oakhouse Home Care Cambs Ltd,Residential Care
Peterborough City Council,Adults,Independent Sector Placements,Services,07/11/2018,30199207,984.32,Revenue,Oakhouse Home Care Cambs Ltd,Day Care
Peterborough City Council,Adults,Independent Sector Placements,Services,07/11/2018,30199208,1137.48,Revenue,Oakhouse Home Care Cambs Ltd,Residential Care
Peterborough City Council,Peterborough Highway Services,Transport & Infrastructure Commissioning,Transport Costs,07/11/2018,30199264,1192.31,Revenue,Stagecoach in Peterborough,Public Transport
Peterborough City Council,Peterborough Highway Services,Transport & Infrastructure Commissioning,Transport Costs,07/11/2018,30199271,1192.31,Revenue,Stagecoach in Peterborough,Public Transport
Peterborough City Council,Peterborough Highway Services,Transport & Infrastructure Commissioning,Transport Costs,07/11/2018,30199272,1192.31,Revenue,Stagecoach in Peterborough,Public Transport
Peterborough City Council,Peterborough Highway Services,Transport & Infrastructure Commissioning,Transport Costs,07/11/2018,30199273,1192.31,Revenue,Stagecoach in Peterborough,Public Transport
Peterborough City Council,Peterborough Highway Services,Transport & Infrastructure Commissioning,Transport Costs,07/11/2018,30199274,1192.31,Revenue,Stagecoach in Peterborough,Public Transport
Peterborough City Council,Peterborough Highway Services,Transport & Infrastructure Commissioning,Transport Costs,07/11/2018,30199275,1192.31,Revenue,Stagecoach in Peterborough,Public Transport
Peterborough City Council,Westcombe Engineering,Westcombe Engineering,"Tools, Equipment, Furniture & Materials",07/11/2018,30199306,1157.70,Revenue,AALCO,Materials
Peterborough City Council,"Waste, Cleansing and Open Spaces",Waste Management,Services,07/11/2018,30199317,17894.00,Revenue,Viridor Peterborough Ltd,Waste Disposal
Peterborough City Council,"Waste, Cleansing and Open Spaces",Waste Management,Services,07/11/2018,30199318,380165.87,Revenue,Viridor Peterborough Ltd,Waste Disposal
Peterborough City Council,Adults,Independent Sector Placements,Services,07/11/2018,30199393,1959.60,Revenue,South West Care Homes LTD (The Firs),Residential Care
Peterborough City Council,Adults,Independent Sector Placements,Services,07/11/2018,30199397,1385.36,Revenue,Barchester Wood Grange,Residential Care
Peterborough City Council,Communities,Housing,Services,07/11/2018,30199414,13998.47,Revenue,DA Rosalia Hotel,Temporary Accommodation Costs
Peterborough City Council,Legal Services,Legal Services,Services,07/11/2018,30199466,3350.00,Revenue,"Elliott, Ms Margot",Legal Costs
Peterborough City Council,Marketing & Communications,Marketing & Communications,Services,07/11/2018,30199489,1199.00,Revenue,G P Print Limited,Printing
Peterborough City Council,Legal Services,Legal Services,Services,07/11/2018,30199498,700.00,Revenue,"Sleight, Mr Nigel",Legal Costs
Peterborough City Council,Corporate,Corporate,Non Revenue,07/11/2018,30199576,34516.80,Capital,Enterprise Managed Services Limited,Building And Site Works
Peterborough City Council,Corporate,Corporate,Non Revenue,07/11/2018,30199577,2624.00,Capital,Enterprise Managed Services Limited,Consultants Fees
Peterborough City Council,Corporate,Corporate,Non Revenue,07/11/2018,30199579,16128.00,Capital,Enterprise Managed Services Limited,Building And Site Works
Peterborough City Council,Westcombe Engineering,Westcombe Engineering,"Tools, Equipment, Furniture & Materials",07/11/2018,30199581,560.00,Revenue,Olis Machine Tools Ltd,Equipment Maintenance
Peterborough City Council,Education,Special Educational Needs / Inclusion,Agency Staff,07/11/2018,30199585,5300.00,Revenue,Permanent Futures Ltd,External Temporary Staff
Peterborough City Council,Adults,Independent Sector Placements,Services,07/11/2018,30199610,5686.80,Revenue,Lifeways Community Care,Residential Care
Peterborough City Council,Westcombe Engineering,Westcombe Engineering,"Tools, Equipment, Furniture & Materials",07/11/2018,30199701,531.36,Revenue,Barron Clark Castings Ltd,Materials
Peterborough City Council,Westcombe Engineering,Westcombe Engineering,"Tools, Equipment, Furniture & Materials",07/11/2018,30199705,1033.24,Revenue,Barron Clark Castings Ltd,Materials
Peterborough City Council,Peterborough Highway Services,Transport & Infrastructure Commissioning,Transport Costs,07/11/2018,30199771,15228.00,Revenue,First Eastern Counties Buses Ltd,Public Transport
Peterborough City Council,Peterborough Highway Services,Transport & Infrastructure Commissioning,Transport Costs,07/11/2018,30199772,6698.30,Revenue,Stagecoach in Peterborough,Public Transport
Peterborough City Council,Adults,Independent Sector Placements,Services,07/11/2018,30199873,5000.00,Revenue,Maxey House Res Home,Residential Care
Peterborough City Council,Adults,Independent Sector Placements,Services,07/11/2018,30199925,1067.86,Revenue,Goldcare Homes t/a The Tudors Care Home,Residential Care
Peterborough City Council,Adults,Independent Sector Placements,Services,07/11/2018,30199927,8351.61,Revenue,Longueville Court (Barchester),Residential Care
Peterborough City Council,"Cemeteries, Cremation & Registrars",Bereavement Service,Services,07/11/2018,30199939,1708.00,Revenue,Anglia Co-operative Funerals,Contract Funerals
Peterborough City Council,"Cemeteries, Cremation & Registrars",Bereavement Service,"Tools, Equipment, Furniture & Materials",07/11/2018,30200021,994.40,Revenue,A M Strickland Builders,Materials
Peterborough City Council,Children's & Safeguarding,Children's Social Care,Agency Staff,07/11/2018,30200118,4139.94,Revenue,Eden Brown Ltd,External Temporary Staff
Peterborough City Council,Financial Services,Finance,Agency Staff,07/11/2018,30200165,823.03,Revenue,Reed Specialist Recruitment Limited,External Temporary Staff
Peterborough City Council,Adults,Strategic Commissioning - Management,Agency Staff,07/11/2018,30200167,3544.32,Revenue,Reed Specialist Recruitment Limited,External Temporary Staff
Peterborough City Council,Regulatory Services,Regulatory Services,Agency Staff,07/11/2018,30200168,1283.53,Revenue,Reed Specialist Recruitment Limited,External Temporary Staff
Peterborough City Council,Corporate Property,Office Accomodation,Agency Staff,07/11/2018,30200200,4730.04,Revenue,Reed Specialist Recruitment Limited,External Temporary Staff
Peterborough City Council,Adults,Strategic Commissioning - Management,Agency Staff,07/11/2018,30200221,871.66,Revenue,Reed Specialist Recruitment Limited,External Temporary Staff
Peterborough City Council,Development and Construction,Development Management,Agency Staff,07/11/2018,30200230,1000.21,Revenue,Reed Specialist Recruitment Limited,External Temporary Staff
Peterborough City Council,Commissioning and Commercial Operations,Commissioning Team,Agency Staff,07/11/2018,30200231,2243.60,Revenue,Reed Specialist Recruitment Limited,External Temporary Staff
Peterborough City Council,Development and Construction,Development Management,Agency Staff,07/11/2018,30200232,1365.01,Revenue,Reed Specialist Recruitment Limited,External Temporary Staff
Peterborough City Council,Development and Construction,Building Control,Agency Staff,07/11/2018,30200233,1860.73,Revenue,Reed Specialist Recruitment Limited,External Temporary Staff
Peterborough City Council,ICT,ICT,Agency Staff,07/11/2018,30200234,594.65,Revenue,Reed Specialist Recruitment Limited,External Temporary Staff
Peterborough City Council,Regulatory Services,Regulatory Services,Agency Staff,07/11/2018,30200235,552.42,Revenue,Reed Specialist Recruitment Limited,External Temporary Staff
Peterborough City Council,Adults,Day opportunities - Older People,Agency Staff,07/11/2018,30200344,1164.40,Revenue,Eden Brown Ltd,External Temporary Staff
Peterborough City Council,Communities,Community Safety,"Tools, Equipment, Furniture & Materials",07/11/2018,30200458,780.00,Revenue,Auto Items Ltd,Materials
Peterborough City Council,Education,Special Educational Needs / Inclusion,Services,07/11/2018,30200514,2187.50,Revenue,Priory Hospital School Priory,Boarding Out Fees
Peterborough City Council,Marketing & Communications,Marketing & Communications,Services,07/11/2018,30200517,576.68,Revenue,Whitewater Graphics & Design Ltd,Printing
Peterborough City Council,Adults,Independent Sector Placements,Services,07/11/2018,30200548,872.88,Revenue,Maxey House Res Home,Residential Care
Peterborough City Council,Peterborough Highway Services,Highway & Drainage Control,Services,07/11/2018,30200575,3000.00,Revenue,Environment Agency,Grant Payment
Peterborough City Council,Children's & Safeguarding,External Education Placements,Services,07/11/2018,30200577,874.67,Revenue,Stamford Endowed Schools,Out Of Area Education Costs
Peterborough City Council,Children's & Safeguarding,Children's Social Care,Agency Staff,07/11/2018,30200679,-6883.04,Revenue,Eden Brown Ltd,External Temporary Staff
Peterborough City Council,Corporate Property,Office Accomodation,Repair & Maintenance of Buildings,07/11/2018,30200799,2048.11,Revenue,Alps Group Ltd,Service Charges - Premises
Peterborough City Council,Corporate Property,Office Accomodation,Rents,07/11/2018,30200800,65157.08,Revenue,Alps Group Ltd,Rent
Peterborough City Council,Corporate Property,Office Accomodation,Repair & Maintenance of Buildings,07/11/2018,30200804,-12833.98,Revenue,Alps Group Ltd,Service Charges - Premises
Peterborough City Council,Children's & Safeguarding,Children's Social Care,Agency Staff,07/11/2018,30200806,2743.10,Revenue,Eden Brown Ltd,External Temporary Staff
Peterborough City Council,Peterborough Highway Services,Network and Traffic Management,Advertising,07/11/2018,30200898,948.32,Revenue,Johnston Press Midlands Division,Advertising
Peterborough City Council,Children's & Safeguarding,Access to Resources & Specialist Commissioning,Services,07/11/2018,30200920,1437.00,Revenue,Transition Care Peterborough Ltd,Boarding Out Fees
Peterborough City Council,Children's & Safeguarding,Access to Resources & Specialist Commissioning,Services,07/11/2018,30200948,1926.85,Revenue,PC Homes,Boarding Out Fees
Peterborough City Council,Children's & Safeguarding,Access to Resources & Specialist Commissioning,Services,07/11/2018,30200949,1464.85,Revenue,PC Homes,Boarding Out Fees
Peterborough City Council,Children's & Safeguarding,Access to Resources & Specialist Commissioning,Services,07/11/2018,30200951,1464.85,Revenue,PC Homes,Boarding Out Fees
Peterborough City Council,Westcombe Engineering,Westcombe Engineering,"Tools, Equipment, Furniture & Materials",07/11/2018,30200952,916.00,Revenue,Barron Clark Castings Ltd,Materials
Peterborough City Council,Children's & Safeguarding,Access to Resources & Specialist Commissioning,Services,07/11/2018,30200953,1464.85,Revenue,PC Homes,Boarding Out Fees
Peterborough City Council,Children's & Safeguarding,Access to Resources & Specialist Commissioning,Services,07/11/2018,30200955,1464.85,Revenue,PC Homes,Boarding Out Fees
Peterborough City Council,Children's & Safeguarding,Access to Resources & Specialist Commissioning,Services,07/11/2018,30200957,1464.85,Revenue,PC Homes,Boarding Out Fees
Peterborough City Council,Children's & Safeguarding,Access to Resources & Specialist Commissioning,Services,07/11/2018,30200996,1464.85,Revenue,PC Homes,Boarding Out Fees
Peterborough City Council,Children's & Safeguarding,Access to Resources & Specialist Commissioning,Services,07/11/2018,30200997,1464.85,Revenue,PC Homes,Boarding Out Fees
Peterborough City Council,Children's & Safeguarding,Access to Resources & Specialist Commissioning,Services,07/11/2018,30200998,2850.85,Revenue,PC Homes,Boarding Out Fees
Peterborough City Council,Children's & Safeguarding,Access to Resources & Specialist Commissioning,Services,07/11/2018,30200999,1464.85,Revenue,PC Homes,Boarding Out Fees
Peterborough City Council,Corporate Property,Office Accomodation,Rents,07/11/2018,30201035,15847.33,Revenue,Alps Group Ltd,Rent
Peterborough City Council,Corporate,Corporate,Non Revenue,07/11/2018,30201105,702.36,Capital,Rawheat Heating & Plumbing Eng.,Grant Payment
Peterborough City Council,Commissioning and Commercial Operations,Clare Lodge,Services,07/11/2018,30201130,1197.58,Revenue,Apogee Corporation,Photocopier
Peterborough City Council,Development and Construction,Building Control,Agency Staff,07/11/2018,30201232,1860.73,Revenue,Reed Specialist Recruitment Limited,External Temporary Staff
Peterborough City Council,Development and Construction,Building Control,Agency Staff,07/11/2018,30201233,1075.05,Revenue,Reed Specialist Recruitment Limited,External Temporary Staff
Peterborough City Council,Regulatory Services,Regulatory Services,Agency Staff,07/11/2018,30201236,1283.53,Revenue,Reed Specialist Recruitment Limited,External Temporary Staff
Peterborough City Council,Peterborough Highway Services,Highway & Drainage Control,Agency Staff,07/11/2018,30201240,1302.60,Revenue,Reed Specialist Recruitment Limited,External Temporary Staff
Peterborough City Council,Education,Service Director Education,Employee Costs,07/11/2018,30201295,29091.97,Revenue,Teachers Pensions,Pensions
Peterborough City Council,Commissioning and Commercial Operations,Clare Lodge,Agency Staff,07/11/2018,30201309,535.80,Revenue,Reed Specialist Recruitment Limited,External Temporary Staff
Peterborough City Council,Adults,Independent Sector Placements,Services,07/11/2018,30201345,1811.24,Revenue,Excelcare Aliwal Manor,Residential Care
Peterborough City Council,Commissioning and Commercial Operations,Clare Lodge,Agency Staff,07/11/2018,30201362,642.20,Revenue,Reed Specialist Recruitment Limited,External Temporary Staff
Peterborough City Council,Communities,Housing,Agency Staff,07/11/2018,30201370,1822.51,Revenue,Reed Specialist Recruitment Limited,External Temporary Staff
Peterborough City Council,Corporate,Corporate,Non Revenue,07/11/2018,30201376,2583.60,Capital,Reed Specialist Recruitment Limited,Consultants Fees
Peterborough City Council,Commissioning and Commercial Operations,Commissioning Team,Agency Staff,07/11/2018,30201377,2243.60,Revenue,Reed Specialist Recruitment Limited,External Temporary Staff
Peterborough City Council,Financial Services,Finance,Agency Staff,07/11/2018,30201382,847.06,Revenue,Reed Specialist Recruitment Limited,External Temporary Staff
Peterborough City Council,Peterborough Highway Services,Highway Services - HoS,Agency Staff,07/11/2018,30201388,828.75,Revenue,Reed Specialist Recruitment Limited,External Temporary Staff
Peterborough City Council,ICT,ICT,Agency Staff,07/11/2018,30201391,678.80,Revenue,Reed Specialist Recruitment Limited,External Temporary Staff
Peterborough City Council,Commissioning and Commercial Operations,Early Years & Quality Improvement,Services,07/11/2018,30201393,6572.01,Revenue,Family Action,Grant Payment
Peterborough City Council,Commissioning and Commercial Operations,Early Years & Quality Improvement,Services,07/11/2018,30201394,15053.23,Revenue,Family Action,Grant Payment
Peterborough City Council,Commissioning and Commercial Operations,Early Years & Quality Improvement,Services,07/11/2018,30201395,8582.46,Revenue,Smiley Faces Day Nursery,Grant Payment
Peterborough City Council,Commissioning and Commercial Operations,Early Years & Quality Improvement,Services,07/11/2018,30201396,41243.76,Revenue,Peterborough Regional College,Grant Payment
Peterborough City Council,Commissioning and Commercial Operations,Early Years & Quality Improvement,Services,07/11/2018,30201397,30637.47,Revenue,Stepping Stones Day Nursery,Grant Payment
Peterborough City Council,Commissioning and Commercial Operations,Early Years & Quality Improvement,Services,07/11/2018,30201398,12634.86,Revenue,South Bretton Pre School,Grant Payment
Peterborough City Council,Commissioning and Commercial Operations,Early Years & Quality Improvement,Services,07/11/2018,30201399,6942.90,Revenue,Shiny Stars Pre-School,Grant Payment
Peterborough City Council,Commissioning and Commercial Operations,Early Years & Quality Improvement,Services,07/11/2018,30201400,3820.02,Revenue,SDN Ltd t/a Stars Day Nursery Bushfield,Grant Payment
Peterborough City Council,Commissioning and Commercial Operations,Early Years & Quality Improvement,Services,07/11/2018,30201401,20081.88,Revenue,Stars Pre-School Dogsthorpe,Grant Payment
Peterborough City Council,Commissioning and Commercial Operations,Early Years & Quality Improvement,Services,07/11/2018,30201402,6397.32,Revenue,Millfield Pre-School,Grant Payment
Peterborough City Council,Commissioning and Commercial Operations,Early Years & Quality Improvement,Services,07/11/2018,30201404,37170.19,Revenue,Family Action,Grant Payment
Peterborough City Council,Commissioning and Commercial Operations,Early Years & Quality Improvement,Services,07/11/2018,30201405,14582.38,Revenue,First Steps Nursery (Maxey) Ltd,Grant Payment
Peterborough City Council,Commissioning and Commercial Operations,Early Years & Quality Improvement,Services,07/11/2018,30201406,6405.12,Revenue,Busy Bees Pre-School,Grant Payment
Peterborough City Council,Commissioning and Commercial Operations,Early Years & Quality Improvement,Services,07/11/2018,30201407,6793.71,Revenue,Husaini Pre-School,Grant Payment
Peterborough City Council,Commissioning and Commercial Operations,Early Years & Quality Improvement,Services,07/11/2018,30201408,7287.66,Revenue,Castor & Ailsworth Pre School,Grant Payment
Peterborough City Council,Commissioning and Commercial Operations,Early Years & Quality Improvement,Services,07/11/2018,30201409,12427.38,Revenue,Shining Stars Pre-School Nursery,Grant Payment
Peterborough City Council,Commissioning and Commercial Operations,Early Years & Quality Improvement,Services,07/11/2018,30201411,3506.16,Revenue,Happy Days Playgroup,Grant Payment
Peterborough City Council,Commissioning and Commercial Operations,Early Years & Quality Improvement,Services,07/11/2018,30201412,9462.04,Revenue,Noah's Ark Pre-School,Grant Payment
Peterborough City Council,Commissioning and Commercial Operations,Early Years & Quality Improvement,Services,07/11/2018,30201414,7104.51,Revenue,Duke Of Bedford Pre-School,Grant Payment
Peterborough City Council,Commissioning and Commercial Operations,Early Years & Quality Improvement,Services,07/11/2018,30201421,12760.19,Revenue,Young Generation Playgroup,Grant Payment
Peterborough City Council,Commissioning and Commercial Operations,Early Years & Quality Improvement,Services,07/11/2018,30201425,4854.93,Revenue,The Village Playgroup,Grant Payment
Peterborough City Council,Commissioning and Commercial Operations,Early Years & Quality Improvement,Services,07/11/2018,30201426,26142.13,Revenue,Busy Bunnies Nursery,Grant Payment
Peterborough City Council,Commissioning and Commercial Operations,Early Years & Quality Improvement,Services,07/11/2018,30201427,11827.26,Revenue,Vale Community Pre-School,Grant Payment
Peterborough City Council,Commissioning and Commercial Operations,Early Years & Quality Improvement,Services,07/11/2018,30201428,11200.37,Revenue,Belsize Day Nursery,Grant Payment
Peterborough City Council,Commissioning and Commercial Operations,Early Years & Quality Improvement,Services,07/11/2018,30201430,829.92,Revenue,Redacted Personal Information,Grant Payment
Peterborough City Council,Commissioning and Commercial Operations,Early Years & Quality Improvement,Services,07/11/2018,30201432,998.34,Revenue,Redacted Personal Information,Grant Payment
Peterborough City Council,Commissioning and Commercial Operations,Early Years & Quality Improvement,Services,07/11/2018,30201433,775.74,Revenue,Redacted Personal Information,Grant Payment
Peterborough City Council,Commissioning and Commercial Operations,Early Years & Quality Improvement,Services,07/11/2018,30201434,7004.25,Revenue,Brookside Playgroup,Grant Payment
Peterborough City Council,Commissioning and Commercial Operations,Early Years & Quality Improvement,Services,07/11/2018,30201435,21898.47,Revenue,West Town Pre-School,Grant Payment
Peterborough City Council,Commissioning and Commercial Operations,Early Years & Quality Improvement,Services,07/11/2018,30201436,9964.79,Revenue,"Family Action ,  Birchtree Pre- School",Grant Payment
Peterborough City Council,Commissioning and Commercial Operations,Early Years & Quality Improvement,Services,07/11/2018,30201437,1081.06,Revenue,Redacted Personal Information,Grant Payment
Peterborough City Council,Commissioning and Commercial Operations,Early Years & Quality Improvement,Services,07/11/2018,30201438,15210.00,Revenue,Beeches Pre-School,Grant Payment
Peterborough City Council,Commissioning and Commercial Operations,Early Years & Quality Improvement,Services,07/11/2018,30201439,31789.38,Revenue,Whiz Kids Day Nursery,Grant Payment
Peterborough City Council,Commissioning and Commercial Operations,Early Years & Quality Improvement,Services,07/11/2018,30201440,2844.97,Revenue,Redacted Personal Information,Grant Payment
Peterborough City Council,Commissioning and Commercial Operations,Early Years & Quality Improvement,Services,07/11/2018,30201441,765.83,Revenue,Redacted Personal Information,Grant Payment
Peterborough City Council,Commissioning and Commercial Operations,Early Years & Quality Improvement,Services,07/11/2018,30201444,21414.90,Revenue,The Hampton Day Nursery,Grant Payment
Peterborough City Council,Commissioning and Commercial Operations,Early Years & Quality Improvement,Services,07/11/2018,30201446,13665.04,Revenue,Stanground St Johns Pre-School,Grant Payment
Peterborough City Council,Commissioning and Commercial Operations,Early Years & Quality Improvement,Services,07/11/2018,30201447,2518.59,Revenue,Redacted Personal Information,Grant Payment
Peterborough City Council,Commissioning and Commercial Operations,Early Years & Quality Improvement,Services,07/11/2018,30201448,977.22,Revenue,Redacted Personal Information,Grant Payment
Peterborough City Council,Commissioning and Commercial Operations,Early Years & Quality Improvement,Services,07/11/2018,30201449,1199.40,Revenue,St Josephs Day Nursery,Grant Payment
Peterborough City Council,Commissioning and Commercial Operations,Early Years & Quality Improvement,Services,07/11/2018,30201450,775.74,Revenue,Redacted Personal Information,Grant Payment
Peterborough City Council,Commissioning and Commercial Operations,Early Years & Quality Improvement,Services,07/11/2018,30201451,2106.42,Revenue,Lisa Childminding,Grant Payment
Peterborough City Council,Commissioning and Commercial Operations,Early Years & Quality Improvement,Services,07/11/2018,30201452,6852.29,Revenue,Southfields Pre-School Playgroup,Grant Payment
Peterborough City Council,Commissioning and Commercial Operations,Early Years & Quality Improvement,Services,07/11/2018,30201453,2103.11,Revenue,Redacted Personal Information,Grant Payment
Peterborough City Council,Commissioning and Commercial Operations,Early Years & Quality Improvement,Services,07/11/2018,30201456,8311.24,Revenue,Sunflower Seed Pre-School,Grant Payment
Peterborough City Council,Commissioning and Commercial Operations,Early Years & Quality Improvement,Services,07/11/2018,30201474,1934.91,Revenue,Redacted Personal Information,Grant Payment
Peterborough City Council,Commissioning and Commercial Operations,Early Years & Quality Improvement,Services,07/11/2018,30201477,1037.40,Revenue,Jaynes House Childminding,Grant Payment
Peterborough City Council,Commissioning and Commercial Operations,Early Years & Quality Improvement,Services,07/11/2018,30201478,1151.70,Revenue,Redacted Personal Information,Grant Payment
Peterborough City Council,Commissioning and Commercial Operations,Early Years & Quality Improvement,Services,07/11/2018,30201485,681.72,Revenue,Redacted Personal Information,Grant Payment
Peterborough City Council,Commissioning and Commercial Operations,Early Years & Quality Improvement,Services,07/11/2018,30201487,1344.62,Revenue,Redacted Personal Information,Grant Payment
Peterborough City Council,Commissioning and Commercial Operations,Early Years & Quality Improvement,Services,07/11/2018,30201489,1244.88,Revenue,Redacted Personal Information,Grant Payment
Peterborough City Council,Commissioning and Commercial Operations,Early Years & Quality Improvement,Services,07/11/2018,30201490,1283.24,Revenue,Redacted Personal Information,Grant Payment
Peterborough City Council,Commissioning and Commercial Operations,Early Years & Quality Improvement,Services,07/11/2018,30201493,829.92,Revenue,Redacted Personal Information,Grant Payment
Peterborough City Council,Commissioning and Commercial Operations,Early Years & Quality Improvement,Services,07/11/2018,30201495,675.44,Revenue,Redacted Personal Information,Grant Payment
Peterborough City Council,Corporate,Corporate,Non Revenue,07/11/2018,30201513,1762.40,Capital,MORLEY BUILDING SERVICES LTD,Grant Payment
Peterborough City Council,Corporate,Corporate,Non Revenue,07/11/2018,30201515,14621.96,Capital,Nadeem Construction Ltd,Grant Payment
Peterborough City Council,Corporate,Corporate,Non Revenue,07/11/2018,30201517,3923.41,Capital,Allworks Home Improvements Ltd,Grant Payment
Peterborough City Council,Corporate,Corporate,Non Revenue,07/11/2018,30201521,3941.40,Capital,G & J Roffe Limited,Grant Payment
Peterborough City Council,Corporate,Corporate,Non Revenue,07/11/2018,30201522,1788.00,Capital,Dolphin Mobility East Midlands Ltd,Grant Payment
Peterborough City Council,Corporate,Corporate,Non Revenue,07/11/2018,30201524,3801.60,Capital,MORLEY BUILDING SERVICES LTD,Grant Payment
Peterborough City Council,Children's & Safeguarding,Access to Resources & Specialist Commissioning,Agency Staff,07/11/2018,30201542,880.00,Revenue,HCL Social Care Ltd,External Temporary Staff
Peterborough City Council,Adults,Strategic Commissioning - Management,Agency Staff,07/11/2018,30201546,836.88,Revenue,Reed Specialist Recruitment Limited,External Temporary Staff
Peterborough City Council,Adults,Independent Sector Placements,Services,07/11/2018,30201572,3600.00,Revenue,EXCELCARE GLENNFIELD HOUSE,Residential Care
Peterborough City Council,Adults,Independent Sector Placements,Services,07/11/2018,30201573,3720.00,Revenue,EXCELCARE GLENNFIELD HOUSE,Residential Care
Peterborough City Council,Adults,Independent Sector Placements,Services,07/11/2018,30201574,1680.00,Revenue,EXCELCARE GLENNFIELD HOUSE,Residential Care
Peterborough City Council,Adults,Independent Sector Placements,Services,07/11/2018,30201575,3200.00,Revenue,EXCELCARE GLENNFIELD HOUSE,Residential Care
Peterborough City Council,Legal Services,Legal Services,Services,07/11/2018,30201591,1500.00,Revenue,Child&Family Psychological Assessment Svs,Expert Witnesses
Peterborough City Council,Legal Services,Legal Services,Services,07/11/2018,30201593,1167.07,Revenue,Child&Family Psychological Assessment Svs,Expert Witnesses
Peterborough City Council,Children's & Safeguarding,Access to Resources & Specialist Commissioning,Agency Staff,07/11/2018,30201599,932.80,Revenue,HCL Social Care Ltd,External Temporary Staff
Peterborough City Council,Adults,Strategic Commissioning - Management,Agency Staff,07/11/2018,30201609,836.88,Revenue,Reed Specialist Recruitment Limited,External Temporary Staff
Peterborough City Council,Adults,Independent Sector Placements,Services,07/11/2018,30201631,2778.80,Revenue,Country Court Care (Rose Lodge),Residential Care
Peterborough City Council,Adults,Independent Sector Placements,Services,07/11/2018,30201671,1757.80,Revenue,FIELD HOUSE (EYE) LTD,Residential Care
Peterborough City Council,Adults,Strategic Commissioning - Management,Agency Staff,07/11/2018,30201718,871.66,Revenue,Reed Specialist Recruitment Limited,External Temporary Staff
Peterborough City Council,Adults,Independent Sector Placements,Services,07/11/2018,8000127768,514.08,Revenue,Axiom Housing Association Ltd,Home Care
Peterborough City Council,Adults,Independent Sector Placements,Services,07/11/2018,8000127769,771.12,Revenue,Axiom Housing Association Ltd,Home Care
Peterborough City Council,Adults,Independent Sector Placements,Services,07/11/2018,8000127770,771.12,Revenue,Axiom Housing Association Ltd,Home Care
Peterborough City Council,Adults,Independent Sector Placements,Services,07/11/2018,8000127773,771.12,Revenue,Axiom Housing Association Ltd,Home Care
Peterborough City Council,Adults,Independent Sector Placements,Services,07/11/2018,8000127776,612.00,Revenue,Axiom Housing Association Ltd,Home Care
Peterborough City Council,Adults,Independent Sector Placements,Services,07/11/2018,8000127777,685.44,Revenue,Axiom Housing Association Ltd,Home Care
Peterborough City Council,Adults,Independent Sector Placements,Services,07/11/2018,8000127779,783.36,Revenue,Axiom Housing Association Ltd,Home Care
Peterborough City Council,Adults,Independent Sector Placements,Services,07/11/2018,8000127781,514.08,Revenue,Axiom Housing Association Ltd,Home Care
Peterborough City Council,Adults,Independent Sector Placements,Services,07/11/2018,8000127782,514.08,Revenue,Axiom Housing Association Ltd,Home Care
Peterborough City Council,Adults,Independent Sector Placements,Services,07/11/2018,8000127783,599.76,Revenue,Axiom Housing Association Ltd,Home Care
Peterborough City Council,Adults,Independent Sector Placements,Services,07/11/2018,8000127786,526.32,Revenue,Axiom Housing Association Ltd,Home Care
Peterborough City Council,Adults,Independent Sector Placements,Services,07/11/2018,8000127788,514.08,Revenue,Axiom Housing Association Ltd,Home Care
Peterborough City Council,Adults,Independent Sector Placements,Services,07/11/2018,8000127789,599.76,Revenue,Axiom Housing Association Ltd,Home Care
Peterborough City Council,Adults,Independent Sector Placements,Services,07/11/2018,8000127796,1542.24,Revenue,Axiom Housing Association Ltd,Home Care
Peterborough City Council,Adults,Independent Sector Placements,Services,07/11/2018,8000127797,514.08,Revenue,Axiom Housing Association Ltd,Home Care
Peterborough City Council,Adults,Independent Sector Placements,Services,07/11/2018,8000127798,660.96,Revenue,Axiom Housing Association Ltd,Home Care
Peterborough City Council,Adults,Independent Sector Placements,Services,07/11/2018,8000127799,1627.92,Revenue,Axiom Housing Association Ltd,Home Care
Peterborough City Council,Adults,Independent Sector Placements,Services,07/11/2018,8000127800,514.08,Revenue,Axiom Housing Association Ltd,Home Care
Peterborough City Council,Adults,Independent Sector Placements,Services,07/11/2018,8000127801,599.76,Revenue,Axiom Housing Association Ltd,Home Care
Peterborough City Council,Adults,Independent Sector Placements,Services,07/11/2018,8000127805,526.32,Revenue,Axiom Housing Association Ltd,Home Care
Peterborough City Council,Adults,Independent Sector Placements,Services,07/11/2018,8000127806,578.34,Revenue,Axiom Housing Association Ltd,Home Care
Peterborough City Council,Adults,Independent Sector Placements,Services,07/11/2018,8000127807,979.20,Revenue,Axiom Housing Association Ltd,Home Care
Peterborough City Council,Adults,Independent Sector Placements,Services,07/11/2018,8000127809,1640.16,Revenue,Axiom Housing Association Ltd,Home Care
Peterborough City Council,Adults,Independent Sector Placements,Services,07/11/2018,8000127810,514.08,Revenue,Axiom Housing Association Ltd,Home Care
Peterborough City Council,Adults,Independent Sector Placements,Services,07/11/2018,8000127812,514.08,Revenue,Axiom Housing Association Ltd,Home Care
Peterborough City Council,Adults,Independent Sector Placements,Services,07/11/2018,8000127814,596.70,Revenue,Axiom Housing Association Ltd,Home Care
Peterborough City Council,Adults,Independent Sector Placements,Services,07/11/2018,8000127815,942.48,Revenue,Axiom Housing Association Ltd,Home Care
Peterborough City Council,Adults,Independent Sector Placements,Services,07/11/2018,8000127818,771.12,Revenue,Axiom Housing Association Ltd,Home Care
Peterborough City Council,Adults,Independent Sector Placements,Services,07/11/2018,8000127821,578.34,Revenue,Axiom Housing Association Ltd,Home Care
Peterborough City Council,Adults,Independent Sector Placements,Services,07/11/2018,8000127823,514.08,Revenue,Axiom Housing Association Ltd,Home Care
Peterborough City Council,Adults,Independent Sector Placements,Services,07/11/2018,8000127824,685.44,Revenue,Axiom Housing Association Ltd,Home Care
Peterborough City Council,Adults,Independent Sector Placements,Services,07/11/2018,8000127825,514.08,Revenue,Axiom Housing Association Ltd,Home Care
Peterborough City Council,Adults,Independent Sector Placements,Services,07/11/2018,8000127826,722.16,Revenue,Axiom Housing Association Ltd,Home Care
Peterborough City Council,Adults,Independent Sector Placements,Services,07/11/2018,8000127827,771.12,Revenue,Axiom Housing Association Ltd,Home Care
Peterborough City Council,Adults,Independent Sector Placements,Services,07/11/2018,8000127828,1530.00,Revenue,Axiom Housing Association Ltd,Home Care
Peterborough City Council,Adults,Independent Sector Placements,Services,07/11/2018,8000127832,1884.96,Revenue,Axiom Housing Association Ltd,Home Care
Peterborough City Council,Adults,Independent Sector Placements,Services,07/11/2018,8000127835,599.76,Revenue,Axiom Housing Association Ltd,Home Care
Peterborough City Council,Adults,Independent Sector Placements,Services,07/11/2018,8000127839,771.12,Revenue,Axiom Housing Association Ltd,Home Care
Peterborough City Council,Adults,Independent Sector Placements,Services,07/11/2018,8000127840,599.76,Revenue,Axiom Housing Association Ltd,Home Care
Peterborough City Council,Adults,Independent Sector Placements,Services,07/11/2018,8000127841,954.72,Revenue,Axiom Housing Association Ltd,Home Care
Peterborough City Council,Adults,Independent Sector Placements,Services,07/11/2018,8000127846,599.76,Revenue,Axiom Housing Association Ltd,Home Care
Peterborough City Council,Adults,Independent Sector Placements,Services,07/11/2018,8000127848,945.00,Revenue,Axiom Housing Association Ltd,Home Care
Peterborough City Council,Adults,Independent Sector Placements,Services,07/11/2018,8000127849,562.50,Revenue,Axiom Housing Association Ltd,Home Care
Peterborough City Council,Adults,Independent Sector Placements,Services,07/11/2018,8000127850,945.00,Revenue,Axiom Housing Association Ltd,Home Care
Peterborough City Council,Adults,Independent Sector Placements,Services,07/11/2018,8000127851,945.00,Revenue,Axiom Housing Association Ltd,Home Care
Peterborough City Council,Education,HTS & CSC Transport,Contract Hire and Operating Leases,07/11/2018,8000128651,3843.00,Revenue,A2B Euro Cars,Hired Transport
Peterborough City Council,Education,HTS & CSC Transport,Contract Hire and Operating Leases,07/11/2018,8000128656,1485.74,Revenue,Redacted Personal Information,Hired Transport
Peterborough City Council,Adults,Independent Sector Placements,Services,07/11/2018,8000128675,1807.00,Revenue,Springfield Care Limited  T/a Caring Crew,Home Care
Peterborough City Council,Adults,Independent Sector Placements,Services,07/11/2018,8000128723,1351.35,Revenue,Sagecare Ltd,Home Care
Peterborough City Council,Adults,Independent Sector Placements,Services,07/11/2018,8000128724,1424.12,Revenue,Sagecare Ltd,Home Care
Peterborough City Council,Adults,Independent Sector Placements,Services,07/11/2018,8000128725,1392.93,Revenue,Sagecare Ltd,Home Care
Peterborough City Council,Adults,Independent Sector Placements,Services,07/11/2018,8000128726,1455.30,Revenue,Sagecare Ltd,Home Care
Peterborough City Council,Adults,Independent Sector Placements,Services,07/11/2018,8000128727,1382.54,Revenue,Sagecare Ltd,Home Care
Peterborough City Council,Adults,Independent Sector Placements,Services,07/11/2018,8000128728,1455.30,Revenue,Sagecare Ltd,Home Care
Peterborough City Council,Adults,Independent Sector Placements,Services,07/11/2018,8000128731,1256.13,Revenue,Atlas Care Services Ltd,Home Care
Peterborough City Council,Adults,Independent Sector Placements,Services,07/11/2018,8000128732,763.72,Revenue,Atlas Care Services Ltd,Home Care
Peterborough City Council,Adults,Independent Sector Placements,Services,07/11/2018,8000128739,1099.08,Revenue,Atlas Care Services Ltd,Home Care
Peterborough City Council,Commissioning and Commercial Operations,Commissioning,Services,09/11/2018,30192952,4200.24,Revenue,CAPITA Translation and Interpreting,Interpretation Expenses
Peterborough City Council,Energy,Environment Capital,Repair & Maintenance of Buildings,09/11/2018,30196480,6181.88,Revenue,Camax UK LTD,Premises Repairs
Peterborough City Council,Commissioning and Commercial Operations,Commissioning,Services,09/11/2018,30196855,590.38,Revenue,CAPITA Translation and Interpreting,Interpretation Expenses
Peterborough City Council,Commissioning and Commercial Operations,Commissioning,Services,09/11/2018,30196857,544.39,Revenue,CAPITA Translation and Interpreting,Interpretation Expenses
Peterborough City Council,Children's & Safeguarding,Child Health,Services,09/11/2018,30198743,13109.29,Revenue,Circles Network,Purchased Social Care Services
Peterborough City Council,Children's & Safeguarding,Child Health,Services,09/11/2018,30198744,13109.29,Revenue,Circles Network,Purchased Social Care Services
Peterborough City Council,Children's & Safeguarding,Child Health,Services,09/11/2018,30198745,8670.75,Revenue,Circles Network,Purchased Social Care Services
Peterborough City Council,Children's & Safeguarding,Child Health,Services,09/11/2018,30198746,8670.75,Revenue,Circles Network,Purchased Social Care Services
Peterborough City Council,Adults,Independent Sector Placements,Services,09/11/2018,30198898,1776.24,Revenue,Goldcare Homes t/a The Tudors Care Home,Residential Care
Peterborough City Council,Adults,Independent Sector Placements,Services,09/11/2018,30198899,982.12,Revenue,Goldcare Homes t/a The Tudors Care Home,Residential Care
Peterborough City Council,Adults,Independent Sector Placements,Services,09/11/2018,30198900,1517.28,Revenue,Goldcare Homes t/a The Tudors Care Home,Residential Care
Peterborough City Council,Adults,Independent Sector Placements,Services,09/11/2018,30198902,2021.88,Revenue,Goldcare Homes t/a The Tudors Care Home,Residential Care
Peterborough City Council,Adults,Independent Sector Placements,Services,09/11/2018,30198903,2300.00,Revenue,Goldcare Homes t/a The Tudors Care Home,Residential Care
Peterborough City Council,Adults,Independent Sector Placements,Services,09/11/2018,30198905,1020.04,Revenue,Goldcare Homes t/a The Tudors Care Home,Residential Care
Peterborough City Council,Adults,Independent Sector Placements,Services,09/11/2018,30198906,1703.04,Revenue,Goldcare Homes t/a The Tudors Care Home,Residential Care
Peterborough City Council,Adults,Independent Sector Placements,Services,09/11/2018,30199196,2139.24,Revenue,HC-One Beamish Limited - St Clares Court,Residential Care
Peterborough City Council,Adults,Independent Sector Placements,Services,09/11/2018,30199198,3991.00,Revenue,Mencap,Residential Care
Peterborough City Council,Adults,Independent Sector Placements,Services,09/11/2018,30199199,4896.60,Revenue,Mencap,Residential Care
Peterborough City Council,Adults,Independent Sector Placements,Services,09/11/2018,30199200,4591.60,Revenue,Mencap,Residential Care
Peterborough City Council,Adults,Independent Sector Placements,Services,09/11/2018,30199335,599.76,Revenue,Axiom Housing Association Ltd,Home Care
Peterborough City Council,Communities,Housing,Services,09/11/2018,30199415,13718.48,Revenue,DA Rosalia Hotel,Temporary Accommodation Costs
Peterborough City Council,Financial Services,Finance,Services,09/11/2018,30199464,590.00,Revenue,CIPFA Business Ltd,Conferences/Events
Peterborough City Council,Communities,Cultural Services,Services,09/11/2018,30199467,675.00,Revenue,Rawlinsons,Audit Fees
Peterborough City Council,Communities,Targeted Youth Service,Services,09/11/2018,30199478,600.00,Revenue,Kindred Drama Consultancy Ltd,Youth Programmes
Peterborough City Council,Sustainable Growth Strategy,Housing & Strategic Planning,Services,09/11/2018,30199490,14717.83,Revenue,North Kesteven District Council,Consultants Fees
Peterborough City Council,City Centre Management,"Markets, Tourism & Events",Services,09/11/2018,30199493,5693.00,Revenue,Pearce Sound & Lighting Ltd T/a Pearce Hire,Hired Services
Peterborough City Council,Westcombe Engineering,Westcombe Engineering,"Tools, Equipment, Furniture & Materials",09/11/2018,30199494,904.80,Revenue,AALCO,Materials
Peterborough City Council,Adults,Mental Capacity Act & DoLs,Services,09/11/2018,30199511,949.00,Revenue,Raj Medical Consultancy Limited,Hired Services
Peterborough City Council,HR,HR WFD & Training,Services,09/11/2018,30199678,592.48,Revenue,Health Assured Ltd,Counselling
Peterborough City Council,Children's & Safeguarding,Early Help ASC/CSC,Catering,09/11/2018,30199734,907.20,Revenue,Italian Community Association,Catering  
Peterborough City Council,Children's & Safeguarding,Early Help ASC/CSC,Rents,09/11/2018,30199735,1080.00,Revenue,Italian Community Association,Hire of Premises
Peterborough City Council,Education,PFI,Services,09/11/2018,30199744,20464.60,Revenue,IIC by Education (P'boro) Ltd,Service Charge
Peterborough City Council,Adults,Independent Sector Placements,Services,09/11/2018,30199819,3680.00,Revenue,Richmond Fellowship (The),Residential Care
Peterborough City Council,Legal Services,Legal Services,Services,09/11/2018,30199839,923.00,Revenue,"Corbino, Mr David",Legal Costs
Peterborough City Council,Corporate,Corporate,Non Revenue,09/11/2018,30199899,7995.00,Capital,Rider Levett Bucknall UK Ltd,Building And Site Works
Peterborough City Council,Adults,Independent Sector Placements,Services,09/11/2018,30199926,1150.00,Revenue,Goldcare Homes t/a The Tudors Care Home,Residential Care
Peterborough City Council,Financial Services,Insurance,Premises Insurances,09/11/2018,30199932,14114.50,Revenue,Zurich Insurance Company,Insurance Premiums
Peterborough City Council,Communities,Housing,Services,09/11/2018,30200112,9726.50,Revenue,Eastfield Guesthouse,Temporary Accommodation Costs
Peterborough City Council,Communities,Housing,Services,09/11/2018,30200114,11438.00,Revenue,Eastfield Guesthouse,Temporary Accommodation Costs
Peterborough City Council,Adults,Independent Sector Placements,Services,09/11/2018,30200248,780.81,Revenue,FIELD HOUSE (EYE) LTD,Residential Care
Peterborough City Council,Adults,Independent Sector Placements,Services,09/11/2018,30200249,3000.00,Revenue,FIELD HOUSE (EYE) LTD,Residential Care
Peterborough City Council,Communities,Housing,Services,09/11/2018,30200414,13252.83,Revenue,DA Rosalia Hotel,Temporary Accommodation Costs
Peterborough City Council,Children's & Safeguarding,Access to Resources & Specialist Commissioning,Agency Staff,09/11/2018,30200418,880.00,Revenue,HCL Social Care Ltd,External Temporary Staff
Peterborough City Council,Peterborough Serco Strategic Partnership,PSSP Retained Services,Services,09/11/2018,30200460,1872.86,Revenue,Whistl UK Ltd,Postage
Peterborough City Council,Children's & Safeguarding,Access to Resources & Specialist Commissioning,Services,09/11/2018,30200489,1980.00,Revenue,Florinee Homes Ltd,Boarding Out Fees
Peterborough City Council,Children's & Safeguarding,Access to Resources & Specialist Commissioning,Services,09/11/2018,30200490,1980.00,Revenue,Florinee Homes Ltd,Boarding Out Fees
Peterborough City Council,Children's & Safeguarding,Access to Resources & Specialist Commissioning,Services,09/11/2018,30200493,1980.00,Revenue,Florinee Homes Ltd,Boarding Out Fees
Peterborough City Council,Peterborough Highway Services,Highway Services - HoS,Services,09/11/2018,30200513,600.00,Revenue,Adept,Subscriptions
Peterborough City Council,Adults,Independent Sector Placements,Services,09/11/2018,30200554,1200.00,Revenue,FIELD HOUSE (EYE) LTD,Residential Care
Peterborough City Council,Children's & Safeguarding,Access to Resources & Specialist Commissioning,Services,09/11/2018,30200642,25445.51,Revenue,Aspire Scotland Ltd,Boarding Out Fees
Peterborough City Council,Communities,Targeted Youth Service,Services,09/11/2018,30200764,852.50,Revenue,The Award Scheme Ltd,Youth Programmes
Peterborough City Council,Children's & Safeguarding,Access to Resources & Specialist Commissioning,Services,09/11/2018,30200768,840.00,Revenue,Florinee Homes Ltd,Boarding Out Fees
Peterborough City Council,Children's & Safeguarding,Access to Resources & Specialist Commissioning,Services,09/11/2018,30200769,2400.00,Revenue,Florinee Homes Ltd,Boarding Out Fees
Peterborough City Council,Adults,Day opportunities - Older People,Catering,09/11/2018,30201083,1061.90,Revenue,The Cresset (Peterborough) Ltd,Catering Provisions
Peterborough City Council,Legal Services,Legal Services,Agency Staff,09/11/2018,30201084,726.25,Revenue,Giant Professional Limited,External Temporary Staff
Peterborough City Council,Legal Services,Legal Services,Agency Staff,09/11/2018,30201086,798.88,Revenue,Giant Professional Limited,External Temporary Staff
Peterborough City Council,Westcombe Engineering,Westcombe Engineering,"Tools, Equipment, Furniture & Materials",09/11/2018,30201153,709.50,Revenue,Barron Clark Castings Ltd,Materials
Peterborough City Council,Westcombe Engineering,Westcombe Engineering,"Tools, Equipment, Furniture & Materials",09/11/2018,30201155,531.36,Revenue,Barron Clark Castings Ltd,Materials
Peterborough City Council,Westcombe Engineering,Westcombe Engineering,"Tools, Equipment, Furniture & Materials",09/11/2018,30201156,697.43,Revenue,Barron Clark Castings Ltd,Materials
Peterborough City Council,Adults,Independent Sector Placements,Services,09/11/2018,30201170,665.85,Revenue,Merit Home Care Ltd,Home Care
Peterborough City Council,Development and Construction,Development Management,Agency Staff,09/11/2018,30201239,988.71,Revenue,Reed Specialist Recruitment Limited,External Temporary Staff
Peterborough City Council,Development and Construction,Development Management,Agency Staff,09/11/2018,30201244,1643.01,Revenue,Reed Specialist Recruitment Limited,External Temporary Staff
Peterborough City Council,Adults,Independent Sector Placements,Services,09/11/2018,30201254,1023.84,Revenue,Pilgrim Havens,Residential Care
Peterborough City Council,Adults,Independent Sector Placements,Services,09/11/2018,30201256,1567.48,Revenue,Pilgrim Havens,Residential Care
Peterborough City Council,Adults,Independent Sector Placements,Services,09/11/2018,30201257,1223.00,Revenue,Pilgrim Havens,Residential Care
Peterborough City Council,Adults,Independent Sector Placements,Services,09/11/2018,30201258,883.96,Revenue,Pilgrim Havens,Residential Care
Peterborough City Council,Adults,Independent Sector Placements,Services,09/11/2018,30201259,1023.84,Revenue,Pilgrim Havens,Residential Care
Peterborough City Council,Adults,Independent Sector Placements,Services,09/11/2018,30201260,644.20,Revenue,Pilgrim Havens,Residential Care
Peterborough City Council,Adults,Independent Sector Placements,Services,09/11/2018,30201261,1023.84,Revenue,Pilgrim Havens,Residential Care
Peterborough City Council,Adults,Independent Sector Placements,Services,09/11/2018,30201263,1617.16,Revenue,Pilgrim Havens,Residential Care
Peterborough City Council,Adults,Independent Sector Placements,Services,09/11/2018,30201264,1576.24,Revenue,Pilgrim Havens,Residential Care
Peterborough City Council,Adults,Independent Sector Placements,Services,09/11/2018,30201275,2824.44,Revenue,STAR RESIDENTIAL HOME LTD,Residential Care
Peterborough City Council,Adults,Independent Sector Placements,Services,09/11/2018,30201276,2867.96,Revenue,STAR RESIDENTIAL HOME LTD,Residential Care
Peterborough City Council,HR,HR,Services,09/11/2018,30201298,836.00,Revenue,Disclosure and Barring Service,Criminal Record Check
Peterborough City Council,Commissioning and Commercial Operations,Clare Lodge,Agency Staff,09/11/2018,30201307,666.16,Revenue,Reed Specialist Recruitment Limited,External Temporary Staff
Peterborough City Council,Adults,Independent Sector Placements,Contract Hire and Operating Leases,09/11/2018,30201340,847.11,Revenue,Peterborough Cars,Hired Transport
Peterborough City Council,Children's & Safeguarding,Children's Social Care,Agency Staff,09/11/2018,30201347,-4374.60,Revenue,Caritas Recruitment,External Temporary Staff
Peterborough City Council,Commissioning and Commercial Operations,Clare Lodge,Agency Staff,09/11/2018,30201363,718.88,Revenue,Reed Specialist Recruitment Limited,External Temporary Staff
Peterborough City Council,Commissioning and Commercial Operations,Clare Lodge,Agency Staff,09/11/2018,30201369,580.45,Revenue,Reed Specialist Recruitment Limited,External Temporary Staff
Peterborough City Council,Development and Construction,Development Management,Agency Staff,09/11/2018,30201392,1365.01,Revenue,Reed Specialist Recruitment Limited,External Temporary Staff
Peterborough City Council,Communities,Housing,Services,09/11/2018,30201417,825.00,Revenue,Redacted Personal Information,Financial Assistance
Peterborough City Council,Communities,Housing,Services,09/11/2018,30201418,550.00,Revenue,Redacted Personal Information,Financial Assistance
Peterborough City Council,Commissioning and Commercial Operations,Early Years & Quality Improvement,Services,09/11/2018,30201424,2957.50,Revenue,Beeches Pre-School,Grant Payment
Peterborough City Council,Adults,Independent Sector Placements,Services,09/11/2018,30201468,3800.64,Revenue,Park Vista Care Home,Residential Care
Peterborough City Council,Adults,Independent Sector Placements,Services,09/11/2018,30201470,3050.31,Revenue,Park Vista Care Home,Residential Care
Peterborough City Council,Adults,Independent Sector Placements,Services,09/11/2018,30201471,2247.60,Revenue,Park Vista Care Home,Residential Care
Peterborough City Council,Corporate,Corporate,Non Revenue,09/11/2018,30201519,3061.00,Capital,M J Greaves,Grant Payment
Peterborough City Council,Adults,Therapy/Reablement/Community Equipment,Agency Staff,09/11/2018,30201523,-704.85,Revenue,Caritas Recruitment,External Temporary Staff
Peterborough City Council,Adults,Independent Sector Placements,Services,09/11/2018,30201551,2648.00,Revenue,PHILIA LODGE REST HOME,Residential Care
Peterborough City Council,Adults,Independent Sector Placements,Services,09/11/2018,30201555,2648.00,Revenue,PHILIA LODGE REST HOME,Residential Care
Peterborough City Council,Adults,Independent Sector Placements,Services,09/11/2018,30201556,1975.60,Revenue,PHILIA LODGE REST HOME,Residential Care
Peterborough City Council,Corporate,Corporate,Non Revenue,09/11/2018,30201567,5484.00,Capital,Gaswise Services Ltd,Grant Payment
Peterborough City Council,Corporate,Corporate,Non Revenue,09/11/2018,30201568,2039.97,Capital,MORLEY BUILDING SERVICES LTD,Grant Payment
Peterborough City Council,Adults,Independent Sector Placements,Services,09/11/2018,30201627,2580.04,Revenue,STAR RESIDENTIAL HOME LTD,Residential Care
Peterborough City Council,Adults,Independent Sector Placements,Services,09/11/2018,30201672,1757.80,Revenue,FIELD HOUSE (EYE) LTD,Residential Care
Peterborough City Council,Adults,Independent Sector Placements,Services,09/11/2018,30201674,1757.80,Revenue,FIELD HOUSE (EYE) LTD,Residential Care
Peterborough City Council,Adults,Independent Sector Placements,Services,09/11/2018,30201675,1757.80,Revenue,FIELD HOUSE (EYE) LTD,Residential Care
Peterborough City Council,Adults,Independent Sector Placements,Services,09/11/2018,30201677,1757.80,Revenue,FIELD HOUSE (EYE) LTD,Residential Care
Peterborough City Council,Adults,Independent Sector Placements,Services,09/11/2018,30201678,1757.80,Revenue,FIELD HOUSE (EYE) LTD,Residential Care
Peterborough City Council,Adults,Independent Sector Placements,Services,09/11/2018,30201743,532.00,Revenue,K2 CARE LTD,Home Care
Peterborough City Council,Adults,Independent Sector Placements,Services,09/11/2018,30201747,7966.75,Revenue,NEW BOUNDARIES COMMUNITY SERVICES LTD,Residential Care
Peterborough City Council,Adults,Independent Sector Placements,Services,09/11/2018,30201748,7966.75,Revenue,NEW BOUNDARIES COMMUNITY SERVICES LTD,Residential Care
Peterborough City Council,Commissioning and Commercial Operations,Commissioning,Services,09/11/2018,30201765,660.01,Revenue,CAPITA Translation and Interpreting,Interpretation Expenses
Peterborough City Council,Adults,Strategic Commissioning - Management,Agency Staff,09/11/2018,30201766,649.88,Revenue,Reed Specialist Recruitment Limited,External Temporary Staff
Peterborough City Council,Commissioning and Commercial Operations,Commissioning,Services,09/11/2018,30201767,511.01,Revenue,CAPITA Translation and Interpreting,Interpretation Expenses
Peterborough City Council,Commissioning and Commercial Operations,Commissioning,Services,09/11/2018,30201768,659.52,Revenue,CAPITA Translation and Interpreting,Interpretation Expenses
Peterborough City Council,Commissioning and Commercial Operations,Commissioning,Services,09/11/2018,30201769,623.58,Revenue,CAPITA Translation and Interpreting,Interpretation Expenses
Peterborough City Council,Adults,Strategic Commissioning - Management,Agency Staff,09/11/2018,30201770,3544.32,Revenue,Reed Specialist Recruitment Limited,External Temporary Staff
Peterborough City Council,Commissioning and Commercial Operations,Commissioning,Services,09/11/2018,30201772,630.39,Revenue,CAPITA Translation and Interpreting,Interpretation Expenses
Peterborough City Council,Commissioning and Commercial Operations,Commissioning,Services,09/11/2018,30201774,717.18,Revenue,CAPITA Translation and Interpreting,Interpretation Expenses
Peterborough City Council,Commissioning and Commercial Operations,Commissioning,Services,09/11/2018,30201782,562.79,Revenue,CAPITA Translation and Interpreting,Interpretation Expenses
Peterborough City Council,Commissioning and Commercial Operations,Commissioning,Services,09/11/2018,30201793,756.75,Revenue,CAPITA Translation and Interpreting,Interpretation Expenses
Peterborough City Council,HR,HR,Services,09/11/2018,30201829,11414.94,Revenue,Edenred,Childcare
Peterborough City Council,Commissioning and Commercial Operations,Commissioning Team,Agency Staff,09/11/2018,30201837,1313.50,Revenue,Service Care Solutions Ltd,External Temporary Staff
Peterborough City Council,Peterborough Serco Strategic Partnership,PSSP Retained Services,Services,09/11/2018,30201862,30176.43,Revenue,Konica Minolta Bus.Sol. East Ltd,Photocopier
Peterborough City Council,Peterborough Serco Strategic Partnership,PSSP Retained Services,Services,09/11/2018,30201863,17595.89,Revenue,Konica Minolta Bus.Sol. East Ltd,Photocopier
Peterborough City Council,Children's & Safeguarding,Access to Resources & Specialist Commissioning,Services,09/11/2018,30201879,610.00,Revenue,Maze Independent Care Ltd,Boarding Out Fees
Peterborough City Council,Children's & Safeguarding,Access to Resources & Specialist Commissioning,Services,09/11/2018,30201883,2625.00,Revenue,Transition Care Peterborough Ltd,Boarding Out Fees
Peterborough City Council,Children's & Safeguarding,Access to Resources & Specialist Commissioning,Services,09/11/2018,30201886,1953.00,Revenue,Transition Care Peterborough Ltd,Boarding Out Fees
Peterborough City Council,Communities,Housing,Services,09/11/2018,30201889,3150.00,Revenue,Singh and Sons Property Management Ltd,Temporary Accommodation Costs
Peterborough City Council,Communities,Housing,Services,09/11/2018,30201890,2975.00,Revenue,Singh and Sons Property Management Ltd,Temporary Accommodation Costs
Peterborough City Council,Communities,Housing,Services,09/11/2018,30201891,3220.00,Revenue,Singh and Sons Property Management Ltd,Temporary Accommodation Costs
Peterborough City Council,Communities,Housing,Services,09/11/2018,30201892,2230.00,Revenue,Singh and Sons Property Management Ltd,Temporary Accommodation Costs
Peterborough City Council,Children's & Safeguarding,Children's Social Care,Agency Staff,09/11/2018,30201897,8154.50,Revenue,Caritas Recruitment,External Temporary Staff
Peterborough City Council,Corporate Property,Office Accomodation,Cleaning & Domestic Supplies,09/11/2018,30201905,528.01,Revenue,PHS Group Plc,Hygiene Supplies
Peterborough City Council,Corporate Property,Office Accomodation,Repair & Maintenance of Buildings,09/11/2018,30201918,3743.45,Revenue,Baker Perkins Ltd,Service Charges - Premises
Peterborough City Council,Children's & Safeguarding,Access to Resources & Specialist Commissioning,Services,09/11/2018,30201921,1464.85,Revenue,PC Homes,Boarding Out Fees
Peterborough City Council,Children's & Safeguarding,Access to Resources & Specialist Commissioning,Services,09/11/2018,30201923,1464.85,Revenue,PC Homes,Boarding Out Fees
Peterborough City Council,Commissioning and Commercial Operations,Commissioning,Services,09/11/2018,30201927,562.51,Revenue,CAPITA Translation and Interpreting,Interpretation Expenses
Peterborough City Council,Commissioning and Commercial Operations,Commissioning,Services,09/11/2018,30201931,706.22,Revenue,CAPITA Translation and Interpreting,Interpretation Expenses
Peterborough City Council,Adults,Home Services Delivery Model,Services,09/11/2018,30201932,2464.44,Revenue,Lynch Healthcare Limited,Grant Payment
Peterborough City Council,Commissioning and Commercial Operations,Commissioning,Services,09/11/2018,30201933,2800.16,Revenue,CAPITA Translation and Interpreting,Interpretation Expenses
Peterborough City Council,Adults,Therapy/Reablement/Community Equipment,Agency Staff,09/11/2018,30201935,5146.35,Revenue,Swim Recruitment,External Temporary Staff
Peterborough City Council,Commissioning and Commercial Operations,Clare Lodge,Agency Staff,09/11/2018,30201937,3232.00,Revenue,Wrixon Care Services,External Temporary Staff
Peterborough City Council,Commissioning and Commercial Operations,Clare Lodge,Agency Staff,09/11/2018,30201938,2192.00,Revenue,Wrixon Care Services,External Temporary Staff
Peterborough City Council,Development and Construction,Planning Compliance,Agency Staff,09/11/2018,30201978,817.96,Revenue,Reed Specialist Recruitment Limited,External Temporary Staff
Peterborough City Council,Corporate,Corporate,Non Revenue,12/11/2018,30182958,1261.44,Capital,Network Rail Infrastructure Ltd,Building And Site Works
Peterborough City Council,Education,Special Educational Needs / Inclusion,Services,12/11/2018,30199032,3636.00,Revenue,Tripod Learning Ltd,Education Expenses
Peterborough City Council,Children's & Safeguarding,Children's Social Care,Services,12/11/2018,30199033,4000.00,Revenue,Tripod Partners Ltd,Recruitment Fees
Peterborough City Council,Adults,Independent Sector Placements,Services,12/11/2018,30199201,570.27,Revenue,Axiom Housing Association Ltd,Home Care
Peterborough City Council,Peterborough Highway Services,Network and Traffic Management,Services,12/11/2018,30199231,3856.07,Revenue,Dynniq UK Ltd,Infrastructure Maintenance
Peterborough City Council,Peterborough Highway Services,Network and Traffic Management,Services,12/11/2018,30199234,3981.03,Revenue,Dynniq UK Ltd,Infrastructure Maintenance
Peterborough City Council,Children's & Safeguarding,Children's Social Care,Services,12/11/2018,30199276,4000.00,Revenue,Tripod Partners Ltd,Recruitment Fees
Peterborough City Council,Children's & Safeguarding,Children's Social Care,Services,12/11/2018,30199319,4000.00,Revenue,Tripod Partners Ltd,Recruitment Fees
Peterborough City Council,Children's & Safeguarding,Children's Social Care,Services,12/11/2018,30199328,4000.00,Revenue,Tripod Partners Ltd,Recruitment Fees
Peterborough City Council,Children's & Safeguarding,Children's Social Care,Services,12/11/2018,30199347,4000.00,Revenue,Tripod Partners Ltd,Recruitment Fees
Peterborough City Council,Children's & Safeguarding,Children's Social Care,Agency Staff,12/11/2018,30199412,1406.00,Revenue,NonStop Recruitment Ltd,External Temporary Staff
Peterborough City Council,Children's & Safeguarding,Children's Social Care,Third Party Payments,12/11/2018,30199503,84063.00,Revenue,Barnardo Services Limited,Third Party Payments - Contract
Peterborough City Council,Westcombe Engineering,Westcombe Engineering,"Tools, Equipment, Furniture & Materials",12/11/2018,30199505,12272.25,Revenue,BWC Aluminium Ltd,Materials
Peterborough City Council,Adults,Block Contracts,Third Party Payments,12/11/2018,30199506,6894.96,Revenue,Axiom Housing Association Ltd,Third Party Payments - Contract
Peterborough City Council,Adults,Strategic Commissioning - Management,Agency Staff,12/11/2018,30199514,2352.96,Revenue,Badenoch & Clark Ltd,External Temporary Staff
Peterborough City Council,HR,HR WFD & Training,Interview & Training Expenses,12/11/2018,30199517,4910.00,Revenue,WebBased Ltd,Training
Peterborough City Council,Corporate Items,Corporate Services,Agency Staff,12/11/2018,30199568,10360.00,Revenue,Penna Plc,External Temporary Staff
Peterborough City Council,Corporate,Corporate,Non Revenue,12/11/2018,30199572,1382.00,Capital,Palmer Building Solutions Ltd,Furniture And Equipment Purchase
Peterborough City Council,Adults,Independent Sector Placements,Services,12/11/2018,30199602,2535.48,Revenue,Kemps Place Ltd,Residential Care
Peterborough City Council,Adults,Independent Sector Placements,Services,12/11/2018,30199603,1094.56,Revenue,Kemps Place Ltd,Residential Care
Peterborough City Council,Adults,Independent Sector Placements,Services,12/11/2018,30199604,2735.48,Revenue,Kemps Place Ltd,Residential Care
Peterborough City Council,Financial Services,Finance,Services,12/11/2018,30199626,12352.50,Revenue,Penna Plc,Consultants Fees
Peterborough City Council,Education,School Infrastructure,Services,12/11/2018,30199946,9349.32,Revenue,IIC by Education (P'boro) Ltd,Legal Costs
Peterborough City Council,Corporate,Corporate,Non Revenue,12/11/2018,30200499,1525.00,Capital,Dolphin Mobility East Midlands Ltd,Grant Payment
Peterborough City Council,Education,Financing - Resources,Services,12/11/2018,30200696,8550.44,Revenue,Sense,Education Expenses
Peterborough City Council,Commissioning and Commercial Operations,Clare Lodge,Services,12/11/2018,30200785,676.60,Revenue,Pearson Education,Exam Fees
Peterborough City Council,Westcombe Engineering,Westcombe Engineering,"Tools, Equipment, Furniture & Materials",12/11/2018,30201157,531.36,Revenue,Barron Clark Castings Ltd,Materials
Peterborough City Council,Communities,Housing,Services,12/11/2018,30201282,560.00,Revenue,Property Squires,Financial Assistance
Peterborough City Council,Communities,Housing,Services,12/11/2018,30201283,600.00,Revenue,Redacted Personal Information,Financial Assistance
Peterborough City Council,Communities,Housing,Services,12/11/2018,30201285,500.00,Revenue,English Estates Property Agents,Financial Assistance
Peterborough City Council,Communities,Housing,Services,12/11/2018,30201286,560.00,Revenue,RWP Property Management Ltd,Financial Assistance
Peterborough City Council,Communities,Housing,Services,12/11/2018,30201289,535.00,Revenue,Redacted Personal Information,Financial Assistance
Peterborough City Council,Communities,Housing,Services,12/11/2018,30201415,825.00,Revenue,Redacted Personal Information,Financial Assistance
Peterborough City Council,Communities,Housing,Services,12/11/2018,30201416,535.00,Revenue,Redacted Personal Information,Financial Assistance
Peterborough City Council,Communities,Housing,Services,12/11/2018,30201419,575.00,Revenue,Redacted Personal Information,Financial Assistance
Peterborough City Council,"Director, OP & JV",Growth HoS,Third Party Payments,12/11/2018,30201431,2756587.03,Revenue & Capital,Skanska Construction UK Ltd,Third Party Payments - Contract
Peterborough City Council,Peterborough Highway Services,Transport & Infrastructure Commissioning,Energy Costs,12/11/2018,30201483,2790.44,Revenue,EDF Energy Networks Ltd,Electricity
Peterborough City Council,Peterborough Highway Services,Transport & Infrastructure Commissioning,Energy Costs,12/11/2018,30201484,85994.62,Revenue,EDF Energy Networks Ltd,Electricity
Peterborough City Council,Communities,Housing,Services,12/11/2018,30201497,1604.31,Revenue,Property Line,Financial Assistance
Peterborough City Council,Communities,Housing,Services,12/11/2018,30201498,1188.80,Revenue,Bee Lettings Ltd,Financial Assistance
Peterborough City Council,Communities,Housing,Services,12/11/2018,30201500,750.00,Revenue,Bee Lettings Ltd,Financial Assistance
Peterborough City Council,Communities,Housing,Services,12/11/2018,30201501,545.00,Revenue,Redacted Personal Information,Financial Assistance
Peterborough City Council,Communities,Housing,Services,12/11/2018,30201502,575.00,Revenue,Redacted Personal Information,Financial Assistance
Peterborough City Council,Communities,Housing,Services,12/11/2018,30201503,550.00,Revenue,Hometime 2020 Ltd,Financial Assistance
Peterborough City Council,Communities,Housing,Services,12/11/2018,30201504,550.00,Revenue,Redacted Personal Information,Financial Assistance
Peterborough City Council,Communities,Housing,Services,12/11/2018,30201505,795.00,Revenue,Redacted Personal Information,Financial Assistance
Peterborough City Council,Communities,Housing,Services,12/11/2018,30201506,750.00,Revenue,Redacted Personal Information,Financial Assistance
Peterborough City Council,Communities,Housing,Services,12/11/2018,30201510,650.00,Revenue,Redacted Personal Information,Financial Assistance
Peterborough City Council,Communities,Housing,Services,12/11/2018,30201511,750.00,Revenue,Redacted Personal Information,Financial Assistance
Peterborough City Council,Children's & Safeguarding,Access to Resources & Specialist Commissioning,Services,12/11/2018,30201888,2205.00,Revenue,Transition Care Peterborough Ltd,Boarding Out Fees
Peterborough City Council,Adults,Independent Sector Placements,Services,12/11/2018,30201898,24732.66,Revenue,Glenholme Healthcare Limited,Home Care
Peterborough City Council,Communities,Housing,Services,12/11/2018,30201979,41304.00,Revenue,Stef & Philips Ltd,Temporary Accommodation Costs
Peterborough City Council,Adults,Other Services,Third Party Payments,12/11/2018,30202065,12791.00,Revenue,Healthwatch Cambridgeshire and Peterborough,Third Party Payments - Contract
Peterborough City Council,Children's & Safeguarding,Early Help ASC/CSC,Agency Staff,12/11/2018,30202066,543.39,Revenue,Reed Specialist Recruitment Limited,External Temporary Staff
Peterborough City Council,Adults,Therapy/Reablement/Community Equipment,Agency Staff,12/11/2018,30202068,1091.81,Revenue,Eden Brown Ltd,External Temporary Staff
Peterborough City Council,Corporate,Corporate,Non Revenue,12/11/2018,30202072,904.15,Balance Sheet,The Prudential Assurance Company Ltd,Pensions
Peterborough City Council,Corporate,Corporate,Non Revenue,12/11/2018,30202073,5271.57,Balance Sheet,The Prudential Assurance Company Ltd,Pensions
Peterborough City Council,Legal Services,Legal Services,Services,12/11/2018,30202074,700.00,Revenue,"Elliott, Ms Margot",Legal Costs
Peterborough City Council,Education,HTS & CSC Transport,Contract Hire and Operating Leases,12/11/2018,8000128831,954.75,Revenue,Redacted Personal Information,Hired Transport
Peterborough City Council,Education,HTS & CSC Transport,Contract Hire and Operating Leases,12/11/2018,8000128832,1330.87,Revenue,Redacted Personal Information,Hired Transport
Peterborough City Council,Education,HTS & CSC Transport,Contract Hire and Operating Leases,12/11/2018,8000128834,589.50,Revenue,Redacted Personal Information,Hired Transport
Peterborough City Council,Education,HTS & CSC Transport,Contract Hire and Operating Leases,12/11/2018,8000128837,1604.87,Revenue,Redacted Personal Information,Hired Transport
Peterborough City Council,Education,HTS & CSC Transport,Contract Hire and Operating Leases,12/11/2018,8000128845,1440.00,Revenue,A2B Euro Cars,Hired Transport
Peterborough City Council,Education,HTS & CSC Transport,Contract Hire and Operating Leases,12/11/2018,8000128871,770.67,Revenue,Redacted Personal Information,Hired Transport
Peterborough City Council,Legal & Democratic,Democratic Services,Contract Hire and Operating Leases,12/11/2018,8000129414,534.32,Revenue,Lex Autolease Ltd,Leasing Charges
Peterborough City Council,Regulatory Services,Regulatory Services,"Tools, Equipment, Furniture & Materials",14/11/2018,30199293,541.10,Revenue,Serco Ltd,Computer Hardware
Peterborough City Council,Legal Services,Legal Services,Agency Staff,14/11/2018,30199439,2062.50,Revenue,Venn Group Ltd,External Temporary Staff
Peterborough City Council,Legal Services,Legal Services,Agency Staff,14/11/2018,30199440,670.53,Revenue,Venn Group Ltd,External Temporary Staff
Peterborough City Council,Legal Services,Legal Services,Agency Staff,14/11/2018,30199441,607.23,Revenue,Venn Group Ltd,External Temporary Staff
Peterborough City Council,Legal Services,Legal Services,Agency Staff,14/11/2018,30199442,1313.25,Revenue,Venn Group Ltd,External Temporary Staff
Peterborough City Council,Legal Services,Legal Services,Agency Staff,14/11/2018,30199443,765.00,Revenue,Venn Group Ltd,External Temporary Staff
Peterborough City Council,Legal Services,Legal Services,Agency Staff,14/11/2018,30199444,726.00,Revenue,Venn Group Ltd,External Temporary Staff
Peterborough City Council,Peterborough Highway Services,Highway & Drainage Control,Agency Staff,14/11/2018,30199569,1425.60,Revenue,Matchtech,External Temporary Staff
Peterborough City Council,ICT,ICT,Agency Staff,14/11/2018,30199571,2500.00,Revenue,Cranford Solutions Ltd,External Temporary Staff
Peterborough City Council,City Centre Management,"Markets, Tourism & Events","Tools, Equipment, Furniture & Materials",14/11/2018,30199573,10138.00,Revenue,Manor Marquees & Structures,Hire of Equipment
Peterborough City Council,ICT,ICT,Services,14/11/2018,30199582,202595.00,Revenue,Cloud Technology Solutions,Computer Software
Peterborough City Council,Corporate Items,Corporate Services,Services,14/11/2018,30199583,29186.67,Revenue,East of England LGA,Consultants Fees
Peterborough City Council,Adults,Independent Sector Placements,Services,14/11/2018,30199608,6325.64,Revenue,NORTH EAST AUTISM SOCIETY,Residential Care
Peterborough City Council,Adults,Independent Sector Placements,Services,14/11/2018,30199611,2167.60,Revenue,HEREWARD CARE SERVICES LIMITED,Residential Care
Peterborough City Council,Adults,Independent Sector Placements,Services,14/11/2018,30199612,3431.12,Revenue,HEREWARD CARE SERVICES LIMITED,Residential Care
Peterborough City Council,Adults,Independent Sector Placements,Services,14/11/2018,30199613,2671.84,Revenue,HEREWARD CARE SERVICES LIMITED,Residential Care
Peterborough City Council,Adults,Independent Sector Placements,Services,14/11/2018,30199614,4491.36,Revenue,HEREWARD CARE SERVICES LIMITED,Residential Care
Peterborough City Council,Adults,Independent Sector Placements,Services,14/11/2018,30199615,2607.00,Revenue,HEREWARD CARE SERVICES LIMITED,Residential Care
Peterborough City Council,Adults,Independent Sector Placements,Services,14/11/2018,30199616,2677.32,Revenue,HEREWARD CARE SERVICES LIMITED,Residential Care
Peterborough City Council,Adults,Independent Sector Placements,Services,14/11/2018,30199660,897.90,Revenue,Athena (Ashlynn Grange),Residential Care
Peterborough City Council,Adults,Independent Sector Placements,Services,14/11/2018,30199661,2655.96,Revenue,Athena (Ashlynn Grange),Residential Care
Peterborough City Council,City Centre Management,"Markets, Tourism & Events",Services,14/11/2018,30199670,1080.00,Revenue,Traffic Management Services (Retford) Ltd (TMS),Hired Services
Peterborough City Council,City Centre Management,"Markets, Tourism & Events",Services,14/11/2018,30199672,9475.00,Revenue,Traffic Management Services (Retford) Ltd (TMS),Hired Services
Peterborough City Council,Corporate Property,Commercial Propety,Services,14/11/2018,30199879,3000.00,Revenue,Michael D Boughton,Surveys
Peterborough City Council,Development and Construction,Planning Compliance,Agency Staff,14/11/2018,30199883,1772.70,Revenue,Park Avenue Recruitment Limited,External Temporary Staff
Peterborough City Council,Adults,Block Contracts,Contract Hire and Operating Leases,14/11/2018,30199885,7000.00,Revenue,Consummate Care Limited,Hired Transport
Peterborough City Council,Corporate,Corporate,Non Revenue,14/11/2018,30199887,3881.93,Capital,British Telecom PLC,Building And Site Works
Peterborough City Council,Adults,Mental Capacity Act & DoLs,Services,14/11/2018,30199890,1118.80,Revenue,SS Psychiatric Services Ltd,Hired Services
Peterborough City Council,Commissioning and Commercial Operations,Clare Lodge,Agency Staff,14/11/2018,30199902,2032.00,Revenue,Wrixon Care Services,External Temporary Staff
Peterborough City Council,Commissioning and Commercial Operations,Clare Lodge,Agency Staff,14/11/2018,30199903,1056.00,Revenue,Wrixon Care Services,External Temporary Staff
Peterborough City Council,Commissioning and Commercial Operations,Clare Lodge,Agency Staff,14/11/2018,30199905,1568.00,Revenue,Wrixon Care Services,External Temporary Staff
Peterborough City Council,Commissioning and Commercial Operations,Clare Lodge,Agency Staff,14/11/2018,30199906,1904.00,Revenue,Wrixon Care Services,External Temporary Staff
Peterborough City Council,Commissioning and Commercial Operations,Clare Lodge,Agency Staff,14/11/2018,30199907,928.00,Revenue,Wrixon Care Services,External Temporary Staff
Peterborough City Council,Commissioning and Commercial Operations,Clare Lodge,Agency Staff,14/11/2018,30199908,1488.00,Revenue,Wrixon Care Services,External Temporary Staff
Peterborough City Council,Commissioning and Commercial Operations,Clare Lodge,Agency Staff,14/11/2018,30199909,912.00,Revenue,Wrixon Care Services,External Temporary Staff
Peterborough City Council,Commissioning and Commercial Operations,Clare Lodge,Agency Staff,14/11/2018,30199911,1160.00,Revenue,Wrixon Care Services,External Temporary Staff
Peterborough City Council,Commissioning and Commercial Operations,Clare Lodge,Agency Staff,14/11/2018,30199912,1088.00,Revenue,Wrixon Care Services,External Temporary Staff
Peterborough City Council,Commissioning and Commercial Operations,Clare Lodge,Agency Staff,14/11/2018,30199913,1584.00,Revenue,Wrixon Care Services,External Temporary Staff
Peterborough City Council,Marketing & Communications,Marketing & Communications,Services,14/11/2018,30199942,4502.85,Revenue,TLC Signs & Banners,Signs
Peterborough City Council,Commissioning and Commercial Operations,Commissioning,Services,14/11/2018,30199943,800.00,Revenue,BDP Social Care Ltd,Hired Services
Peterborough City Council,Commissioning and Commercial Operations,Commissioning,Services,14/11/2018,30199944,800.00,Revenue,BDP Social Care Ltd,Hired Services
Peterborough City Council,"Cemeteries, Cremation & Registrars",Bereavement Service,Grounds Maintenance,14/11/2018,30200030,650.00,Revenue,JAT Ingledew,Grounds Maintenance
Peterborough City Council,Peterborough Highway Services,Transport & Infrastructure Commissioning,Services,14/11/2018,30200097,595.00,Revenue,UK Power Networks (operations) Ltd,Infrastructure Maintenance
Peterborough City Council,Peterborough Highway Services,Transport & Infrastructure Commissioning,Third Party Payments,14/11/2018,30200099,1136.50,Revenue,Royal Voluntary Service,Grant-Third Party
Peterborough City Council,Westcombe Engineering,Westcombe Engineering,"Tools, Equipment, Furniture & Materials",14/11/2018,30200102,593.94,Revenue,Carillon Industrial Services Ltd,Tools
Peterborough City Council,Peterborough Highway Services,Transport & Infrastructure Commissioning,Services,14/11/2018,30200103,28000.00,Revenue,Sustrans Ltd,Grant Payment
Peterborough City Council,Peterborough Highway Services,Network and Traffic Management,Advertising,14/11/2018,30200107,1379.37,Revenue,Johnston Press Midlands Division,Advertising
Peterborough City Council,Peterborough Highway Services,Network and Traffic Management,Advertising,14/11/2018,30200108,517.27,Revenue,Johnston Press Midlands Division,Advertising
Peterborough City Council,Energy,Environment Capital,Services,14/11/2018,30200110,1395.20,Revenue,Orsis (UK) Ltd,Subscriptions
Peterborough City Council,Children's & Safeguarding,External Education Placements,Services,14/11/2018,30200113,4845.33,Revenue,Copthill School Ltd,Out Of Area Education Costs
Peterborough City Council,Adults,Block Contracts,Third Party Payments,14/11/2018,30200120,60548.12,Revenue,HEREWARD CARE SERVICES LIMITED,Third Party Payments - Contract
Peterborough City Council,Development and Construction,Development Management,Customer and client receipts - Fees & Charges,14/11/2018,30200125,924.00,Revenue,Planning Portal,Refunds
Peterborough City Council,Adults,Independent Sector Placements,Services,14/11/2018,30200275,2548.12,Revenue,Sense,Day Care
Peterborough City Council,City Centre Management,"Markets, Tourism & Events",Services,14/11/2018,30200279,1250.00,Revenue,Redacted Personal Information,Prizes
Peterborough City Council,Corporate Property,Commercial Propety,Agency Staff,14/11/2018,30200293,2772.11,Revenue,Reed Specialist Recruitment Limited,External Temporary Staff
Peterborough City Council,Commissioning and Commercial Operations,Commissioning,Services,14/11/2018,30200319,1630.20,Revenue,BDP Social Care Ltd,Hired Services
Peterborough City Council,Children's & Safeguarding,Early Help ASC/CSC,Services,14/11/2018,30200321,2319.90,Revenue,BDP Social Care Ltd,Hired Services
Peterborough City Council,Commissioning and Commercial Operations,Commissioning Team,Agency Staff,14/11/2018,30200393,2284.12,Revenue,Badenoch & Clark Ltd,External Temporary Staff
Peterborough City Council,"Cemeteries, Cremation & Registrars",Bereavement Service,"Tools, Equipment, Furniture & Materials",14/11/2018,30200395,589.70,Revenue,Scribes Ltd,Memorials
Peterborough City Council,City Centre Management,"Markets, Tourism & Events",Services,14/11/2018,30200427,1250.00,Revenue,Redacted Personal Information,Prizes
Peterborough City Council,City Centre Management,"Markets, Tourism & Events",Services,14/11/2018,30200430,600.00,Revenue,Redacted Personal Information,Prizes
Peterborough City Council,City Centre Management,"Markets, Tourism & Events",Services,14/11/2018,30200433,600.00,Revenue,Redacted Personal Information,Prizes
Peterborough City Council,Adults,Day opportunities - Older People,Agency Staff,14/11/2018,30200453,4195.29,Revenue,Eden Brown Ltd,External Temporary Staff
Peterborough City Council,"Cemeteries, Cremation & Registrars",Bereavement Service,Grounds Maintenance,14/11/2018,30200500,2610.00,Revenue,A M Strickland Builders,Grounds Maintenance
Peterborough City Council,Peterborough Highway Services,Transport & Infrastructure Commissioning,Transport Costs,14/11/2018,30200510,188901.95,Revenue,Stagecoach in Peterborough,Public Transport
Peterborough City Council,Legal Services,Legal Services,Services,14/11/2018,30200524,550.00,Revenue,"Walji, Miss Shabnam",Legal Costs
Peterborough City Council,Communities,Service Director - Adults & Communities,Third Party Payments,14/11/2018,30200540,1520.00,Revenue,Enterprise Managed Services Limited,Grant-Third Party
Peterborough City Council,Commissioning and Commercial Operations,Commissioning Team,Interview & Training Expenses,14/11/2018,30200555,995.83,Revenue,RHG Consult Ltd,Training
Peterborough City Council,Education,Special Educational Needs / Inclusion,Agency Staff,14/11/2018,30200564,5500.00,Revenue,Permanent Futures Ltd,External Temporary Staff
Peterborough City Council,Adults,Independent Sector Placements,Services,14/11/2018,30200636,964.25,Revenue,RegionalCare,Home Care
Peterborough City Council,Adults,Independent Sector Placements,Services,14/11/2018,30200639,812.00,Revenue,RegionalCare,Home Care
Peterborough City Council,Adults,Independent Sector Placements,Services,14/11/2018,30200644,2102.50,Revenue,RegionalCare,Home Care
Peterborough City Council,Commissioning and Commercial Operations,Clare Lodge,"Tools, Equipment, Furniture & Materials",14/11/2018,30200667,563.19,Revenue,Nisbets,Furniture And Equipment Purchase
Peterborough City Council,Adults,Independent Sector Placements,Services,14/11/2018,30200676,1319.50,Revenue,RegionalCare,Home Care
Peterborough City Council,Adults,Independent Sector Placements,Services,14/11/2018,30200684,1015.00,Revenue,RegionalCare,Home Care
Peterborough City Council,Communities,Targeted Youth Service,Services,14/11/2018,30200900,12000.00,Revenue,Peterborough Open Awards Centre CIC,Youth Programmes
Peterborough City Council,Westcombe Engineering,Westcombe Engineering,"Tools, Equipment, Furniture & Materials",14/11/2018,30201003,531.36,Revenue,Barron Clark Castings Ltd,Materials
Peterborough City Council,Corporate Items,Corporate Services,Services,14/11/2018,30201017,20893.00,Revenue,Ernst & Young LLP,Audit Fees
Peterborough City Council,Adults,Independent Sector Placements,Services,14/11/2018,30201107,908.83,Revenue,Sense,Residential Care
Peterborough City Council,Westcombe Engineering,Westcombe Engineering,"Tools, Equipment, Furniture & Materials",14/11/2018,30201154,531.36,Revenue,Barron Clark Castings Ltd,Materials
Peterborough City Council,Westcombe Engineering,Westcombe Engineering,"Tools, Equipment, Furniture & Materials",14/11/2018,30201158,531.36,Revenue,Barron Clark Castings Ltd,Materials
Peterborough City Council,Westcombe Engineering,Westcombe Engineering,"Tools, Equipment, Furniture & Materials",14/11/2018,30201160,531.36,Revenue,Barron Clark Castings Ltd,Materials
Peterborough City Council,Adults,Home Services Delivery Model,Agency Staff,14/11/2018,30201246,1094.64,Revenue,Reed Specialist Recruitment Limited,External Temporary Staff
Peterborough City Council,Children's & Safeguarding,Children's Social Care,Relocation,14/11/2018,30201321,4091.09,Revenue,Tripod Partners Ltd,Relocation Expenses
Peterborough City Council,Legal Services,Legal Services,Services,14/11/2018,30201353,1250.00,Revenue,Miss Alicia Theaker,Legal Costs
Peterborough City Council,Children's & Safeguarding,Children's Social Care,Relocation,14/11/2018,30201413,1601.53,Revenue,Tripod Partners Ltd,Relocation Expenses
Peterborough City Council,Children's & Safeguarding,Children's Social Care,Relocation,14/11/2018,30201420,3782.62,Revenue,Tripod Partners Ltd,Relocation Expenses
Peterborough City Council,Children's & Safeguarding,Children's Social Care,Relocation,14/11/2018,30201459,6576.97,Revenue,Tripod Partners Ltd,Relocation Expenses
Peterborough City Council,Children's & Safeguarding,Children's Social Care,Relocation,14/11/2018,30201466,7124.58,Revenue,Tripod Partners Ltd,Relocation Expenses
Peterborough City Council,Children's & Safeguarding,Children's Social Care,Relocation,14/11/2018,30201520,2277.23,Revenue,Tripod Partners Ltd,Relocation Expenses
Peterborough City Council,Adults,Strategic Commissioning - Management,Agency Staff,14/11/2018,30201670,664.28,Revenue,Reed Specialist Recruitment Limited,External Temporary Staff
Peterborough City Council,Corporate Property,Office Accomodation,Agency Staff,14/11/2018,30201706,4730.04,Revenue,Reed Specialist Recruitment Limited,External Temporary Staff
Peterborough City Council,Legal Services,Legal Services,Agency Staff,14/11/2018,30201707,1152.00,Revenue,Reed Specialist Recruitment Limited,External Temporary Staff
Peterborough City Council,Legal Services,Legal Services,Agency Staff,14/11/2018,30201709,576.00,Revenue,Reed Specialist Recruitment Limited,External Temporary Staff
Peterborough City Council,Legal Services,Legal Services,Agency Staff,14/11/2018,30201710,556.81,Revenue,Reed Specialist Recruitment Limited,External Temporary Staff
Peterborough City Council,Adults,Independent Sector Placements,Services,14/11/2018,30201716,623.50,Revenue,RegionalCare,Home Care
Peterborough City Council,Adults,Independent Sector Placements,Services,14/11/2018,30201717,616.25,Revenue,RegionalCare,Home Care
Peterborough City Council,Adults,Independent Sector Placements,Services,14/11/2018,30201719,848.25,Revenue,RegionalCare,Home Care
Peterborough City Council,Children's & Safeguarding,Early Help ASC/CSC,Agency Staff,14/11/2018,30201809,538.54,Revenue,Reed Specialist Recruitment Limited,External Temporary Staff
Peterborough City Council,Regulatory Services,Regulatory Services,Agency Staff,14/11/2018,30201810,828.63,Revenue,Reed Specialist Recruitment Limited,External Temporary Staff
Peterborough City Council,Legal Services,Legal Services,Agency Staff,14/11/2018,30201815,944.13,Revenue,Giant Professional Limited,External Temporary Staff
Peterborough City Council,Legal Services,Legal Services,Services,14/11/2018,30201816,1866.00,Revenue,Kevin Gordon,Legal Costs
Peterborough City Council,Education,Special Educational Needs / Inclusion,Services,14/11/2018,30201831,2625.00,Revenue,Priory Hospital School Priory,Boarding Out Fees
Peterborough City Council,Communities,Housing,Services,14/11/2018,30201873,1390.00,Revenue,Redacted Personal Information,Financial Assistance
Peterborough City Council,Children's & Safeguarding,Access to Resources & Specialist Commissioning,Services,14/11/2018,30201885,2205.00,Revenue,Transition Care Peterborough Ltd,Boarding Out Fees
Peterborough City Council,Children's & Safeguarding,Access to Resources & Specialist Commissioning,Services,14/11/2018,30201922,1464.85,Revenue,PC Homes,Boarding Out Fees
Peterborough City Council,Corporate Property,Commercial Propety,Services,14/11/2018,30201936,1715.00,Revenue,Barker Storey Matthews,Valuations
Peterborough City Council,Development and Construction,Planning Compliance,Agency Staff,14/11/2018,30201976,887.78,Revenue,Reed Specialist Recruitment Limited,External Temporary Staff
Peterborough City Council,Communities,Housing,Services,14/11/2018,30201983,750.00,Revenue,Sharman Quinney,Financial Assistance
Peterborough City Council,Adults,Independent Sector Placements,Services,14/11/2018,30201984,1593.00,Revenue,THE HELPING HANDS GROUP,Day Care
Peterborough City Council,Adults,Independent Sector Placements,Services,14/11/2018,30201985,2440.00,Revenue,THE HELPING HANDS GROUP,Day Care
Peterborough City Council,Adults,Independent Sector Placements,Services,14/11/2018,30201987,2655.00,Revenue,THE HELPING HANDS GROUP,Day Care
Peterborough City Council,Adults,Independent Sector Placements,Services,14/11/2018,30201988,1593.00,Revenue,THE HELPING HANDS GROUP,Day Care
Peterborough City Council,Adults,Independent Sector Placements,Services,14/11/2018,30201989,1952.00,Revenue,THE HELPING HANDS GROUP,Day Care
Peterborough City Council,Adults,Independent Sector Placements,Services,14/11/2018,30201990,1062.00,Revenue,THE HELPING HANDS GROUP,Day Care
Peterborough City Council,Adults,Independent Sector Placements,Services,14/11/2018,30201991,3837.50,Revenue,THE HELPING HANDS GROUP,Day Care
Peterborough City Council,Adults,Independent Sector Placements,Services,14/11/2018,30201992,976.00,Revenue,THE HELPING HANDS GROUP,Day Care
Peterborough City Council,Adults,Independent Sector Placements,Services,14/11/2018,30201995,1260.00,Revenue,THE HELPING HANDS GROUP,Day Care
Peterborough City Council,Adults,Independent Sector Placements,Services,14/11/2018,30201996,1260.00,Revenue,THE HELPING HANDS GROUP,Day Care
Peterborough City Council,Adults,Independent Sector Placements,Services,14/11/2018,30201997,2440.00,Revenue,THE HELPING HANDS GROUP,Day Care
Peterborough City Council,Adults,Independent Sector Placements,Services,14/11/2018,30201998,1260.00,Revenue,THE HELPING HANDS GROUP,Day Care
Peterborough City Council,Adults,Independent Sector Placements,Services,14/11/2018,30201999,1389.00,Revenue,THE HELPING HANDS GROUP,Day Care
Peterborough City Council,Adults,Independent Sector Placements,Services,14/11/2018,30202001,756.00,Revenue,THE HELPING HANDS GROUP,Day Care
Peterborough City Council,Adults,Independent Sector Placements,Services,14/11/2018,30202002,504.00,Revenue,THE HELPING HANDS GROUP,Day Care
Peterborough City Council,Adults,Independent Sector Placements,Services,14/11/2018,30202003,1260.00,Revenue,THE HELPING HANDS GROUP,Day Care
Peterborough City Council,Adults,Independent Sector Placements,Services,14/11/2018,30202004,999.75,Revenue,THE HELPING HANDS GROUP,Day Care
Peterborough City Council,Adults,Independent Sector Placements,Services,14/11/2018,30202006,2440.00,Revenue,THE HELPING HANDS GROUP,Day Care
Peterborough City Council,Adults,Independent Sector Placements,Services,14/11/2018,30202007,1008.00,Revenue,THE HELPING HANDS GROUP,Day Care
Peterborough City Council,Adults,Independent Sector Placements,Services,14/11/2018,30202010,11632.60,Revenue,Turning Point Services Ltd,Home Care
Peterborough City Council,Adults,Independent Sector Placements,Services,14/11/2018,30202011,16651.60,Revenue,Turning Point Services Ltd,Home Care
Peterborough City Council,Adults,Independent Sector Placements,Services,14/11/2018,30202012,500.80,Revenue,Turning Point Services Ltd,Home Care
Peterborough City Council,Adults,Independent Sector Placements,Services,14/11/2018,30202013,4101.64,Revenue,Turning Point Services Ltd,Home Care
Peterborough City Council,Adults,Independent Sector Placements,Services,14/11/2018,30202014,6473.88,Revenue,Turning Point Services Ltd,Home Care
Peterborough City Council,Adults,Independent Sector Placements,Services,14/11/2018,30202015,4677.96,Revenue,Turning Point Services Ltd,Home Care
Peterborough City Council,Adults,Independent Sector Placements,Services,14/11/2018,30202016,6939.08,Revenue,Turning Point Services Ltd,Home Care
Peterborough City Council,Adults,Independent Sector Placements,Services,14/11/2018,30202017,6886.68,Revenue,Turning Point Services Ltd,Home Care
Peterborough City Council,Adults,Independent Sector Placements,Services,14/11/2018,30202018,5449.76,Revenue,Turning Point Services Ltd,Home Care
Peterborough City Council,Adults,Independent Sector Placements,Services,14/11/2018,30202019,5078.04,Revenue,Turning Point Services Ltd,Home Care
Peterborough City Council,Adults,Independent Sector Placements,Services,14/11/2018,30202020,6473.88,Revenue,Turning Point Services Ltd,Home Care
Peterborough City Council,Adults,Independent Sector Placements,Services,14/11/2018,30202021,5635.20,Revenue,Turning Point Services Ltd,Home Care
Peterborough City Council,Adults,Independent Sector Placements,Services,14/11/2018,30202022,6167.28,Revenue,Turning Point Services Ltd,Home Care
Peterborough City Council,Adults,Independent Sector Placements,Services,14/11/2018,30202023,5046.20,Revenue,Turning Point Services Ltd,Home Care
Peterborough City Council,Adults,Independent Sector Placements,Services,14/11/2018,30202024,6172.88,Revenue,Turning Point Services Ltd,Home Care
Peterborough City Council,Adults,Independent Sector Placements,Services,14/11/2018,30202025,5635.20,Revenue,Turning Point Services Ltd,Home Care
Peterborough City Council,Adults,Independent Sector Placements,Services,14/11/2018,30202047,1365.91,Revenue,Augusta Care Ltd,Home Care
Peterborough City Council,Adults,Independent Sector Placements,Services,14/11/2018,30202048,857.14,Revenue,Longueville Court (Barchester),Residential Care
Peterborough City Council,Adults,Independent Sector Placements,Services,14/11/2018,30202049,2301.88,Revenue,Avery House (Peterborough) t/a Brighterkind,Residential Care
Peterborough City Council,Adults,Independent Sector Placements,Services,14/11/2018,30202050,2545.96,Revenue,Augusta Care Ltd,Home Care
Peterborough City Council,Adults,Independent Sector Placements,Services,14/11/2018,30202051,549.00,Revenue,Springfield Care Limited  T/a Caring Crew,Home Care
Peterborough City Council,Adults,Independent Sector Placements,Services,14/11/2018,30202052,630.00,Revenue,Springfield Care Limited  T/a Caring Crew,Home Care
Peterborough City Council,Adults,Independent Sector Placements,Services,14/11/2018,30202054,2301.88,Revenue,Avery House (Peterborough) t/a Brighterkind,Residential Care
Peterborough City Council,Adults,Independent Sector Placements,Services,14/11/2018,30202055,4800.00,Revenue,Longueville Court (Barchester),Residential Care
Peterborough City Council,Adults,Independent Sector Placements,Services,14/11/2018,30202056,994.00,Revenue,K2 CARE LTD,Home Care
Peterborough City Council,Communities,Housing,Services,14/11/2018,30202079,1781.30,Revenue,Cross Keys Homes,Financial Assistance
Peterborough City Council,Peterborough Highway Services,Transport & Infrastructure Commissioning,Energy Costs,14/11/2018,30202085,1527.87,Revenue,British Gas Business,Electricity
Peterborough City Council,Commissioning and Commercial Operations,Early Years & Quality Improvement,Services,14/11/2018,30202094,10624.11,Revenue,Winyates Pre School,Grant Payment
Peterborough City Council,Commissioning and Commercial Operations,Early Years & Quality Improvement,Services,14/11/2018,30202095,20799.96,Revenue,Toddlers Inn Day Nursery,Grant Payment
Peterborough City Council,Commissioning and Commercial Operations,Early Years & Quality Improvement,Services,14/11/2018,30202096,25663.70,Revenue,ZigZag Day Nursery Ltd,Grant Payment
Peterborough City Council,Commissioning and Commercial Operations,Early Years & Quality Improvement,Services,14/11/2018,30202097,14522.22,Revenue,Peterborough High School Nursery,Grant Payment
Peterborough City Council,Commissioning and Commercial Operations,Early Years & Quality Improvement,Services,14/11/2018,30202098,15545.18,Revenue,The Learning Tree Kindergarten,Grant Payment
Peterborough City Council,Commissioning and Commercial Operations,Early Years & Quality Improvement,Services,14/11/2018,30202099,13171.47,Revenue,Stars Pre-School Ravensthorpe,Grant Payment
Peterborough City Council,Commissioning and Commercial Operations,Early Years & Quality Improvement,Services,14/11/2018,30202100,27645.94,Revenue,Stars Preschool Woodston,Grant Payment
Peterborough City Council,Commissioning and Commercial Operations,Early Years & Quality Improvement,Services,14/11/2018,30202101,22232.57,Revenue,The Day Nursery Peterborough Ltd,Grant Payment
Peterborough City Council,Commissioning and Commercial Operations,Early Years & Quality Improvement,Services,14/11/2018,30202102,37906.80,Revenue,Stars Pre-School Welland,Grant Payment
Peterborough City Council,Commissioning and Commercial Operations,Early Years & Quality Improvement,Services,14/11/2018,30202103,9341.21,Revenue,The Teddy Bears inn Day Nursery Ltd,Grant Payment
Peterborough City Council,Commissioning and Commercial Operations,Early Years & Quality Improvement,Services,14/11/2018,30202104,18663.63,Revenue,Stars Pre-School Parnwell,Grant Payment
Peterborough City Council,Commissioning and Commercial Operations,Early Years & Quality Improvement,Services,14/11/2018,30202105,20091.75,Revenue,St Thomas More Catholic Nursery,Grant Payment
Peterborough City Council,Commissioning and Commercial Operations,Early Years & Quality Improvement,Services,14/11/2018,30202106,12097.11,Revenue,Shooting Stars Pre-School,Grant Payment
Peterborough City Council,Commissioning and Commercial Operations,Early Years & Quality Improvement,Services,14/11/2018,30202107,4508.98,Revenue,Family Action,Grant Payment
Peterborough City Council,Commissioning and Commercial Operations,Early Years & Quality Improvement,Services,14/11/2018,30202108,7327.57,Revenue,St Michaels Playgroup,Grant Payment
Peterborough City Council,Commissioning and Commercial Operations,Early Years & Quality Improvement,Services,14/11/2018,30202109,22515.70,Revenue,Seedlings Nursery,Grant Payment
Peterborough City Council,Commissioning and Commercial Operations,Early Years & Quality Improvement,Services,14/11/2018,30202110,7334.21,Revenue,Paston & Gunthorpe Pre-School,Grant Payment
Peterborough City Council,Commissioning and Commercial Operations,Early Years & Quality Improvement,Services,14/11/2018,30202111,13948.25,Revenue,Newark Playgroup,Grant Payment
Peterborough City Council,Commissioning and Commercial Operations,Early Years & Quality Improvement,Services,14/11/2018,30202112,7442.10,Revenue,Nene Valley Day Nursery,Grant Payment
Peterborough City Council,Commissioning and Commercial Operations,Early Years & Quality Improvement,Services,14/11/2018,30202113,27821.87,Revenue,Manor House Nursery (Peterborough) Ltd,Grant Payment
Peterborough City Council,Commissioning and Commercial Operations,Early Years & Quality Improvement,Services,14/11/2018,30202114,24057.20,Revenue,Orton Longueville Playgroup,Grant Payment
Peterborough City Council,Commissioning and Commercial Operations,Early Years & Quality Improvement,Services,14/11/2018,30202115,11459.48,Revenue,Helpston Playhouse & Under Fives,Grant Payment
Peterborough City Council,Commissioning and Commercial Operations,Early Years & Quality Improvement,Services,14/11/2018,30202116,7605.22,Revenue,Little Poppets Day Nursery,Grant Payment
Peterborough City Council,Commissioning and Commercial Operations,Early Years & Quality Improvement,Services,14/11/2018,30202117,61897.15,Revenue,Little Stars Day Nursery,Grant Payment
Peterborough City Council,Commissioning and Commercial Operations,Early Years & Quality Improvement,Services,14/11/2018,30202118,5608.29,Revenue,Little Bubbles Nursery,Grant Payment
Peterborough City Council,Commissioning and Commercial Operations,Early Years & Quality Improvement,Services,14/11/2018,30202119,57213.55,Revenue,Herlington Pre-School,Grant Payment
Peterborough City Council,Commissioning and Commercial Operations,Early Years & Quality Improvement,Services,14/11/2018,30202120,9453.48,Revenue,East Community Playgroup,Grant Payment
Peterborough City Council,Commissioning and Commercial Operations,Early Years & Quality Improvement,Services,14/11/2018,30202121,28181.89,Revenue,Kiddi Caru Day Nursery,Grant Payment
Peterborough City Council,Commissioning and Commercial Operations,Early Years & Quality Improvement,Services,14/11/2018,30202122,12435.47,Revenue,Longthorpe Playgroup,Grant Payment
Peterborough City Council,Commissioning and Commercial Operations,Early Years & Quality Improvement,Services,14/11/2018,30202123,11394.55,Revenue,Little Blossoms,Grant Payment
Peterborough City Council,Commissioning and Commercial Operations,Early Years & Quality Improvement,Services,14/11/2018,30202124,70475.69,Revenue,Little Tigers Day Nursery,Grant Payment
Peterborough City Council,Commissioning and Commercial Operations,Early Years & Quality Improvement,Services,14/11/2018,30202125,8139.17,Revenue,Leighton Primary Pre-School,Grant Payment
Peterborough City Council,Commissioning and Commercial Operations,Early Years & Quality Improvement,Services,14/11/2018,30202126,21993.10,Revenue,Bright Star's day Nursery,Grant Payment
Peterborough City Council,Commissioning and Commercial Operations,Early Years & Quality Improvement,Services,14/11/2018,30202127,11611.83,Revenue,Bright Bambini  Montessori,Grant Payment
Peterborough City Council,Commissioning and Commercial Operations,Early Years & Quality Improvement,Services,14/11/2018,30202128,25666.10,Revenue,Bretton Community Pre-School,Grant Payment
Peterborough City Council,Commissioning and Commercial Operations,Early Years & Quality Improvement,Services,14/11/2018,30202129,27167.01,Revenue,Anna-Ca-Soo Day Nursery,Grant Payment
Peterborough City Council,Commissioning and Commercial Operations,Early Years & Quality Improvement,Services,14/11/2018,30202130,13812.44,Revenue,Busy Bunnies Braybrook,Grant Payment
Peterborough City Council,Commissioning and Commercial Operations,Early Years & Quality Improvement,Services,14/11/2018,30202132,35605.31,Revenue,Blackberry House Day Nursery,Grant Payment
Peterborough City Council,Commissioning and Commercial Operations,Early Years & Quality Improvement,Services,14/11/2018,30202134,79235.00,Revenue,Alpha Big Sky Ltd,Grant Payment
Peterborough City Council,Commissioning and Commercial Operations,Early Years & Quality Improvement,Services,14/11/2018,30202135,22724.80,Revenue,ABC Nursery,Grant Payment
Peterborough City Council,Commissioning and Commercial Operations,Early Years & Quality Improvement,Services,14/11/2018,30202136,23604.35,Revenue,Acorn Academy Day Nursery Ltd,Grant Payment
Peterborough City Council,Commissioning and Commercial Operations,Early Years & Quality Improvement,Services,14/11/2018,30202137,1992.31,Revenue,Redacted Personal Information,Grant Payment
Peterborough City Council,Commissioning and Commercial Operations,Early Years & Quality Improvement,Services,14/11/2018,30202138,40391.04,Revenue,Apricot Childcare,Grant Payment
Peterborough City Council,Commissioning and Commercial Operations,Early Years & Quality Improvement,Services,14/11/2018,30202139,1430.62,Revenue,Redacted Personal Information,Grant Payment
Peterborough City Council,Commissioning and Commercial Operations,Early Years & Quality Improvement,Services,14/11/2018,30202140,1825.82,Revenue,Redacted Personal Information,Grant Payment
Peterborough City Council,Corporate,Corporate,Non Revenue,14/11/2018,30202141,1500.00,Capital,Network Rail Property,Building And Site Works
Peterborough City Council,Commissioning and Commercial Operations,Early Years & Quality Improvement,Services,14/11/2018,30202142,695.84,Revenue,Redacted Personal Information,Grant Payment
Peterborough City Council,Commissioning and Commercial Operations,Early Years & Quality Improvement,Services,14/11/2018,30202143,636.96,Revenue,Redacted Personal Information,Grant Payment
Peterborough City Council,Adults,Therapy/Reablement/Community Equipment,Agency Staff,14/11/2018,30202163,4775.99,Revenue,Eden Brown Ltd,External Temporary Staff
Peterborough City Council,Communities,Housing,Services,14/11/2018,30202174,600.00,Revenue,Redacted Personal Information,Financial Assistance
Peterborough City Council,Communities,Housing,Services,14/11/2018,30202181,1100.00,Revenue,Redacted Personal Information,Financial Assistance
Peterborough City Council,Corporate,Corporate,Non Revenue,14/11/2018,30202183,5129.57,Balance Sheet,NHS Pensions,Pensions
Peterborough City Council,Corporate,Corporate,Non Revenue,14/11/2018,30202184,9541.55,Balance Sheet,NHS Pensions,Pensions
Peterborough City Council,Corporate,Corporate,Non Revenue,14/11/2018,30202185,472352.10,Balance Sheet,LGSS Cambridgeshire Pension Fund,Pensions
Peterborough City Council,Corporate,Corporate,Non Revenue,14/11/2018,30202188,16482.79,Balance Sheet,LGSS Cambridgeshire Pension Fund,Pensions
Peterborough City Council,Corporate,Corporate,Non Revenue,14/11/2018,30202190,189138.36,Balance Sheet,LGSS Cambridgeshire Pension Fund,Pensions
Peterborough City Council,Corporate,Corporate,Non Revenue,14/11/2018,30202192,67061.55,Balance Sheet,LGSS Cambridgeshire Pension Fund,Pensions
Peterborough City Council,Children's & Safeguarding,Access to Resources & Specialist Commissioning,Services,14/11/2018,30202214,6884.99,Revenue,Sixteen Plus Limited,Boarding Out Fees
Peterborough City Council,Children's & Safeguarding,Access to Resources & Specialist Commissioning,Services,14/11/2018,30202215,11655.00,Revenue,Sixteen Plus Limited,Boarding Out Fees
Peterborough City Council,Children's & Safeguarding,Access to Resources & Specialist Commissioning,Services,14/11/2018,30202216,1738.57,Revenue,Sixteen Plus Limited,Boarding Out Fees
Peterborough City Council,Children's & Safeguarding,Access to Resources & Specialist Commissioning,Services,14/11/2018,30202217,680.00,Revenue,Sixteen Plus Limited,Boarding Out Fees
Peterborough City Council,Children's & Safeguarding,Access to Resources & Specialist Commissioning,Services,14/11/2018,30202218,1970.71,Revenue,Sixteen Plus Limited,Boarding Out Fees
Peterborough City Council,Adults,Independent Sector Placements,Services,14/11/2018,30202220,1269.48,Revenue,THE CLAIR FRANCIS RETIREMENT HOME,Residential Care
Peterborough City Council,Adults,Independent Sector Placements,Services,14/11/2018,30202221,943.04,Revenue,THE CLAIR FRANCIS RETIREMENT HOME,Residential Care
Peterborough City Council,Adults,Independent Sector Placements,Services,14/11/2018,30202222,1821.88,Revenue,THE CLAIR FRANCIS RETIREMENT HOME,Residential Care
Peterborough City Council,Adults,Independent Sector Placements,Services,14/11/2018,30202223,928.92,Revenue,THE CLAIR FRANCIS RETIREMENT HOME,Residential Care
Peterborough City Council,Adults,Independent Sector Placements,Services,14/11/2018,30202224,1821.88,Revenue,THE CLAIR FRANCIS RETIREMENT HOME,Residential Care
Peterborough City Council,Commissioning and Commercial Operations,Early Years & Quality Improvement,Services,14/11/2018,30202226,10658.82,Revenue,Family Action,Grant Payment
Peterborough City Council,Commissioning and Commercial Operations,Early Years & Quality Improvement,Services,14/11/2018,30202227,615.00,Revenue,Family Action,Grant Payment
Peterborough City Council,Commissioning and Commercial Operations,Early Years & Quality Improvement,Services,14/11/2018,30202228,615.00,Revenue,Peterborough Regional College,Grant Payment
Peterborough City Council,Commissioning and Commercial Operations,Early Years & Quality Improvement,Services,14/11/2018,30202229,615.00,Revenue,Anna-Ca-Soo Day Nursery,Grant Payment
Peterborough City Council,Adults,Independent Sector Placements,Services,14/11/2018,30202246,1900.40,Revenue,Alysia Caring Ltd T/a Cherry Blossom care Home,Residential Care
Peterborough City Council,Adults,Independent Sector Placements,Services,14/11/2018,30202247,1900.40,Revenue,Alysia Caring Ltd T/a Cherry Blossom care Home,Residential Care
Peterborough City Council,Adults,Independent Sector Placements,Services,14/11/2018,30202248,1519.92,Revenue,Pilgrim Havens,Residential Care
Peterborough City Council,Adults,Independent Sector Placements,Services,14/11/2018,30202250,632.00,Revenue,Pilgrim Havens,Residential Care
Peterborough City Council,Adults,Independent Sector Placements,Services,14/11/2018,30202270,1564.79,Revenue,Sagecare Ltd,Home Care
Peterborough City Council,Adults,Independent Sector Placements,Services,14/11/2018,30202271,912.45,Revenue,Sagecare Ltd,Home Care
Peterborough City Council,Adults,Independent Sector Placements,Services,14/11/2018,30202272,684.22,Revenue,Sagecare Ltd,Home Care
Peterborough City Council,Adults,Independent Sector Placements,Services,14/11/2018,30202274,1040.96,Revenue,THE CLAIR FRANCIS RETIREMENT HOME,Residential Care
Peterborough City Council,Adults,Independent Sector Placements,Services,14/11/2018,30202275,771.00,Revenue,THE CLAIR FRANCIS RETIREMENT HOME,Residential Care
Peterborough City Council,Adults,Independent Sector Placements,Services,14/11/2018,30202276,1263.44,Revenue,THE CLAIR FRANCIS RETIREMENT HOME,Residential Care
Peterborough City Council,Adults,Independent Sector Placements,Services,14/11/2018,30202277,1821.88,Revenue,THE CLAIR FRANCIS RETIREMENT HOME,Residential Care
Peterborough City Council,Adults,Independent Sector Placements,Services,14/11/2018,30202278,1217.28,Revenue,THE CLAIR FRANCIS RETIREMENT HOME,Residential Care
Peterborough City Council,Adults,Independent Sector Placements,Services,14/11/2018,30202279,1301.48,Revenue,THE CLAIR FRANCIS RETIREMENT HOME,Residential Care
Peterborough City Council,Adults,Independent Sector Placements,Services,14/11/2018,30202280,1821.88,Revenue,THE CLAIR FRANCIS RETIREMENT HOME,Residential Care
Peterborough City Council,Adults,Independent Sector Placements,Services,14/11/2018,30202281,650.40,Revenue,THE CLAIR FRANCIS RETIREMENT HOME,Residential Care
Peterborough City Council,Adults,Independent Sector Placements,Services,14/11/2018,30202282,888.16,Revenue,THE CLAIR FRANCIS RETIREMENT HOME,Residential Care
Peterborough City Council,Adults,Independent Sector Placements,Services,14/11/2018,30202283,1821.88,Revenue,THE CLAIR FRANCIS RETIREMENT HOME,Residential Care
Peterborough City Council,Adults,Independent Sector Placements,Services,14/11/2018,30202285,1462.24,Revenue,ABOUT ME CARE AND SUPPORT LTD,Home Care
Peterborough City Council,Adults,Independent Sector Placements,Services,14/11/2018,30202286,2687.36,Revenue,ABOUT ME CARE AND SUPPORT LTD,Home Care
Peterborough City Council,Adults,Independent Sector Placements,Services,14/11/2018,30202287,2055.04,Revenue,ABOUT ME CARE AND SUPPORT LTD,Home Care
Peterborough City Council,Adults,Independent Sector Placements,Services,14/11/2018,30202288,849.68,Revenue,ABOUT ME CARE AND SUPPORT LTD,Home Care
Peterborough City Council,Adults,Independent Sector Placements,Services,14/11/2018,30202289,800.28,Revenue,ABOUT ME CARE AND SUPPORT LTD,Home Care
Peterborough City Council,Adults,Independent Sector Placements,Services,14/11/2018,30202291,2371.20,Revenue,ABOUT ME CARE AND SUPPORT LTD,Home Care
Peterborough City Council,Adults,Independent Sector Placements,Services,14/11/2018,30202292,1748.76,Revenue,ABOUT ME CARE AND SUPPORT LTD,Home Care
Peterborough City Council,Adults,Independent Sector Placements,Services,14/11/2018,30202293,2025.40,Revenue,ABOUT ME CARE AND SUPPORT LTD,Home Care
Peterborough City Council,Adults,Independent Sector Placements,Services,14/11/2018,30202294,1175.72,Revenue,ABOUT ME CARE AND SUPPORT LTD,Home Care
Peterborough City Council,Adults,Independent Sector Placements,Services,14/11/2018,30202295,2845.44,Revenue,ABOUT ME CARE AND SUPPORT LTD,Home Care
Peterborough City Council,Children's & Safeguarding,Access to Resources & Specialist Commissioning,Services,14/11/2018,30202306,1377.00,Revenue,Transition Care Peterborough Ltd,Boarding Out Fees
Peterborough City Council,Children's & Safeguarding,Access to Resources & Specialist Commissioning,Services,14/11/2018,30202307,1437.00,Revenue,Transition Care Peterborough Ltd,Boarding Out Fees
Peterborough City Council,Adults,Independent Sector Placements,Services,14/11/2018,30202312,2547.88,Revenue,Alysia Caring Ltd T/a Cherry Blossom care Home,Residential Care
Peterborough City Council,Adults,Independent Sector Placements,Services,14/11/2018,30202313,1900.40,Revenue,Alysia Caring Ltd T/a Cherry Blossom care Home,Residential Care
Peterborough City Council,Adults,Independent Sector Placements,Services,14/11/2018,30202314,2547.88,Revenue,Alysia Caring Ltd T/a Cherry Blossom care Home,Residential Care
Peterborough City Council,Legal Services,Legal Services,Agency Staff,14/11/2018,30202330,864.01,Revenue,Reed Specialist Recruitment Limited,External Temporary Staff
Peterborough City Council,Financial Services,Finance,Agency Staff,14/11/2018,30202340,675.64,Revenue,Reed Specialist Recruitment Limited,External Temporary Staff
Peterborough City Council,Legal Services,Legal Services,Agency Staff,14/11/2018,30202342,1917.36,Revenue,Reed Specialist Recruitment Limited,External Temporary Staff
Peterborough City Council,Peterborough Highway Services,Highway & Drainage Control,Agency Staff,14/11/2018,30202345,1017.61,Revenue,Reed Specialist Recruitment Limited,External Temporary Staff
Peterborough City Council,Communities,Housing,Services,14/11/2018,30202365,1655.00,Revenue,Kenneally Property Service,Financial Assistance
Peterborough City Council,Communities,Housing,Services,14/11/2018,30202366,750.00,Revenue,Record Property Solutions,Financial Assistance
Peterborough City Council,Communities,Housing,Services,14/11/2018,30202367,550.00,Revenue,Redacted Personal Information,Financial Assistance
Peterborough City Council,Communities,Housing,Services,14/11/2018,30202368,565.00,Revenue,Redacted Personal Information,Financial Assistance
Peterborough City Council,Communities,Housing,Services,14/11/2018,30202369,800.00,Revenue,Redacted Personal Information,Financial Assistance
Peterborough City Council,Communities,Housing,Services,14/11/2018,30202370,500.00,Revenue,English Estates Property Agents,Financial Assistance
Peterborough City Council,Communities,Housing,Services,14/11/2018,30202371,2619.28,Revenue,Cross Keys Homes,Financial Assistance
Peterborough City Council,Communities,Housing,Services,14/11/2018,30202372,1300.00,Revenue,Redacted Personal Information,Financial Assistance
Peterborough City Council,Capital Financing,Capital Financing,Services,14/11/2018,30202373,3583.33,Revenue,Public Sector Live,Subscriptions
Peterborough City Council,Communities,Housing,Services,14/11/2018,30202376,1074.79,Revenue,Prime Properties Peterborough Ltd,Financial Assistance
Peterborough City Council,Communities,Travellers,Contract Hire and Operating Leases,14/11/2018,30202383,3134.78,Revenue,Northumbria Healthcare NHS Foundation Trust,Leasing Charges
Peterborough City Council,Communities,Housing,Contract Hire and Operating Leases,14/11/2018,30202385,4495.61,Revenue,Northumbria Healthcare NHS Foundation Trust,Leasing Charges
Peterborough City Council,Children's & Safeguarding,Children's Social Care,Contract Hire and Operating Leases,14/11/2018,30202386,4159.84,Revenue,Northumbria Healthcare NHS Foundation Trust,Leasing Charges
Peterborough City Council,Legal Services,Legal Services,Services,14/11/2018,30202388,1209.60,Revenue,Martin McGann,Legal Costs
Peterborough City Council,Children's & Safeguarding,Early Help ASC/CSC,Agency Staff,14/11/2018,30202394,543.39,Revenue,Reed Specialist Recruitment Limited,External Temporary Staff
Peterborough City Council,Education,School Standards & Effectiveness,Services,14/11/2018,30202396,1575.00,Revenue,The Bluecoat School,Grant Payment
Peterborough City Council,Peterborough Highway Services,Highway & Drainage Control,Agency Staff,14/11/2018,30202409,1169.00,Revenue,Reed Specialist Recruitment Limited,External Temporary Staff
Peterborough City Council,Legal Services,Legal Services,Agency Staff,14/11/2018,30202411,2025.38,Revenue,Reed Specialist Recruitment Limited,External Temporary Staff
Peterborough City Council,Adults,Independent Sector Placements,Services,14/11/2018,30202421,1827.32,Revenue,Ashmere,Residential Care
Peterborough City Council,Adults,Home Services Delivery Model,Third Party Payments,14/11/2018,30202431,8259.10,Revenue,Cross Keys Homes,Grant-Third Party
Peterborough City Council,Communities,Housing,Services,14/11/2018,30202432,4723.40,Revenue,Cross Keys Homes,Temporary Accommodation Costs
Peterborough City Council,Adults,Independent Sector Placements,Services,14/11/2018,30202441,3546.32,Revenue,Avery House (Peterborough) t/a Brighterkind,Residential Care
Peterborough City Council,Adults,Independent Sector Placements,Services,14/11/2018,30202452,-808.87,Revenue,Avery House (Peterborough) t/a Brighterkind,Residential Care
Peterborough City Council,Adults,Independent Sector Placements,Services,14/11/2018,30202471,73862.86,Revenue,Richmond Fellowship (The),Residential Care
Peterborough City Council,Communities,Cohesion,Services,14/11/2018,30202472,10000.00,Revenue,Rosmini Centre Wisbech,Grant Payment
Peterborough City Council,Adults,Independent Sector Placements,Services,14/11/2018,30202473,32063.14,Revenue,Richmond Fellowship (The),Residential Care
Peterborough City Council,Adults,Independent Sector Placements,Services,14/11/2018,30202484,761.25,Revenue,RegionalCare,Home Care
Peterborough City Council,Adults,Independent Sector Placements,Services,14/11/2018,30202485,659.75,Revenue,RegionalCare,Home Care
Peterborough City Council,Adults,Independent Sector Placements,Services,14/11/2018,30202486,993.25,Revenue,RegionalCare,Home Care
Peterborough City Council,Adults,Independent Sector Placements,Services,14/11/2018,30202487,928.00,Revenue,RegionalCare,Home Care
Peterborough City Council,Adults,Independent Sector Placements,Services,14/11/2018,30202489,-507.50,Revenue,RegionalCare,Home Care
Peterborough City Council,Communities,Housing,Services,14/11/2018,30202499,2975.00,Revenue,Singh and Sons Property Management Ltd,Temporary Accommodation Costs
Peterborough City Council,Communities,Housing,Services,14/11/2018,30202500,3220.00,Revenue,Singh and Sons Property Management Ltd,Temporary Accommodation Costs
Peterborough City Council,Communities,Housing,Services,14/11/2018,30202501,2275.00,Revenue,Singh and Sons Property Management Ltd,Temporary Accommodation Costs
Peterborough City Council,Communities,Housing,Services,14/11/2018,30202502,3020.00,Revenue,Singh and Sons Property Management Ltd,Temporary Accommodation Costs
Peterborough City Council,Financial Services,Finance,Services,14/11/2018,30202512,46500.00,Revenue,CEB Global Limited,Consultants Fees
Peterborough City Council,Adults,Independent Sector Placements,Services,14/11/2018,8000127973,895.35,Revenue,MEARS GROUP,Home Care
Peterborough City Council,Adults,Independent Sector Placements,Services,14/11/2018,8000127974,805.95,Revenue,MEARS GROUP,Home Care
Peterborough City Council,Adults,Independent Sector Placements,Services,14/11/2018,8000127978,507.90,Revenue,MEARS GROUP,Home Care
Peterborough City Council,Adults,Independent Sector Placements,Services,14/11/2018,8000127983,969.15,Revenue,MEARS GROUP,Home Care
Peterborough City Council,Adults,Independent Sector Placements,Services,14/11/2018,8000127988,1983.15,Revenue,MEARS GROUP,Home Care
Peterborough City Council,Adults,Independent Sector Placements,Services,14/11/2018,8000127989,971.55,Revenue,MEARS GROUP,Home Care
Peterborough City Council,Adults,Independent Sector Placements,Services,14/11/2018,8000127991,1077.00,Revenue,MEARS GROUP,Home Care
Peterborough City Council,Adults,Independent Sector Placements,Services,14/11/2018,8000127992,563.70,Revenue,MEARS GROUP,Home Care
Peterborough City Council,Adults,Independent Sector Placements,Services,14/11/2018,8000127993,622.95,Revenue,MEARS GROUP,Home Care
Peterborough City Council,Adults,Independent Sector Placements,Services,14/11/2018,8000127996,1158.90,Revenue,MEARS GROUP,Home Care
Peterborough City Council,Adults,Independent Sector Placements,Services,14/11/2018,8000127997,842.55,Revenue,MEARS GROUP,Home Care
Peterborough City Council,Adults,Independent Sector Placements,Services,14/11/2018,8000127998,573.15,Revenue,MEARS GROUP,Home Care
Peterborough City Council,Adults,Independent Sector Placements,Services,14/11/2018,8000128000,801.00,Revenue,MEARS GROUP,Home Care
Peterborough City Council,Adults,Independent Sector Placements,Services,14/11/2018,8000128008,687.75,Revenue,MEARS GROUP,Home Care
Peterborough City Council,Adults,Independent Sector Placements,Services,14/11/2018,8000128009,1747.20,Revenue,MEARS GROUP,Home Care
Peterborough City Council,Adults,Independent Sector Placements,Services,14/11/2018,8000128015,799.50,Revenue,MEARS GROUP,Home Care
Peterborough City Council,Adults,Independent Sector Placements,Services,14/11/2018,8000128020,640.35,Revenue,MEARS GROUP,Home Care
Peterborough City Council,Adults,Independent Sector Placements,Services,14/11/2018,8000128023,1003.50,Revenue,MEARS GROUP,Home Care
Peterborough City Council,Adults,Independent Sector Placements,Services,14/11/2018,8000128026,1851.75,Revenue,MEARS GROUP,Home Care
Peterborough City Council,Adults,Independent Sector Placements,Services,14/11/2018,8000128028,653.25,Revenue,MEARS GROUP,Home Care
Peterborough City Council,Adults,Independent Sector Placements,Services,14/11/2018,8000128032,730.95,Revenue,MEARS GROUP,Home Care
Peterborough City Council,Adults,Independent Sector Placements,Services,14/11/2018,8000128033,1624.80,Revenue,MEARS GROUP,Home Care
Peterborough City Council,Adults,Independent Sector Placements,Services,14/11/2018,8000128039,600.45,Revenue,MEARS GROUP,Home Care
Peterborough City Council,Adults,Independent Sector Placements,Services,14/11/2018,8000128040,537.15,Revenue,MEARS GROUP,Home Care
Peterborough City Council,Adults,Independent Sector Placements,Services,14/11/2018,8000128041,1097.25,Revenue,MEARS GROUP,Home Care
Peterborough City Council,Adults,Independent Sector Placements,Services,14/11/2018,8000128044,562.20,Revenue,MEARS GROUP,Home Care
Peterborough City Council,Adults,Independent Sector Placements,Services,14/11/2018,8000128046,516.00,Revenue,MEARS GROUP,Home Care
Peterborough City Council,Adults,Independent Sector Placements,Services,14/11/2018,8000128052,577.50,Revenue,MEARS GROUP,Home Care
Peterborough City Council,Adults,Independent Sector Placements,Services,14/11/2018,8000128053,676.80,Revenue,MEARS GROUP,Home Care
Peterborough City Council,Adults,Independent Sector Placements,Services,14/11/2018,8000128058,533.55,Revenue,MEARS GROUP,Home Care
Peterborough City Council,Adults,Independent Sector Placements,Services,14/11/2018,8000128062,803.10,Revenue,MEARS GROUP,Home Care
Peterborough City Council,Adults,Independent Sector Placements,Services,14/11/2018,8000128064,812.55,Revenue,MEARS GROUP,Home Care
Peterborough City Council,Adults,Independent Sector Placements,Services,14/11/2018,8000128066,698.25,Revenue,MEARS GROUP,Home Care
Peterborough City Council,Adults,Independent Sector Placements,Services,14/11/2018,8000128067,550.20,Revenue,MEARS GROUP,Home Care
Peterborough City Council,Adults,Independent Sector Placements,Services,14/11/2018,8000128068,711.00,Revenue,MEARS GROUP,Home Care
Peterborough City Council,Adults,Independent Sector Placements,Services,14/11/2018,8000128069,547.50,Revenue,MEARS GROUP,Home Care
Peterborough City Council,Adults,Independent Sector Placements,Services,14/11/2018,8000128072,1357.20,Revenue,MEARS GROUP,Home Care
Peterborough City Council,Adults,Independent Sector Placements,Services,14/11/2018,8000128073,823.50,Revenue,MEARS GROUP,Home Care
Peterborough City Council,Adults,Independent Sector Placements,Services,14/11/2018,8000128075,759.60,Revenue,MEARS GROUP,Home Care
Peterborough City Council,Adults,Independent Sector Placements,Services,14/11/2018,8000128079,510.00,Revenue,MEARS GROUP,Home Care
Peterborough City Council,Adults,Independent Sector Placements,Services,14/11/2018,8000128080,886.50,Revenue,MEARS GROUP,Home Care
Peterborough City Council,Adults,Independent Sector Placements,Services,14/11/2018,8000128086,1430.10,Revenue,MEARS GROUP,Home Care
Peterborough City Council,Adults,Independent Sector Placements,Services,14/11/2018,8000128088,585.30,Revenue,MEARS GROUP,Home Care
Peterborough City Council,Adults,Independent Sector Placements,Services,14/11/2018,8000128090,565.95,Revenue,MEARS GROUP,Home Care
Peterborough City Council,Adults,Independent Sector Placements,Services,14/11/2018,8000128092,722.25,Revenue,MEARS GROUP,Home Care
Peterborough City Council,Adults,Independent Sector Placements,Services,14/11/2018,8000128093,552.30,Revenue,MEARS GROUP,Home Care
Peterborough City Council,Adults,Independent Sector Placements,Services,14/11/2018,8000128094,903.00,Revenue,MEARS GROUP,Home Care
Peterborough City Council,Adults,Independent Sector Placements,Services,14/11/2018,8000128102,536.25,Revenue,MEARS GROUP,Home Care
Peterborough City Council,Adults,Independent Sector Placements,Services,14/11/2018,8000128104,2178.15,Revenue,MEARS GROUP,Home Care
Peterborough City Council,Adults,Independent Sector Placements,Services,14/11/2018,8000128107,823.95,Revenue,MEARS GROUP,Home Care
Peterborough City Council,Adults,Independent Sector Placements,Services,14/11/2018,8000128111,656.98,Revenue,MEARS GROUP,Home Care
Peterborough City Council,Adults,Independent Sector Placements,Services,14/11/2018,8000128115,684.52,Revenue,MEARS GROUP,Home Care
Peterborough City Council,Adults,Independent Sector Placements,Services,14/11/2018,8000128116,778.16,Revenue,MEARS GROUP,Home Care
Peterborough City Council,Adults,Independent Sector Placements,Services,14/11/2018,8000128918,594.83,Revenue,Sagecare Ltd,Home Care
Peterborough City Council,Adults,Independent Sector Placements,Services,14/11/2018,8000128920,580.73,Revenue,Sagecare Ltd,Home Care
Peterborough City Council,Adults,Independent Sector Placements,Services,14/11/2018,8000128923,864.40,Revenue,Sagecare Ltd,Home Care
Peterborough City Council,Adults,Independent Sector Placements,Services,14/11/2018,8000128925,679.37,Revenue,Sagecare Ltd,Home Care
Peterborough City Council,Adults,Independent Sector Placements,Services,14/11/2018,8000128928,776.16,Revenue,Sagecare Ltd,Home Care
Peterborough City Council,Adults,Independent Sector Placements,Services,14/11/2018,8000128929,501.27,Revenue,Sagecare Ltd,Home Care
Peterborough City Council,Adults,Independent Sector Placements,Services,14/11/2018,8000128934,776.16,Revenue,Sagecare Ltd,Home Care
Peterborough City Council,Adults,Independent Sector Placements,Services,14/11/2018,8000128936,584.43,Revenue,Sagecare Ltd,Home Care
Peterborough City Council,Adults,Independent Sector Placements,Services,14/11/2018,8000128938,1400.32,Revenue,Sagecare Ltd,Home Care
Peterborough City Council,Adults,Independent Sector Placements,Services,14/11/2018,8000128939,687.46,Revenue,Sagecare Ltd,Home Care
Peterborough City Council,Adults,Independent Sector Placements,Services,14/11/2018,8000128945,2104.41,Revenue,Sagecare Ltd,Home Care
Peterborough City Council,Adults,Independent Sector Placements,Services,14/11/2018,8000128946,686.76,Revenue,Sagecare Ltd,Home Care
Peterborough City Council,Adults,Independent Sector Placements,Services,14/11/2018,8000128947,970.89,Revenue,Sagecare Ltd,Home Care
Peterborough City Council,Adults,Independent Sector Placements,Services,14/11/2018,8000128948,2336.57,Revenue,Sagecare Ltd,Home Care
Peterborough City Council,Adults,Independent Sector Placements,Services,14/11/2018,8000128950,786.56,Revenue,Sagecare Ltd,Home Care
Peterborough City Council,Adults,Independent Sector Placements,Services,14/11/2018,8000129019,792.75,Revenue,Sagecare Ltd,Home Care
Peterborough City Council,Adults,Independent Sector Placements,Services,14/11/2018,8000129120,945.00,Revenue,Sagecare Ltd,Home Care
Peterborough City Council,Adults,Independent Sector Placements,Services,14/11/2018,8000129122,840.00,Revenue,Sagecare Ltd,Home Care
Peterborough City Council,Adults,Independent Sector Placements,Services,14/11/2018,8000129126,540.00,Revenue,Sagecare Ltd,Home Care
Peterborough City Council,Adults,Independent Sector Placements,Services,14/11/2018,8000129128,735.00,Revenue,Sagecare Ltd,Home Care
Peterborough City Council,Adults,Independent Sector Placements,Services,14/11/2018,8000129133,582.12,Revenue,Sagecare Ltd,Home Care
Peterborough City Council,Adults,Independent Sector Placements,Services,14/11/2018,8000129142,685.61,Revenue,Sagecare Ltd,Home Care
Peterborough City Council,Adults,Independent Sector Placements,Services,14/11/2018,8000129146,872.95,Revenue,Sagecare Ltd,Home Care
Peterborough City Council,Adults,Independent Sector Placements,Services,14/11/2018,8000129149,949.87,Revenue,Sagecare Ltd,Home Care
Peterborough City Council,Adults,Independent Sector Placements,Services,14/11/2018,8000129150,946.41,Revenue,Sagecare Ltd,Home Care
Peterborough City Council,Adults,Independent Sector Placements,Services,14/11/2018,8000129152,2772.00,Revenue,Sagecare Ltd,Home Care
Peterborough City Council,Adults,Independent Sector Placements,Services,14/11/2018,8000129154,576.58,Revenue,Sagecare Ltd,Home Care
Peterborough City Council,Adults,Independent Sector Placements,Services,14/11/2018,8000129159,1384.61,Revenue,Sagecare Ltd,Home Care
Peterborough City Council,Adults,Independent Sector Placements,Services,14/11/2018,8000129161,676.14,Revenue,Sagecare Ltd,Home Care
Peterborough City Council,Adults,Independent Sector Placements,Services,14/11/2018,8000129162,1088.47,Revenue,Sagecare Ltd,Home Care
Peterborough City Council,Adults,Independent Sector Placements,Services,14/11/2018,8000129163,1739.43,Revenue,Sagecare Ltd,Home Care
Peterborough City Council,Adults,Independent Sector Placements,Services,14/11/2018,8000129165,4304.92,Revenue,Sagecare Ltd,Home Care
Peterborough City Council,Adults,Independent Sector Placements,Services,14/11/2018,8000129166,575.19,Revenue,Sagecare Ltd,Home Care
Peterborough City Council,Adults,Independent Sector Placements,Services,14/11/2018,8000129169,976.67,Revenue,Sagecare Ltd,Home Care
Peterborough City Council,Adults,Independent Sector Placements,Services,14/11/2018,8000129172,732.73,Revenue,Sagecare Ltd,Home Care
Peterborough City Council,Adults,Independent Sector Placements,Services,14/11/2018,8000129173,1932.78,Revenue,Sagecare Ltd,Home Care
Peterborough City Council,Adults,Independent Sector Placements,Services,14/11/2018,8000129176,1940.40,Revenue,Sagecare Ltd,Home Care
Peterborough City Council,Adults,Independent Sector Placements,Services,14/11/2018,8000129177,1562.25,Revenue,Sagecare Ltd,Home Care
Peterborough City Council,Adults,Independent Sector Placements,Services,14/11/2018,8000129179,1359.90,Revenue,Sagecare Ltd,Home Care
Peterborough City Council,Adults,Independent Sector Placements,Services,14/11/2018,8000129180,585.59,Revenue,Sagecare Ltd,Home Care
Peterborough City Council,Adults,Independent Sector Placements,Services,14/11/2018,8000129182,672.90,Revenue,Sagecare Ltd,Home Care
Peterborough City Council,Adults,Independent Sector Placements,Services,14/11/2018,8000129183,627.86,Revenue,Sagecare Ltd,Home Care
Peterborough City Council,Adults,Independent Sector Placements,Services,14/11/2018,8000129185,1217.60,Revenue,Sagecare Ltd,Home Care
Peterborough City Council,Adults,Independent Sector Placements,Services,14/11/2018,8000129186,682.14,Revenue,Sagecare Ltd,Home Care
Peterborough City Council,Adults,Independent Sector Placements,Services,14/11/2018,8000129187,726.26,Revenue,Sagecare Ltd,Home Care
Peterborough City Council,Adults,Independent Sector Placements,Services,14/11/2018,8000129188,1743.59,Revenue,Sagecare Ltd,Home Care
Peterborough City Council,Adults,Independent Sector Placements,Services,14/11/2018,8000129191,968.12,Revenue,Sagecare Ltd,Home Care
Peterborough City Council,Adults,Independent Sector Placements,Services,14/11/2018,8000129194,623.70,Revenue,Sagecare Ltd,Home Care
Peterborough City Council,Adults,Independent Sector Placements,Services,14/11/2018,8000129199,859.78,Revenue,Sagecare Ltd,Home Care
Peterborough City Council,Education,HTS & CSC Transport,Contract Hire and Operating Leases,14/11/2018,8000129337,1280.00,Revenue,Goldstar Cabs Ltd,Hired Transport
Peterborough City Council,Education,HTS & CSC Transport,Contract Hire and Operating Leases,14/11/2018,8000129339,2796.09,Revenue,Goldstar Cabs Ltd,Hired Transport
Peterborough City Council,Education,HTS & CSC Transport,Contract Hire and Operating Leases,14/11/2018,8000129351,1674.00,Revenue,Goldstar Cabs Ltd,Hired Transport
Peterborough City Council,Education,HTS & CSC Transport,Contract Hire and Operating Leases,14/11/2018,8000129352,892.50,Revenue,Goldstar Cabs Ltd,Hired Transport
Peterborough City Council,Education,HTS & CSC Transport,Contract Hire and Operating Leases,14/11/2018,8000129354,1223.00,Revenue,Goldstar Cabs Ltd,Hired Transport
Peterborough City Council,Education,HTS & CSC Transport,Contract Hire and Operating Leases,14/11/2018,8000129362,1600.00,Revenue,City Cabs Pboro Ltd,Hired Transport
Peterborough City Council,Education,HTS & CSC Transport,Contract Hire and Operating Leases,14/11/2018,8000129363,2850.00,Revenue,Marks Passenger Services Ltd,Hired Transport
Peterborough City Council,Education,HTS & CSC Transport,Contract Hire and Operating Leases,14/11/2018,8000129364,2379.00,Revenue,Marks Passenger Services Ltd,Hired Transport
Peterborough City Council,Education,HTS & CSC Transport,Contract Hire and Operating Leases,14/11/2018,8000129433,1294.12,Revenue,Redacted Personal Information,Hired Transport
Peterborough City Council,"Waste, Cleansing and Open Spaces",Waste & Operational Svs Mgmt,Services,15/11/2018,30202726,1000.00,Revenue,Nicholas Hancox Solicitors Ltd,Legal Costs
Peterborough City Council,Children's & Safeguarding,Commissioning - CSC,Third Party Payments,15/11/2018,8000130832,738372.50,Revenue,IAS TACT,Third Party Payments - Contract
Peterborough City Council,Adults,Independent Sector Placements,Services,16/11/2018,30196611,1314.05,Revenue,Barchester Healthcare Ltd - Chater Lodge,Residential Care
Peterborough City Council,Adults,Independent Sector Placements,Services,16/11/2018,30196613,1186.88,Revenue,Barchester Healthcare Ltd - Chater Lodge,Residential Care
Peterborough City Council,Adults,Independent Sector Placements,Services,16/11/2018,30196615,1186.88,Revenue,Barchester Healthcare Ltd - Chater Lodge,Residential Care
Peterborough City Council,Financial Services,Finance,Services,16/11/2018,30198792,13023.38,Revenue,Deloitte LLP,Professional Fees
Peterborough City Council,Adults,Independent Sector Placements,Services,16/11/2018,30199850,5354.44,Revenue,Accomplish Group Limited (Orchard Hill),Residential Care
Peterborough City Council,Adults,Independent Sector Placements,Services,16/11/2018,30199852,1765.96,Revenue,Athena (Ashlynn Grange),Residential Care
Peterborough City Council,Adults,Independent Sector Placements,Services,16/11/2018,30199853,1731.44,Revenue,Athena (Ashlynn Grange),Residential Care
Peterborough City Council,Adults,Independent Sector Placements,Services,16/11/2018,30199854,1268.16,Revenue,Athena (Ashlynn Grange),Residential Care
Peterborough City Council,Adults,Independent Sector Placements,Services,16/11/2018,30199856,1821.04,Revenue,Athena (Ashlynn Grange),Residential Care
Peterborough City Council,Adults,Independent Sector Placements,Services,16/11/2018,30199857,2318.36,Revenue,Athena (Ashlynn Grange),Residential Care
Peterborough City Council,Adults,Independent Sector Placements,Services,16/11/2018,30199861,1685.72,Revenue,Athena (Ashlynn Grange),Residential Care
Peterborough City Council,Adults,Independent Sector Placements,Services,16/11/2018,30199862,2318.36,Revenue,Athena (Ashlynn Grange),Residential Care
Peterborough City Council,Adults,Independent Sector Placements,Services,16/11/2018,30199863,1773.96,Revenue,Athena (Ashlynn Grange),Residential Care
Peterborough City Council,Adults,Independent Sector Placements,Services,16/11/2018,30199872,780.40,Revenue,Swanton Community Support,Home Care
Peterborough City Council,Adults,Independent Sector Placements,Services,16/11/2018,30200005,1785.96,Revenue,Athena (Ashlynn Grange),Residential Care
Peterborough City Council,Adults,Independent Sector Placements,Services,16/11/2018,30200006,1737.96,Revenue,Athena (Ashlynn Grange),Residential Care
Peterborough City Council,Adults,Independent Sector Placements,Services,16/11/2018,30200008,1032.88,Revenue,Athena (Ashlynn Grange),Residential Care
Peterborough City Council,Adults,Independent Sector Placements,Services,16/11/2018,30200009,920.92,Revenue,Athena (Ashlynn Grange),Residential Care
Peterborough City Council,Adults,Independent Sector Placements,Services,16/11/2018,30200010,1649.48,Revenue,Athena (Ashlynn Grange),Residential Care
Peterborough City Council,Adults,Independent Sector Placements,Services,16/11/2018,30200011,1455.20,Revenue,Athena (Ashlynn Grange),Residential Care
Peterborough City Council,Adults,Independent Sector Placements,Services,16/11/2018,30200012,1014.96,Revenue,Athena (Ashlynn Grange),Residential Care
Peterborough City Council,Adults,Independent Sector Placements,Services,16/11/2018,30200013,1165.92,Revenue,Athena (Ashlynn Grange),Residential Care
Peterborough City Council,Adults,Independent Sector Placements,Services,16/11/2018,30200014,1569.36,Revenue,Athena (Ashlynn Grange),Residential Care
Peterborough City Council,Adults,Independent Sector Placements,Services,16/11/2018,30200016,3300.00,Revenue,Athena (Ashlynn Grange),Residential Care
Peterborough City Council,Adults,Independent Sector Placements,Services,16/11/2018,30200017,1821.88,Revenue,Athena (Ashlynn Grange),Residential Care
Peterborough City Council,Adults,Independent Sector Placements,Services,16/11/2018,30200018,1729.00,Revenue,Athena (Ashlynn Grange),Residential Care
Peterborough City Council,Adults,Independent Sector Placements,Services,16/11/2018,30200019,1821.88,Revenue,Athena (Ashlynn Grange),Residential Care
Peterborough City Council,Adults,Independent Sector Placements,Services,16/11/2018,30200020,1282.00,Revenue,Athena (Ashlynn Grange),Residential Care
Peterborough City Council,Adults,Independent Sector Placements,Services,16/11/2018,30200022,1681.28,Revenue,Athena (Ashlynn Grange),Residential Care
Peterborough City Council,Adults,Independent Sector Placements,Services,16/11/2018,30200023,1115.20,Revenue,Athena (Ashlynn Grange),Residential Care
Peterborough City Council,Adults,Independent Sector Placements,Services,16/11/2018,30200024,1591.20,Revenue,Athena (Ashlynn Grange),Residential Care
Peterborough City Council,Adults,Independent Sector Placements,Services,16/11/2018,30200025,1980.00,Revenue,Athena (Ashlynn Grange),Residential Care
Peterborough City Council,Adults,Independent Sector Placements,Services,16/11/2018,30200027,993.58,Revenue,Athena (Ashlynn Grange),Residential Care
Peterborough City Council,Adults,Independent Sector Placements,Services,16/11/2018,30200028,1687.00,Revenue,Athena (Ashlynn Grange),Residential Care
Peterborough City Council,Adults,Independent Sector Placements,Services,16/11/2018,30200046,1703.36,Revenue,Athena (Ashlynn Grange),Residential Care
Peterborough City Council,Adults,Independent Sector Placements,Services,16/11/2018,30200048,1821.88,Revenue,Athena (Ashlynn Grange),Residential Care
Peterborough City Council,Public Health,PH Commissioning,Third Party Payments,16/11/2018,30200050,736.00,Revenue,Park Medical Centre,Third Party Payments - Contract
Peterborough City Council,Public Health,PH Commissioning,Third Party Payments,16/11/2018,30200151,1175.50,Revenue,Thomas Walker Surgery,Third Party Payments - Contract
Peterborough City Council,Sustainable Growth Strategy,Housing & Strategic Planning,Services,16/11/2018,30200375,4800.00,Revenue,Objective Keystone Ltd,Computer Software
Peterborough City Council,ICT,ICT,Agency Staff,16/11/2018,30200382,2500.00,Revenue,Cranford Solutions Ltd,External Temporary Staff
Peterborough City Council,City Centre Management,"Markets, Tourism & Events","Tools, Equipment, Furniture & Materials",16/11/2018,30200389,859.00,Revenue,Direct Comms Radio Services Ltd,Hire of Equipment
Peterborough City Council,Communities,Housing,Services,16/11/2018,30200416,11438.00,Revenue,Eastfield Guesthouse,Temporary Accommodation Costs
Peterborough City Council,Communities,Housing,Services,16/11/2018,30200417,9726.50,Revenue,Eastfield Guesthouse,Temporary Accommodation Costs
Peterborough City Council,Corporate,Corporate,Non Revenue,16/11/2018,30200423,9440.00,Capital,Badenoch & Clark Ltd,Consultants Fees
Peterborough City Council,Peterborough Serco Strategic Partnership,PSSP Retained Services,Services,16/11/2018,30200469,2419.39,Revenue,Whistl UK Ltd,Postage
Peterborough City Council,Children's & Safeguarding,Access to Resources & Specialist Commissioning,Services,16/11/2018,30200492,840.00,Revenue,Florinee Homes Ltd,Boarding Out Fees
Peterborough City Council,Corporate,Corporate,Non Revenue,16/11/2018,30200501,7506.00,Capital,Palmer Building Solutions Ltd,Furniture And Equipment Purchase
Peterborough City Council,Westcombe Engineering,Westcombe Engineering,"Tools, Equipment, Furniture & Materials",16/11/2018,30200569,1160.00,Revenue,Olis Machine Tools Ltd,Equipment Maintenance
Peterborough City Council,City Centre Management,"Markets, Tourism & Events",Services,16/11/2018,30200637,1776.00,Revenue,C N SECURITY,Security
Peterborough City Council,Coroners Service,Coroners Service,Third Party Payments,16/11/2018,30200713,181748.47,Revenue,Cambridgeshire County Council,Third Party Payments - Contract
Peterborough City Council,Peterborough Serco Strategic Partnership,Peterborough Serco Strategic Partnership,Services,16/11/2018,30200716,199971.36,Revenue,Serco Ltd,Contract Services
Peterborough City Council,Adults,Independent Sector Placements,Services,16/11/2018,30200733,1407.58,Revenue,Athena (Ashlynn Grange),Residential Care
Peterborough City Council,Children's & Safeguarding,Access to Resources & Specialist Commissioning,Services,16/11/2018,30200771,840.00,Revenue,Florinee Homes Ltd,Boarding Out Fees
